﻿Department Family,Entity,Date,Expense Type,Expense Area,Supplier,Transaction Number,Amount,Item Description
BEIS,UKRI - AHRC,01/02/2022,Fees (Including College Members),Operations,Unspecified,99226627,170.00,Fees (Including College Members)
BEIS,UKRI - AHRC,01/02/2022,Fees (Including College Members),Operations,Unspecified,99226628,170.00,Fees (Including College Members)
BEIS,UKRI - AHRC,01/02/2022,Fees (Including College Members),Operations,Unspecified,99226629,170.00,Fees (Including College Members)
BEIS,UKRI - AHRC,01/02/2022,Fees (Including College Members),Operations,Unspecified,99226630,170.00,Fees (Including College Members)
BEIS,UKRI - AHRC,02/02/2022,Fees (Including College Members),Operations,Unspecified,99227195,170.00,Fees (Including College Members)
BEIS,UKRI - AHRC,02/02/2022,Fees (Including College Members),Operations,Unspecified,99227196,170.00,Fees (Including College Members)
BEIS,UKRI - AHRC,02/02/2022,Fees (Including College Members),Operations,Unspecified,99227197,340.00,Fees (Including College Members)
BEIS,UKRI - AHRC,02/02/2022,Fees (Including College Members),Operations,Unspecified,99227198,340.00,Fees (Including College Members)
BEIS,UKRI - AHRC,02/02/2022,T&S UK - Other Charges,"History, Heritage, Languages and Literature",Unspecified,99227413,46.24,T&S UK - Other Charges
BEIS,UKRI - AHRC,02/02/2022,Fees (Including College Members),FIC- China,Unspecified,99247428,170.00,Fees (Including College Members)
BEIS,UKRI - AHRC,02/02/2022,Fees (Including College Members),FIC- China,Unspecified,99247429,170.00,Fees (Including College Members)
BEIS,UKRI - AHRC,02/02/2022,Fees (Including College Members),FIC- China,Unspecified,99247430,170.00,Fees (Including College Members)
BEIS,UKRI - AHRC,02/02/2022,Fees (Including College Members),Operations,Unspecified,99247431,230.00,Fees (Including College Members)
BEIS,UKRI - AHRC,03/02/2022,Staff Training,AI&Design,Chartered Institute of Personnel and Development (CIPD),99227163,2375.00,Staff Training
BEIS,UKRI - AHRC,03/02/2022,T&S UK - Other Charges,Operations,Unspecified,99250436,22.00,T&S UK - Other Charges
BEIS,UKRI - AHRC,03/02/2022,T&S UK - Other Charges,Operations,Unspecified,99250437,75.04,T&S UK - Other Charges
BEIS,UKRI - AHRC,04/02/2022,Fees (Including College Members),FIC- China,Unspecified,99250023,170.00,Fees (Including College Members)
BEIS,UKRI - AHRC,04/02/2022,Fees (Including College Members),Operations,Unspecified,99250024,170.00,Fees (Including College Members)
BEIS,UKRI - AHRC,04/02/2022,T&S UK - Other Charges,Strategy and Evidence,Unspecified,99253437,100.00,T&S UK - Other Charges
BEIS,UKRI - AHRC,07/02/2022,Unspecified,Infrastruture Roadmap,Alexander Mann Solutions Ltd,99258521,2772.24,Legal & Professional Services
BEIS,UKRI - AHRC,07/02/2022,Fees (Including College Members),SPF_ Towards a National Collection,Unspecified,99258671,-148.38,Fees (Including College Members)
BEIS,UKRI - AHRC,08/02/2022,Fees (Including College Members),Operations,Unspecified,99258754,170.00,Fees (Including College Members)
BEIS,UKRI - AHRC,09/02/2022,Fees (Including College Members),Operations,Unspecified,99258486,169.69,Fees (Including College Members)
BEIS,UKRI - AHRC,09/02/2022,T&S UK - Other Charges,Operations,Unspecified,99258658,497.16,T&S UK - Other Charges
BEIS,UKRI - AHRC,09/02/2022,T&S UK - Accommodation,Infrastructure Fund - CoSTAR,Corporate Travel Management (North) Ltd,99271527,0.80,T&S UK - Accommodation
BEIS,UKRI - AHRC,09/02/2022,T&S UK - Accommodation,Infrastructure Fund - CoSTAR,Corporate Travel Management (North) Ltd,99271527,99.75,T&S UK - Accommodation
BEIS,UKRI - AHRC,09/02/2022,T&S UK - Accommodation,Infrastructure Fund - CoSTAR,Corporate Travel Management (North) Ltd,99271527,0.16,T&S UK - Accommodation
BEIS,UKRI - AHRC,09/02/2022,T&S UK - Other Charges,Infrastructure Fund - CoSTAR,Corporate Travel Management (North) Ltd,99271527,0.25,T&S UK - Other Charges
BEIS,UKRI - AHRC,09/02/2022,T&S UK - Other Charges,Infrastructure Fund - CoSTAR,Corporate Travel Management (North) Ltd,99271527,31.40,T&S UK - Other Charges
BEIS,UKRI - AHRC,09/02/2022,T&S UK - Public Transport,ISCF Creative Clusters,Corporate Travel Management (North) Ltd,99271527,0.25,T&S UK - Public Transport
BEIS,UKRI - AHRC,09/02/2022,T&S UK - Public Transport,ISCF Creative Clusters,Corporate Travel Management (North) Ltd,99271527,161.40,T&S UK - Public Transport
BEIS,UKRI - AHRC,09/02/2022,T&S UK - Public Transport,Industrial Strategy Challenge Fund (ISCF) - Creative Clusters,Corporate Travel Management (North) Ltd,99271527,-156.40,T&S UK - Public Transport
BEIS,UKRI - AHRC,09/02/2022,T&S UK - Public Transport,Industrial Strategy Challenge Fund (ISCF) - Creative Clusters,Corporate Travel Management (North) Ltd,99271527,0.25,T&S UK - Public Transport
BEIS,UKRI - AHRC,09/02/2022,T&S UK - Public Transport,Industrial Strategy Challenge Fund (ISCF) - Creative Clusters,Corporate Travel Management (North) Ltd,99271527,25.20,T&S UK - Public Transport
BEIS,UKRI - AHRC,09/02/2022,T&S UK - Public Transport,SMT,Corporate Travel Management (North) Ltd,99271527,0.25,T&S UK - Public Transport
BEIS,UKRI - AHRC,09/02/2022,T&S UK - Public Transport,SMT,Corporate Travel Management (North) Ltd,99271527,114.40,T&S UK - Public Transport
BEIS,UKRI - AHRC,09/02/2022,T&S UK - Public Transport,SMT,Corporate Travel Management (North) Ltd,99271527,0.25,T&S UK - Public Transport
BEIS,UKRI - AHRC,09/02/2022,T&S UK - Public Transport,SMT,Corporate Travel Management (North) Ltd,99271527,28.60,T&S UK - Public Transport
BEIS,UKRI - AHRC,10/02/2022,Research Consumables,AI&Design,Unspecified,99272454,4500.00,Research Consumables
BEIS,UKRI - AHRC,10/02/2022,Fees (Including College Members),Operations,Unspecified,99273650,170.00,Fees (Including College Members)
BEIS,UKRI - AHRC,10/02/2022,Fees (Including College Members),Operations,Unspecified,99273651,170.00,Fees (Including College Members)
BEIS,UKRI - AHRC,10/02/2022,T&S UK - Other Charges,SMT,Unspecified,99275421,69.49,T&S UK - Other Charges
BEIS,UKRI - AHRC,11/02/2022,T&S UK - Other Charges,Operations,Unspecified,99206926,463.92,T&S UK - Other Charges
BEIS,UKRI - AHRC,11/02/2022,Fees (Including College Members),Operations,Unspecified,99276461,170.00,Fees (Including College Members)
BEIS,UKRI - AHRC,14/02/2022,Unspecified,SMT,University of Oxford,99248811,39934.07,Secondments
BEIS,UKRI - AHRC,14/02/2022,Unspecified,Balance Sheet,HM Revenue & Customs,99250115,55386.77,NI Payable Salaries
BEIS,UKRI - AHRC,14/02/2022,Unspecified,Balance Sheet,HM Revenue & Customs,99250116,43498.89,PAYE Payable Salaries
BEIS,UKRI - AHRC,14/02/2022,Unspecified,Balance Sheet,HM Revenue & Customs,99250117,4846.00,Student Loans
BEIS,UKRI - AHRC,14/02/2022,Unspecified,Corporate Services,HM Revenue & Customs,99250118,1579.00,Apprenticeship Levy
BEIS,UKRI - AHRC,14/02/2022,Corporate Events,AHRC - Creative Industries,Calder Conference Ltd,99250423,400.00,Corporate Events
BEIS,UKRI - AHRC,15/02/2022,Voluntary Deductions,Balance Sheet,Swindon Office Sports and Social Club,99250119,24.00,Voluntary Deductions
BEIS,UKRI - AHRC,15/02/2022,Union Deductions,Balance Sheet,PCS Union,99250120,57.71,Union Deductions
BEIS,UKRI - AHRC,15/02/2022,Unspecified,Balance Sheet,Unspecified,99250121,9754.78,Ees Pension Deductions - JSS
BEIS,UKRI - AHRC,15/02/2022,Unspecified,Balance Sheet,Unspecified,99250122,41326.49,Ers Pension Deductions - JSS
BEIS,UKRI - AHRC,15/02/2022,Unspecified,Balance Sheet,Scottish Widows,99250123,255.41,Partnership Pension Deductions
BEIS,UKRI - AHRC,15/02/2022,Unspecified,Balance Sheet,Cabinet Office RM Shared Services,99250124,9022.18,Ees Pension Deductions - MyCSP
BEIS,UKRI - AHRC,15/02/2022,Unspecified,Balance Sheet,Cabinet Office RM Shared Services,99250125,46120.10,Ers Pension Deductions - MyCSP
BEIS,UKRI - AHRC,15/02/2022,Unspecified,Balance Sheet,Unspecified,99250126,173.51,Ees Pension Deductions - MRC
BEIS,UKRI - AHRC,15/02/2022,Unspecified,Balance Sheet,Unspecified,99250127,427.09,Ers Pension Deductions - MRC
BEIS,UKRI - AHRC,15/02/2022,Nursery Deductions,Balance Sheet,UKRI - Engineering & Physical Sciences Research Council,99250128,1063.00,Nursery Deductions
BEIS,UKRI - AHRC,15/02/2022,Nursery Deductions,Balance Sheet,UKRI - Engineering & Physical Sciences Research Council,99273738,140.00,Nursery Deductions
BEIS,UKRI - AHRC,16/02/2022,Overseas - Professional Memberships & Subscriptions,CLARIN,Unspecified,99273445,87728.93,Overseas - Professional Memberships & Subscriptions
BEIS,UKRI - AHRC,16/02/2022,Fees (Including College Members),Executive Office,Unspecified,99295641,500.00,Fees (Including College Members)
BEIS,UKRI - AHRC,16/02/2022,Fees (Including College Members),Executive Office,Unspecified,99295642,500.00,Fees (Including College Members)
BEIS,UKRI - AHRC,16/02/2022,Fees (Including College Members),Executive Office,Unspecified,99295643,500.00,Fees (Including College Members)
BEIS,UKRI - AHRC,16/02/2022,Fees (Including College Members),Executive Office,Unspecified,99295644,500.00,Fees (Including College Members)
BEIS,UKRI - AHRC,18/02/2022,Staff Training,Public Engagement,University of the West of England,99102112,314.83,Staff Training
BEIS,UKRI - AHRC,18/02/2022,Staff Training,Public Engagement,University of the West of England,99102112,4.17,Staff Training
BEIS,UKRI - AHRC,18/02/2022,Fees (Including College Members),FIC- China,Unspecified,99305571,170.00,Fees (Including College Members)
BEIS,UKRI - AHRC,21/02/2022,Research Consumables,AI&Design,Unspecified,99305736,4500.00,Research Consumables
BEIS,UKRI - AHRC,22/02/2022,Unspecified,Infrastruture Roadmap,Alexander Mann Solutions Ltd,99319505,2772.24,Legal & Professional Services
BEIS,UKRI - AHRC,22/02/2022,Fees (Including College Members),Executive Office,Unspecified,99319525,500.00,Fees (Including College Members)
BEIS,UKRI - AHRC,22/02/2022,Fees (Including College Members),Executive Office,Unspecified,99319526,500.00,Fees (Including College Members)
BEIS,UKRI - AHRC,22/02/2022,Fees (Including College Members),Executive Office,Unspecified,99319527,500.00,Fees (Including College Members)
BEIS,UKRI - AHRC,22/02/2022,Fees (Including College Members),Executive Office,Unspecified,99319528,500.00,Fees (Including College Members)
BEIS,UKRI - AHRC,22/02/2022,Fees (Including College Members),Executive Office,Unspecified,99319529,500.00,Fees (Including College Members)
BEIS,UKRI - AHRC,23/02/2022,Fees (Including College Members),Infrastructure Fund - CoSTAR,Unspecified,99319027,170.00,Fees (Including College Members)
BEIS,UKRI - AHRC,23/02/2022,Fees (Including College Members),Executive Office,Unspecified,99319802,500.00,Fees (Including College Members)
BEIS,UKRI - AHRC,23/02/2022,Fees (Including College Members),Executive Office,Unspecified,99320304,500.00,Fees (Including College Members)
BEIS,UKRI - AHRC,25/02/2022,Unspecified,Infrastruture Roadmap,Alexander Mann Solutions Ltd,99282468,2772.24,Legal & Professional Services
BEIS,UKRI - AHRC,28/02/2022,Unspecified,Infrastruture Roadmap,Alexander Mann Solutions Ltd,99322000,2772.24,Legal & Professional Services
BEIS,UKRI - AHRC,28/02/2022,T&S UK - Other Charges,Operations,Unspecified,99322317,12.00,T&S UK - Other Charges
BEIS,UKRI - AHRC,28/02/2022,Prepayments - AP USE ONLY,Balance Sheet,Park Crescent Conference Centre Ltd,99323347,16047.02,Prepayments - AP USE ONLY
BEIS,UKRI - BBSRC,01/02/2022,T&S UK - Other Charges,Innovation and Skills Group,Unspecified,99181483,35.09,T&S UK - Other Charges
BEIS,UKRI - BBSRC,01/02/2022,Training Awards - Postgraduates,Innovation and Skills Group,UKRI - Economic & Social Research Council,99183153,45478.58,Training Awards - Postgraduates
BEIS,UKRI - BBSRC,01/02/2022,Staff Training,PDG - Director,Provek Ltd,99206564,810.00,Staff Training
BEIS,UKRI - BBSRC,01/02/2022,Research Grant Expenditure,Research: Responsive,UKRI - Medical Research Council,99212520,92250.00,Research Grant Expenditure
BEIS,UKRI - BBSRC,01/02/2022,T&S UK - Other Charges,FG - Estates,Unspecified,99226768,1.15,T&S UK - Other Charges
BEIS,UKRI - BBSRC,01/02/2022,T&S UK - Subsistence,FG - Estates,Unspecified,99226768,6.05,T&S UK - Subsistence
BEIS,UKRI - BBSRC,01/02/2022,T&S UK - Other Charges,FG - Estates,Unspecified,99226769,3.20,T&S UK - Other Charges
BEIS,UKRI - BBSRC,01/02/2022,T&S UK - Subsistence,FG - Estates,Unspecified,99226769,5.00,T&S UK - Subsistence
BEIS,UKRI - BBSRC,01/02/2022,Fees (Including College Members),Innovation and Skills Group CDSU,Unspecified,99227279,-306.07,Fees (Including College Members)
BEIS,UKRI - BBSRC,01/02/2022,Unspecified,CE - CPS,Pye Tait Ltd T/A Pye Tait Consulting,99239426,23040.00,Legal & Professional Services
BEIS,UKRI - BBSRC,02/02/2022,Research Institutes - Capital Grants: Minor Works,Rothamsted Research,Rothamsted Research Ltd,99227144,202464.00,Research Institutes - Capital Grants: Minor Works
BEIS,UKRI - BBSRC,02/02/2022,Fees (Including College Members),Science Group - Delivery Function,Unspecified,99227232,465.46,Fees (Including College Members)
BEIS,UKRI - BBSRC,02/02/2022,Health & Safety (inc. Medicals & Opticians),Innovation and Skills Group CDSU,Unspecified,99227361,100.00,Health & Safety (inc. Medicals & Opticians)
BEIS,UKRI - BBSRC,02/02/2022,Research Institutes - Capital Grants: Minor Works,Rothamsted Research,Rothamsted Research Ltd,99243417,4798.04,Research Institutes - Capital Grants: Minor Works
BEIS,UKRI - BBSRC,02/02/2022,Fees (Including College Members),Science Group - Delivery Function,Unspecified,99245423,170.00,Fees (Including College Members)
BEIS,UKRI - BBSRC,02/02/2022,Fees (Including College Members),Science Group - Delivery Function,Unspecified,99245424,170.00,Fees (Including College Members)
BEIS,UKRI - BBSRC,02/02/2022,Fees (Including College Members),Science Group - Delivery Function,Unspecified,99245425,170.00,Fees (Including College Members)
BEIS,UKRI - BBSRC,02/02/2022,Fees (Including College Members),Science Group - Delivery Function,Unspecified,99245426,170.00,Fees (Including College Members)
BEIS,UKRI - BBSRC,02/02/2022,Fees (Including College Members),Science Group - Delivery Function,Unspecified,99245427,170.00,Fees (Including College Members)
BEIS,UKRI - BBSRC,02/02/2022,Fees (Including College Members),Science Group - Delivery Function,Unspecified,99245428,170.00,Fees (Including College Members)
BEIS,UKRI - BBSRC,02/02/2022,Fees (Including College Members),Science Group - Delivery Function,Unspecified,99245429,170.00,Fees (Including College Members)
BEIS,UKRI - BBSRC,02/02/2022,Fees (Including College Members),Science Group - Delivery Function,Unspecified,99245430,340.00,Fees (Including College Members)
BEIS,UKRI - BBSRC,02/02/2022,Fees (Including College Members),Science Group - Delivery Function,Unspecified,99245431,340.00,Fees (Including College Members)
BEIS,UKRI - BBSRC,02/02/2022,Fees (Including College Members),Science Group - Delivery Function,Unspecified,99245432,340.00,Fees (Including College Members)
BEIS,UKRI - BBSRC,02/02/2022,Fees (Including College Members),Science Group - Delivery Function,Unspecified,99245433,340.00,Fees (Including College Members)
BEIS,UKRI - BBSRC,02/02/2022,Fees (Including College Members),Science Group - Delivery Function,Unspecified,99245434,170.00,Fees (Including College Members)
BEIS,UKRI - BBSRC,03/02/2022,Unspecified,PDG - Director,Civil Service College,99227278,2500.00,Staff Salaries
BEIS,UKRI - BBSRC,03/02/2022,Research Institutes - Competitive Strategic Grant,Rothamsted Research,Rothamsted Research Ltd,99248847,6463.87,Research Institutes - Competitive Strategic Grant
BEIS,UKRI - BBSRC,03/02/2022,Research Institutes - Competitive Strategic Grant,Rothamsted Research,Rothamsted Research Ltd,99248847,27171.64,Research Institutes - Competitive Strategic Grant
BEIS,UKRI - BBSRC,03/02/2022,Research Institutes - Competitive Strategic Grant,Rothamsted Research,Rothamsted Research Ltd,99248847,3757.16,Research Institutes - Competitive Strategic Grant
BEIS,UKRI - BBSRC,03/02/2022,Research Institutes - Competitive Strategic Grant,Rothamsted Research,Rothamsted Research Ltd,99248847,11445.79,Research Institutes - Competitive Strategic Grant
BEIS,UKRI - BBSRC,03/02/2022,Research Institutes - Competitive Strategic Grant,Rothamsted Research,Rothamsted Research Ltd,99248847,411.54,Research Institutes - Competitive Strategic Grant
BEIS,UKRI - BBSRC,03/02/2022,Research Institutes - Capital Grants: Minor Works,Rothamsted Research,Rothamsted Research Ltd,99249637,3306.00,Research Institutes - Capital Grants: Minor Works
BEIS,UKRI - BBSRC,07/02/2022,Unspecified,OpEx SPF W2 Food Systems,University of Southampton,99257504,28150.85,Secondments
BEIS,UKRI - BBSRC,07/02/2022,Fees (Including College Members),Science Group - Delivery Function,Unspecified,99258497,230.00,Fees (Including College Members)
BEIS,UKRI - BBSRC,07/02/2022,Fees (Including College Members),Science Group - Delivery Function,Unspecified,99258498,170.00,Fees (Including College Members)
BEIS,UKRI - BBSRC,07/02/2022,Fees (Including College Members),Science Group - Delivery Function,Unspecified,99258499,170.00,Fees (Including College Members)
BEIS,UKRI - BBSRC,07/02/2022,Fees (Including College Members),CE - CPS,Unspecified,99258500,170.00,Fees (Including College Members)
BEIS,UKRI - BBSRC,07/02/2022,Fees (Including College Members),Science Group – Admin Function,Unspecified,99258501,340.00,Fees (Including College Members)
BEIS,UKRI - BBSRC,07/02/2022,Fees (Including College Members),Science Group - Delivery Function,Unspecified,99258502,170.00,Fees (Including College Members)
BEIS,UKRI - BBSRC,07/02/2022,Fees (Including College Members),Science Group - Delivery Function,Unspecified,99258503,170.00,Fees (Including College Members)
BEIS,UKRI - BBSRC,07/02/2022,Fees (Including College Members),Science Group - Delivery Function,Unspecified,99258504,170.00,Fees (Including College Members)
BEIS,UKRI - BBSRC,07/02/2022,Fees (Including College Members),Science Group - Delivery Function,Unspecified,99258505,170.00,Fees (Including College Members)
BEIS,UKRI - BBSRC,07/02/2022,Fees (Including College Members),Science Group - Delivery Function,Unspecified,99258506,170.00,Fees (Including College Members)
BEIS,UKRI - BBSRC,07/02/2022,Fees (Including College Members),Science Group - Delivery Function,Unspecified,99258507,170.00,Fees (Including College Members)
BEIS,UKRI - BBSRC,07/02/2022,Fees (Including College Members),Science Group - Delivery Function,Unspecified,99258508,170.00,Fees (Including College Members)
BEIS,UKRI - BBSRC,07/02/2022,Fees (Including College Members),Science Group - Delivery Function,Unspecified,99258509,170.00,Fees (Including College Members)
BEIS,UKRI - BBSRC,07/02/2022,Fees (Including College Members),Science Group - Delivery Function,Unspecified,99258510,170.00,Fees (Including College Members)
BEIS,UKRI - BBSRC,08/02/2022,Research Grant Expenditure,SPF W1 EMBL EBI,EMBL (European Molecular Biology Laboratory),99258798,582.48,Research Grant Expenditure
BEIS,UKRI - BBSRC,09/02/2022,T&S Overseas - Flights,Science Group – Admin Function,Corporate Travel Management (North) Ltd,99271430,21.99,T&S Overseas - Flights
BEIS,UKRI - BBSRC,09/02/2022,T&S Overseas - Flights,Science Group – Admin Function,Corporate Travel Management (North) Ltd,99271430,9.50,T&S Overseas - Flights
BEIS,UKRI - BBSRC,09/02/2022,T&S UK - Accommodation,Innovation and Skills Group,Corporate Travel Management (North) Ltd,99271430,0.80,T&S UK - Accommodation
BEIS,UKRI - BBSRC,09/02/2022,T&S UK - Accommodation,Innovation and Skills Group,Corporate Travel Management (North) Ltd,99271430,56.05,T&S UK - Accommodation
BEIS,UKRI - BBSRC,09/02/2022,T&S UK - Accommodation,Innovation and Skills Group,Corporate Travel Management (North) Ltd,99271430,0.16,T&S UK - Accommodation
BEIS,UKRI - BBSRC,09/02/2022,T&S UK - Public Transport,Innovation and Skills Group,Corporate Travel Management (North) Ltd,99271430,109.50,T&S UK - Public Transport
BEIS,UKRI - BBSRC,09/02/2022,T&S UK - Public Transport,Innovation and Skills Group,Corporate Travel Management (North) Ltd,99271430,0.25,T&S UK - Public Transport
BEIS,UKRI - BBSRC,09/02/2022,T&S UK - Public Transport,Innovation and Skills Group,Corporate Travel Management (North) Ltd,99271430,45.70,T&S UK - Public Transport
BEIS,UKRI - BBSRC,09/02/2022,T&S UK - Public Transport,Innovation and Skills Group,Corporate Travel Management (North) Ltd,99271430,0.25,T&S UK - Public Transport
BEIS,UKRI - BBSRC,09/02/2022,T&S UK - Public Transport,Innovation and Skills Group,Corporate Travel Management (North) Ltd,99271430,0.25,T&S UK - Public Transport
BEIS,UKRI - BBSRC,09/02/2022,T&S UK - Public Transport,Innovation and Skills Group,Corporate Travel Management (North) Ltd,99271430,75.30,T&S UK - Public Transport
BEIS,UKRI - BBSRC,09/02/2022,T&S UK - Public Transport,Innovation and Skills Group,Corporate Travel Management (North) Ltd,99271430,0.25,T&S UK - Public Transport
BEIS,UKRI - BBSRC,09/02/2022,T&S UK - Public Transport,Innovation and Skills Group,Corporate Travel Management (North) Ltd,99271430,161.50,T&S UK - Public Transport
BEIS,UKRI - BBSRC,09/02/2022,T&S UK - Public Transport,Innovation and Skills Group,Corporate Travel Management (North) Ltd,99271430,94.80,T&S UK - Public Transport
BEIS,UKRI - BBSRC,09/02/2022,T&S UK - Public Transport,Innovation and Skills Group,Corporate Travel Management (North) Ltd,99271430,0.25,T&S UK - Public Transport
BEIS,UKRI - BBSRC,09/02/2022,Unspecified,PDG - Director,Civil Service College,99272422,-2500.00,Staff Salaries
BEIS,UKRI - BBSRC,09/02/2022,Unspecified,PDG - Director,Civil Service College,99272424,3000.00,Staff Salaries
BEIS,UKRI - BBSRC,09/02/2022,Health & Safety (inc. Medicals & Opticians),Science Group – Admin Function,Unspecified,99273436,24.65,Health & Safety (inc. Medicals & Opticians)
BEIS,UKRI - BBSRC,09/02/2022,T&S UK - Accommodation,Science Group – Admin Function,Unspecified,99273436,133.23,T&S UK - Accommodation
BEIS,UKRI - BBSRC,09/02/2022,T&S UK - Other Charges,Science Group – Admin Function,Unspecified,99273436,10.62,T&S UK - Other Charges
BEIS,UKRI - BBSRC,09/02/2022,T&S UK - Other Charges,CE - IRU,Unspecified,99273437,35.00,T&S UK - Other Charges
BEIS,UKRI - BBSRC,10/02/2022,Research Institutes - Capital Grants: Minor Works,JIC,John Innes Centre,99259174,30685.26,Research Institutes - Capital Grants: Minor Works
BEIS,UKRI - BBSRC,10/02/2022,Research Institutes - Capital Grants: Minor Works,Rothamsted Research,Rothamsted Research Ltd,99273626,21756.00,Research Institutes - Capital Grants: Minor Works
BEIS,UKRI - BBSRC,10/02/2022,Fees (Including College Members),Science Group - Delivery Function,Unspecified,99273658,340.00,Fees (Including College Members)
BEIS,UKRI - BBSRC,11/02/2022,Unspecified,FG - Estates,Powis Hughes Ltd,99274883,976.15,Legal & Professional Services
BEIS,UKRI - BBSRC,11/02/2022,Non-staff travel and subsistance,Science Group - Delivery Function,Unspecified,99276464,286.75,Non-staff travel and subsistance
BEIS,UKRI - BBSRC,11/02/2022,Fees (Including College Members),Science Group - Delivery Function,Unspecified,99276465,170.00,Fees (Including College Members)
BEIS,UKRI - BBSRC,11/02/2022,Fees (Including College Members),Science Group - Delivery Function,Unspecified,99276466,170.00,Fees (Including College Members)
BEIS,UKRI - BBSRC,14/02/2022,Unspecified,Balance Sheet,HM Revenue & Customs,99248861,2173.06,PAYE Payable Salaries
BEIS,UKRI - BBSRC,14/02/2022,Unspecified,FG - Accounts & Business Planning,HM Revenue & Customs,99248862,34.00,Apprenticeship Levy
BEIS,UKRI - BBSRC,14/02/2022,Unspecified,Balance Sheet,HM Revenue & Customs,99249522,78721.21,PAYE Payable Salaries
BEIS,UKRI - BBSRC,14/02/2022,Unspecified,Balance Sheet,HM Revenue & Customs,99249523,6909.00,Student Loans
BEIS,UKRI - BBSRC,14/02/2022,Unspecified,Balance Sheet,HM Revenue & Customs,99249524,110544.79,NI Payable Salaries
BEIS,UKRI - BBSRC,14/02/2022,Unspecified,FG - Accounts & Business Planning,HM Revenue & Customs,99249525,2821.00,Apprenticeship Levy
BEIS,UKRI - BBSRC,14/02/2022,Unspecified,Innovation and Skills Group CDSU,University of Nottingham,99259160,2250.00,Legal & Professional Services
BEIS,UKRI - BBSRC,14/02/2022,Other Programme Costs,Innovation and Skills Group CDSU,NNFCC Ltd,99284452,5702.40,Other Programme Costs
BEIS,UKRI - BBSRC,15/02/2022,Research Grant Expenditure,Innovation and Skills Group,The Royal Society of Edinburgh,99188693,40584.00,Research Grant Expenditure
BEIS,UKRI - BBSRC,15/02/2022,Research Grant Expenditure,Innovation and Skills Group,The Royal Society of Edinburgh,99188694,39922.73,Research Grant Expenditure
BEIS,UKRI - BBSRC,15/02/2022,Union Deductions,Balance Sheet,PCS Union,99249526,45.21,Union Deductions
BEIS,UKRI - BBSRC,15/02/2022,Voluntary Deductions,Balance Sheet,Swindon Office Sports and Social Club,99249527,44.00,Voluntary Deductions
BEIS,UKRI - BBSRC,15/02/2022,Unspecified,Balance Sheet,Unspecified,99249528,20877.13,Ees Pension Deductions - JSS
BEIS,UKRI - BBSRC,15/02/2022,Unspecified,Balance Sheet,Unspecified,99249529,84588.29,Ers Pension Deductions - JSS
BEIS,UKRI - BBSRC,15/02/2022,Unspecified,Balance Sheet,Scottish Widows Life Assurance,99249530,10.00,Other Pension Deductions
BEIS,UKRI - BBSRC,15/02/2022,Unspecified,Balance Sheet,Cabinet Office RM Shared Services,99249531,10.71,Ers Pension Deductions - JSS
BEIS,UKRI - BBSRC,15/02/2022,Unspecified,Balance Sheet,Cabinet Office RM Shared Services,99249532,13503.56,Ees Pension Deductions - MyCSP
BEIS,UKRI - BBSRC,15/02/2022,Unspecified,Balance Sheet,Cabinet Office RM Shared Services,99249533,67146.77,Ers Pension Deductions - MyCSP
BEIS,UKRI - BBSRC,15/02/2022,Nursery Deductions,Balance Sheet,UKRI - Engineering & Physical Sciences Research Council,99249534,1147.00,Nursery Deductions
BEIS,UKRI - BBSRC,15/02/2022,Unspecified,Balance Sheet,Unspecified,99249535,388.26,Ees Pension Deductions - MRC
BEIS,UKRI - BBSRC,15/02/2022,Unspecified,Balance Sheet,Unspecified,99249536,955.72,Ers Pension Deductions - MRC
BEIS,UKRI - BBSRC,15/02/2022,Research Institutes - Capital Grants: Minor Works,JIC,John Innes Centre,99275213,41677.56,Research Institutes - Capital Grants: Minor Works
BEIS,UKRI - BBSRC,15/02/2022,Research Institutes - Capital Grants: Minor Works,TGAC,Earlham Institute,99275216,16182.00,Research Institutes - Capital Grants: Minor Works
BEIS,UKRI - BBSRC,15/02/2022,Research Institutes - Capital Grants: Minor Works,TGAC,Earlham Institute,99283427,81060.00,Research Institutes - Capital Grants: Minor Works
BEIS,UKRI - BBSRC,15/02/2022,Recruitment Costs,PDG - Director,Saxton Bampfylde Hever Ltd,99287607,696.00,Recruitment Costs
BEIS,UKRI - BBSRC,16/02/2022,International Subscriptions,International,Wheat Initiative,99274437,8470.99,International Subscriptions
BEIS,UKRI - BBSRC,16/02/2022,Other Programme Costs,CE - IRU,Unspecified,99288227,8890.27,Other Programme Costs
BEIS,UKRI - BBSRC,16/02/2022,Research Grant Expenditure,SPF W1 EMBL EBI,EMBL (European Molecular Biology Laboratory),99295578,11804.24,Research Grant Expenditure
BEIS,UKRI - BBSRC,16/02/2022,International Awards - Non Capital,GCRF Awards,University of the West of England,99295608,89878.41,International Awards - Non Capital
BEIS,UKRI - BBSRC,17/02/2022,Research Institutes - Capital Grants: Minor Works,Pirbright,The Pirbright Institute,99288344,1147.22,Research Institutes - Capital Grants: Minor Works
BEIS,UKRI - BBSRC,17/02/2022,Research Institutes - Capital Grants: Minor Works,Pirbright,The Pirbright Institute,99288351,53351.58,Research Institutes - Capital Grants: Minor Works
BEIS,UKRI - BBSRC,17/02/2022,Research Institutes - Capital Grants: Minor Works,Rothamsted Research,Rothamsted Research Ltd,99288355,16800.00,Research Institutes - Capital Grants: Minor Works
BEIS,UKRI - BBSRC,17/02/2022,Unspecified,CIMG - External Relations,Unspecified,99297446,715.85,Other Income
BEIS,UKRI - BBSRC,17/02/2022,International Awards - Non Capital,GCRF Awards,NIAB (National Institute of Agricultural Botany),99301569,108154.63,International Awards - Non Capital
BEIS,UKRI - BBSRC,17/02/2022,Research Institutes - Capital Grants: Minor Works,Pirbright,The Pirbright Institute,99305421,2930.00,Research Institutes - Capital Grants: Minor Works
BEIS,UKRI - BBSRC,17/02/2022,Unspecified,FG - Estates,Womble Bond Dickinson LLP,99305513,1200.00,Legal & Professional Services
BEIS,UKRI - BBSRC,18/02/2022,Research Institutes - Capital Grants: Minor Works,Rothamsted Research,Rothamsted Research Ltd,99273628,40662.00,Research Institutes - Capital Grants: Minor Works
BEIS,UKRI - BBSRC,18/02/2022,Research Institutes - Capital Grants: Minor Works,JIC,John Innes Centre,99275114,134256.96,Research Institutes - Capital Grants: Minor Works
BEIS,UKRI - BBSRC,18/02/2022,Research Institutes - Capital Grants: Minor Works,JIC,John Innes Centre,99288291,102353.38,Research Institutes - Capital Grants: Minor Works
BEIS,UKRI - BBSRC,18/02/2022,Research Institutes - Capital Grants: Minor Works,JIC,John Innes Centre,99288292,19408.68,Research Institutes - Capital Grants: Minor Works
BEIS,UKRI - BBSRC,18/02/2022,Research Institutes - Capital Grants: Minor Works,JIC,John Innes Centre,99288294,9715.50,Research Institutes - Capital Grants: Minor Works
BEIS,UKRI - BBSRC,18/02/2022,Research Institutes - Capital Grants: Minor Works,JIC,John Innes Centre,99288297,62730.71,Research Institutes - Capital Grants: Minor Works
BEIS,UKRI - BBSRC,18/02/2022,Research Institutes - Capital Grants: Minor Works,JIC,John Innes Centre,99288298,210151.34,Research Institutes - Capital Grants: Minor Works
BEIS,UKRI - BBSRC,18/02/2022,Research Institutes - Capital Grants: Minor Works,JIC,John Innes Centre,99288307,16128.32,Research Institutes - Capital Grants: Minor Works
BEIS,UKRI - BBSRC,18/02/2022,Research Institutes - Capital Grants: Minor Works,Pirbright,The Pirbright Institute,99288345,20551.20,Research Institutes - Capital Grants: Minor Works
BEIS,UKRI - BBSRC,18/02/2022,Research Institutes - Capital Grants: Minor Works,Pirbright,The Pirbright Institute,99288347,90243.62,Research Institutes - Capital Grants: Minor Works
BEIS,UKRI - BBSRC,18/02/2022,Research Institutes - Capital Grants: Minor Works,Pirbright,The Pirbright Institute,99288348,11695.61,Research Institutes - Capital Grants: Minor Works
BEIS,UKRI - BBSRC,18/02/2022,Research Institutes - Capital Grants: Minor Works,Rothamsted Research,Rothamsted Research Ltd,99289432,4860.00,Research Institutes - Capital Grants: Minor Works
BEIS,UKRI - BBSRC,18/02/2022,Research Grant Expenditure,NPIF EMBL EBI,EMBL (European Molecular Biology Laboratory),99305917,9025.00,Research Grant Expenditure
BEIS,UKRI - BBSRC,18/02/2022,GPC Clearing - BBSRC,Balance Sheet,Unspecified,99306313,-0.98,GPC Clearing - BBSRC
BEIS,UKRI - BBSRC,18/02/2022,Research Institutes - Capital Grants: Minor Works,JIC,John Innes Centre,99311433,28990.20,Research Institutes - Capital Grants: Minor Works
BEIS,UKRI - BBSRC,18/02/2022,Research Institutes - Capital Grants: Major Works,Pirbright,The Pirbright Institute,99313468,23779.78,Research Institutes - Capital Grants: Major Works
BEIS,UKRI - BBSRC,18/02/2022,Research Grant Expenditure,SPF W1 EMBL EBI,EMBL (European Molecular Biology Laboratory),99313470,2952.80,Research Grant Expenditure
BEIS,UKRI - BBSRC,18/02/2022,Research Grant Expenditure,SPF W1 EMBL EBI,EMBL (European Molecular Biology Laboratory),99313477,32007.98,Research Grant Expenditure
BEIS,UKRI - BBSRC,18/02/2022,Research Grant Expenditure,SPF W1 EMBL EBI,EMBL (European Molecular Biology Laboratory),99313485,158973.38,Research Grant Expenditure
BEIS,UKRI - BBSRC,18/02/2022,Health & Safety (inc. Medicals & Opticians),Science Group,Unspecified,99314415,100.00,Health & Safety (inc. Medicals & Opticians)
BEIS,UKRI - BBSRC,21/02/2022,T&S UK - Vehicle Hire,FG - Estates,Enterprise Rent-A-Car UK Ltd,99274508,123.20,T&S UK - Vehicle Hire
BEIS,UKRI - BBSRC,21/02/2022,T&S UK - Vehicle Hire,FG - Estates,Enterprise Rent-A-Car UK Ltd,99274508,24.64,T&S UK - Vehicle Hire
BEIS,UKRI - BBSRC,21/02/2022,Recruitment Costs,PDG - Director,Saxton Bampfylde Hever Ltd,99287609,666.00,Recruitment Costs
BEIS,UKRI - BBSRC,21/02/2022,Recruitment Costs,PDG - Director,Saxton Bampfylde Hever Ltd,99287609,792.00,Recruitment Costs
BEIS,UKRI - BBSRC,21/02/2022,Research Grant Expenditure,SPF W2 Food Systems,The Collective Facilitation Ltd,99314499,6528.00,Research Grant Expenditure
BEIS,UKRI - BBSRC,22/02/2022,Research Grant Expenditure,Research: Strategic,John Innes Centre,99248699,193250.00,Research Grant Expenditure
BEIS,UKRI - BBSRC,22/02/2022,Research Institutes - Competitive Strategic Grant,Babraham Institute,Babraham Institute,99248721,352459.91,Research Institutes - Competitive Strategic Grant
BEIS,UKRI - BBSRC,22/02/2022,Research Institutes - Competitive Strategic Grant,Babraham Institute,Babraham Institute,99248721,48750.01,Research Institutes - Competitive Strategic Grant
BEIS,UKRI - BBSRC,22/02/2022,Research Institutes - Competitive Strategic Grant,Babraham Institute,Babraham Institute,99248721,395666.75,Research Institutes - Competitive Strategic Grant
BEIS,UKRI - BBSRC,22/02/2022,Research Institutes - Competitive Strategic Grant,Babraham Institute,Babraham Institute,99248721,5833.33,Research Institutes - Competitive Strategic Grant
BEIS,UKRI - BBSRC,22/02/2022,Research Grant Expenditure,Research: Strategic,Quadram Institute Bioscience,99248730,193250.00,Research Grant Expenditure
BEIS,UKRI - BBSRC,22/02/2022,Research Institutes - Competitive Strategic Grant,JIC,John Innes Centre,99248804,21999.99,Research Institutes - Competitive Strategic Grant
BEIS,UKRI - BBSRC,22/02/2022,Research Institutes - Competitive Strategic Grant,JIC,John Innes Centre,99248804,511416.52,Research Institutes - Competitive Strategic Grant
BEIS,UKRI - BBSRC,22/02/2022,Research Institutes - Competitive Strategic Grant,JIC,John Innes Centre,99248804,65333.31,Research Institutes - Competitive Strategic Grant
BEIS,UKRI - BBSRC,22/02/2022,Research Institutes - Competitive Strategic Grant,JIC,John Innes Centre,99248804,501249.85,Research Institutes - Competitive Strategic Grant
BEIS,UKRI - BBSRC,22/02/2022,Research Institutes - Competitive Strategic Grant,JIC,John Innes Centre,99248804,7083.33,Research Institutes - Competitive Strategic Grant
BEIS,UKRI - BBSRC,22/02/2022,Research Institutes - Competitive Strategic Grant,TGAC,Earlham Institute,99248825,163172.03,Research Institutes - Competitive Strategic Grant
BEIS,UKRI - BBSRC,22/02/2022,Research Institutes - Competitive Strategic Grant,TGAC,Earlham Institute,99248825,81239.48,Research Institutes - Competitive Strategic Grant
BEIS,UKRI - BBSRC,22/02/2022,Research Institutes - Competitive Strategic Grant,TGAC,Earlham Institute,99248825,42166.70,Research Institutes - Competitive Strategic Grant
BEIS,UKRI - BBSRC,22/02/2022,Research Institutes - Competitive Strategic Grant,TGAC,Earlham Institute,99248825,33333.36,Research Institutes - Competitive Strategic Grant
BEIS,UKRI - BBSRC,22/02/2022,Research Institutes - Competitive Strategic Grant,TGAC,Earlham Institute,99248825,121088.76,Research Institutes - Competitive Strategic Grant
BEIS,UKRI - BBSRC,22/02/2022,Research Institutes - Competitive Strategic Grant,TGAC,Earlham Institute,99248825,2916.67,Research Institutes - Competitive Strategic Grant
BEIS,UKRI - BBSRC,22/02/2022,Research Grant Expenditure,Research: Strategic,Rothamsted Research Ltd,99248849,40200.00,Research Grant Expenditure
BEIS,UKRI - BBSRC,22/02/2022,Research Institutes - Competitive Strategic Grant,Rothamsted Research,Rothamsted Research Ltd,99248858,104789.47,Research Institutes - Competitive Strategic Grant
BEIS,UKRI - BBSRC,22/02/2022,Research Institutes - Competitive Strategic Grant,Rothamsted Research,Rothamsted Research Ltd,99248858,440495.03,Research Institutes - Competitive Strategic Grant
BEIS,UKRI - BBSRC,22/02/2022,Research Institutes - Competitive Strategic Grant,Rothamsted Research,Rothamsted Research Ltd,99248858,60909.50,Research Institutes - Competitive Strategic Grant
BEIS,UKRI - BBSRC,22/02/2022,Research Institutes - Competitive Strategic Grant,Rothamsted Research,Rothamsted Research Ltd,99248858,185554.21,Research Institutes - Competitive Strategic Grant
BEIS,UKRI - BBSRC,22/02/2022,Research Institutes - Competitive Strategic Grant,Rothamsted Research,Rothamsted Research Ltd,99248858,6671.79,Research Institutes - Competitive Strategic Grant
BEIS,UKRI - BBSRC,22/02/2022,Research Grant Expenditure,Research: Strategic,Earlham Institute,99249625,193250.00,Research Grant Expenditure
BEIS,UKRI - BBSRC,22/02/2022,Research Institutes - Competitive Strategic Grant,IFR,Quadram Institute Bioscience,99249685,23624.41,Research Institutes - Competitive Strategic Grant
BEIS,UKRI - BBSRC,22/02/2022,Research Institutes - Competitive Strategic Grant,IFR,Quadram Institute Bioscience,99249685,347920.37,Research Institutes - Competitive Strategic Grant
BEIS,UKRI - BBSRC,22/02/2022,Research Institutes - Competitive Strategic Grant,IFR,Quadram Institute Bioscience,99249685,46083.32,Research Institutes - Competitive Strategic Grant
BEIS,UKRI - BBSRC,22/02/2022,Research Institutes - Competitive Strategic Grant,IFR,Quadram Institute Bioscience,99249685,261521.57,Research Institutes - Competitive Strategic Grant
BEIS,UKRI - BBSRC,22/02/2022,Research Institutes - Competitive Strategic Grant,IFR,Quadram Institute Bioscience,99249685,5833.33,Research Institutes - Competitive Strategic Grant
BEIS,UKRI - BBSRC,22/02/2022,Research Grant Expenditure,Research: Strategic,Babraham Institute,99249752,154600.00,Research Grant Expenditure
BEIS,UKRI - BBSRC,22/02/2022,Research Institutes - Competitive Strategic Grant,EBRC (Roslin),University of Edinburgh,99273722,277179.92,Research Institutes - Competitive Strategic Grant
BEIS,UKRI - BBSRC,22/02/2022,Research Institutes - Competitive Strategic Grant,EBRC (Roslin),University of Edinburgh,99273722,206087.50,Research Institutes - Competitive Strategic Grant
BEIS,UKRI - BBSRC,22/02/2022,Research Institutes - Competitive Strategic Grant,EBRC (Roslin),University of Edinburgh,99273722,5833.33,Research Institutes - Competitive Strategic Grant
BEIS,UKRI - BBSRC,22/02/2022,Research Grant Expenditure,Research: Strategic,University of Edinburgh,99273723,40684.21,Research Grant Expenditure
BEIS,UKRI - BBSRC,22/02/2022,Research Institutes - Capital Grants: Minor Works,IFR,Quadram Institute Bioscience,99275253,5635.87,Research Institutes - Capital Grants: Minor Works
BEIS,UKRI - BBSRC,22/02/2022,Research Institutes - Capital Grants: Minor Works,Rothamsted Research,Rothamsted Research Ltd,99288353,17700.00,Research Institutes - Capital Grants: Minor Works
BEIS,UKRI - BBSRC,22/02/2022,Research Institutes - Competitive Strategic Grant,Pirbright,The Pirbright Institute,99305793,817500.04,Research Institutes - Competitive Strategic Grant
BEIS,UKRI - BBSRC,22/02/2022,Research Institutes - Competitive Strategic Grant,Pirbright,The Pirbright Institute,99305793,231500.01,Research Institutes - Competitive Strategic Grant
BEIS,UKRI - BBSRC,22/02/2022,Research Institutes - Competitive Strategic Grant,Pirbright,The Pirbright Institute,99305793,33333.34,Research Institutes - Competitive Strategic Grant
BEIS,UKRI - BBSRC,22/02/2022,Research Institutes - Competitive Strategic Grant,Pirbright,The Pirbright Institute,99305793,201083.35,Research Institutes - Competitive Strategic Grant
BEIS,UKRI - BBSRC,22/02/2022,Research Institutes - Competitive Strategic Grant,Pirbright,The Pirbright Institute,99305793,4166.67,Research Institutes - Competitive Strategic Grant
BEIS,UKRI - BBSRC,22/02/2022,Research Institutes - Capital Grants: Minor Works,Rothamsted Research,Rothamsted Research Ltd,99305996,165388.28,Research Institutes - Capital Grants: Minor Works
BEIS,UKRI - BBSRC,22/02/2022,Research Institutes - Capital Grants: Minor Works,Babraham Institute,Babraham Institute,99306445,67683.33,Research Institutes - Capital Grants: Minor Works
BEIS,UKRI - BBSRC,22/02/2022,Research Grant Expenditure,Rothamsted Research,Rothamsted Research Ltd,99310456,2410.00,Research Grant Expenditure
BEIS,UKRI - BBSRC,22/02/2022,Research Institutes - Competitive Strategic Grant,IBERS,Aberystwyth University,99317488,86360.99,Research Institutes - Competitive Strategic Grant
BEIS,UKRI - BBSRC,22/02/2022,Research Institutes - Competitive Strategic Grant,IBERS,Aberystwyth University,99317488,46980.67,Research Institutes - Competitive Strategic Grant
BEIS,UKRI - BBSRC,22/02/2022,Research Institutes - Competitive Strategic Grant,IBERS,Aberystwyth University,99317488,2916.67,Research Institutes - Competitive Strategic Grant
BEIS,UKRI - BBSRC,22/02/2022,Research Grant Expenditure,Research: Strategic,Aberystwyth University,99317490,193250.00,Research Grant Expenditure
BEIS,UKRI - BBSRC,22/02/2022,T&S UK - Vehicle Hire,CIMG - Director,Enterprise Rent-A-Car UK Ltd,99319692,25.11,T&S UK - Vehicle Hire
BEIS,UKRI - BBSRC,22/02/2022,T&S UK - Vehicle Hire,CIMG - Director,Enterprise Rent-A-Car UK Ltd,99319692,125.55,T&S UK - Vehicle Hire
BEIS,UKRI - BBSRC,22/02/2022,T&S UK - Subsistence,CIMG - Director,Unspecified,99319760,49.90,T&S UK - Subsistence
BEIS,UKRI - BBSRC,22/02/2022,T&S UK - Subsistence,CIMG - Director,Unspecified,99319760,7.10,T&S UK - Subsistence
BEIS,UKRI - BBSRC,22/02/2022,T&S UK - Vehicle Hire,CIMG - Director,Unspecified,99319760,120.91,T&S UK - Vehicle Hire
BEIS,UKRI - BBSRC,23/02/2022,Research Institutes - Capital Grants: Minor Works,JIC,John Innes Centre,99248798,1464721.99,Research Institutes - Capital Grants: Minor Works
BEIS,UKRI - BBSRC,23/02/2022,Research Institutes - Capital Grants: Minor Works,JIC,John Innes Centre,99248801,1270201.00,Research Institutes - Capital Grants: Minor Works
BEIS,UKRI - BBSRC,23/02/2022,Research Institutes - Capital Grants: Minor Works,TGAC,Earlham Institute,99248835,707000.00,Research Institutes - Capital Grants: Minor Works
BEIS,UKRI - BBSRC,23/02/2022,Research Institutes - Competitive Strategic Grant,Rothamsted Research,Rothamsted Research Ltd,99249968,1730000.00,Research Institutes - Competitive Strategic Grant
BEIS,UKRI - BBSRC,23/02/2022,Research Grant Expenditure,SPF W1 EMBL EBI,EMBL (European Molecular Biology Laboratory),99273665,341858.34,Research Grant Expenditure
BEIS,UKRI - BBSRC,23/02/2022,Research Institutes - Capital Grants: Minor Works,IFR,Quadram Institute Bioscience,99275387,248015.38,Research Institutes - Capital Grants: Minor Works
BEIS,UKRI - BBSRC,23/02/2022,Research Grant Expenditure,SPF W1 EMBL EBI,EMBL (European Molecular Biology Laboratory),99305881,407782.74,Research Grant Expenditure
BEIS,UKRI - BBSRC,23/02/2022,Research Grant Expenditure,SPF W1 EMBL EBI,EMBL (European Molecular Biology Laboratory),99305913,199700.00,Research Grant Expenditure
BEIS,UKRI - BBSRC,23/02/2022,Research Grant Expenditure,SPF W1 EMBL EBI,EMBL (European Molecular Biology Laboratory),99305972,220.00,Research Grant Expenditure
BEIS,UKRI - BBSRC,23/02/2022,Research Grant Expenditure,NPIF EMBL EBI,EMBL (European Molecular Biology Laboratory),99305973,92070.00,Research Grant Expenditure
BEIS,UKRI - BBSRC,23/02/2022,Research Institutes - Capital Grants: Minor Works,Rothamsted Research,Rothamsted Research Ltd,99306352,11958.00,Research Institutes - Capital Grants: Minor Works
BEIS,UKRI - BBSRC,23/02/2022,Research Institutes - Capital Grants: Minor Works,Rothamsted Research,Rothamsted Research Ltd,99306359,27659.12,Research Institutes - Capital Grants: Minor Works
BEIS,UKRI - BBSRC,23/02/2022,Research Grant Expenditure,SPF W1 EMBL EBI,EMBL (European Molecular Biology Laboratory),99306414,1052374.86,Research Grant Expenditure
BEIS,UKRI - BBSRC,23/02/2022,Research Grant Expenditure,SPF W1 EMBL EBI,EMBL (European Molecular Biology Laboratory),99313498,266.06,Research Grant Expenditure
BEIS,UKRI - BBSRC,23/02/2022,Research Grant Expenditure,NPIF EMBL EBI,EMBL (European Molecular Biology Laboratory),99313499,257491.80,Research Grant Expenditure
BEIS,UKRI - BBSRC,23/02/2022,Research Grant Expenditure,SPF W1 EMBL EBI,EMBL (European Molecular Biology Laboratory),99313532,433.56,Research Grant Expenditure
BEIS,UKRI - BBSRC,23/02/2022,Research Institutes - Capital Grants: Minor Works,Rothamsted Research,Rothamsted Research Ltd,99314501,998347.94,Research Institutes - Capital Grants: Minor Works
BEIS,UKRI - BBSRC,23/02/2022,Research Institutes - Capital Grants: Minor Works,Rothamsted Research,Rothamsted Research Ltd,99314504,897766.50,Research Institutes - Capital Grants: Minor Works
BEIS,UKRI - BBSRC,23/02/2022,Research Institutes - Capital Grants: Minor Works,Rothamsted Research,Rothamsted Research Ltd,99314506,721200.00,Research Institutes - Capital Grants: Minor Works
BEIS,UKRI - BBSRC,23/02/2022,Research Grant Expenditure,SPF W1 EMBL EBI,EMBL (European Molecular Biology Laboratory),99314511,105814.50,Research Grant Expenditure
BEIS,UKRI - BBSRC,23/02/2022,Research Grant Expenditure,SPF W1 EMBL EBI,EMBL (European Molecular Biology Laboratory),99315443,150095.25,Research Grant Expenditure
BEIS,UKRI - BBSRC,23/02/2022,Research Grant Expenditure,SPF W1 EMBL EBI,EMBL (European Molecular Biology Laboratory),99315448,44079.57,Research Grant Expenditure
BEIS,UKRI - BBSRC,23/02/2022,Research Grant Expenditure,SPF W1 EMBL EBI,EMBL (European Molecular Biology Laboratory),99315450,50641.56,Research Grant Expenditure
BEIS,UKRI - BBSRC,23/02/2022,Research Grant Expenditure,SPF W1 EMBL EBI,EMBL (European Molecular Biology Laboratory),99319570,410320.94,Research Grant Expenditure
BEIS,UKRI - BBSRC,23/02/2022,Fees (Including College Members),Science Group – Admin Function,Unspecified,99319803,170.00,Fees (Including College Members)
BEIS,UKRI - BBSRC,23/02/2022,Fees (Including College Members),Science Group – Admin Function,Unspecified,99319804,170.00,Fees (Including College Members)
BEIS,UKRI - BBSRC,23/02/2022,Fees (Including College Members),Science Group – Admin Function,Unspecified,99319805,170.00,Fees (Including College Members)
BEIS,UKRI - BBSRC,23/02/2022,Fees (Including College Members),Science Group – Admin Function,Unspecified,99319806,170.00,Fees (Including College Members)
BEIS,UKRI - BBSRC,23/02/2022,Fees (Including College Members),Science Group – Admin Function,Unspecified,99319807,170.00,Fees (Including College Members)
BEIS,UKRI - BBSRC,23/02/2022,Fees (Including College Members),Science Group – Admin Function,Unspecified,99319808,170.00,Fees (Including College Members)
BEIS,UKRI - BBSRC,23/02/2022,Fees (Including College Members),Science Group – Admin Function,Unspecified,99319809,170.00,Fees (Including College Members)
BEIS,UKRI - BBSRC,23/02/2022,Fees (Including College Members),Science Group - Delivery Function,Unspecified,99319810,170.00,Fees (Including College Members)
BEIS,UKRI - BBSRC,23/02/2022,Fees (Including College Members),Science Group – Admin Function,Unspecified,99319811,170.00,Fees (Including College Members)
BEIS,UKRI - BBSRC,23/02/2022,Fees (Including College Members),Science Group – Admin Function,Unspecified,99319812,340.00,Fees (Including College Members)
BEIS,UKRI - BBSRC,23/02/2022,Fees (Including College Members),Science Group – Admin Function,Unspecified,99319813,170.00,Fees (Including College Members)
BEIS,UKRI - BBSRC,23/02/2022,Fees (Including College Members),Science Group - Delivery Function,Unspecified,99319814,170.00,Fees (Including College Members)
BEIS,UKRI - BBSRC,23/02/2022,Fees (Including College Members),Science Group – Admin Function,Unspecified,99319815,170.00,Fees (Including College Members)
BEIS,UKRI - BBSRC,23/02/2022,Fees (Including College Members),Science Group – Admin Function,Unspecified,99319816,170.00,Fees (Including College Members)
BEIS,UKRI - BBSRC,23/02/2022,Fees (Including College Members),Science Group – Admin Function,Unspecified,99319817,170.00,Fees (Including College Members)
BEIS,UKRI - BBSRC,23/02/2022,Fees (Including College Members),Science Group – Admin Function,Unspecified,99319818,170.00,Fees (Including College Members)
BEIS,UKRI - BBSRC,23/02/2022,Fees (Including College Members),Science Group – Admin Function,Unspecified,99319819,170.00,Fees (Including College Members)
BEIS,UKRI - BBSRC,23/02/2022,Other Programme Costs,CE - IRU,Unspecified,99320015,3401.89,Other Programme Costs
BEIS,UKRI - BBSRC,23/02/2022,T&S UK - Other Charges,Science Group,Unspecified,99320396,40.00,T&S UK - Other Charges
BEIS,UKRI - BBSRC,24/02/2022,T&S UK - Other Charges,Innovation and Skills Group CDSU,Unspecified,99273435,14.99,T&S UK - Other Charges
BEIS,UKRI - BBSRC,24/02/2022,Research Grant Expenditure,Research: Strategic,The Pirbright Institute,99320494,193250.00,Research Grant Expenditure
BEIS,UKRI - BBSRC,25/02/2022,Fees (Including College Members),Science Group – Admin Function,Unspecified,99320790,170.00,Fees (Including College Members)
BEIS,UKRI - BBSRC,25/02/2022,Fees (Including College Members),Science Group – Admin Function,Unspecified,99320791,170.00,Fees (Including College Members)
BEIS,UKRI - BBSRC,25/02/2022,Fees (Including College Members),Science Group – Admin Function,Unspecified,99320792,170.00,Fees (Including College Members)
BEIS,UKRI - BBSRC,25/02/2022,Fees (Including College Members),Science Group – Admin Function,Unspecified,99320793,170.00,Fees (Including College Members)
BEIS,UKRI - BBSRC,25/02/2022,Fees (Including College Members),Science Group – Admin Function,Unspecified,99320840,170.00,Fees (Including College Members)
BEIS,UKRI - BBSRC,25/02/2022,Fees (Including College Members),Science Group – Admin Function,Unspecified,99320841,170.00,Fees (Including College Members)
BEIS,UKRI - BBSRC,25/02/2022,Fees (Including College Members),Science Group – Admin Function,Unspecified,99320842,170.00,Fees (Including College Members)
BEIS,UKRI - BBSRC,25/02/2022,Fees (Including College Members),Science Group – Admin Function,Unspecified,99320843,170.00,Fees (Including College Members)
BEIS,UKRI - BBSRC,25/02/2022,Fees (Including College Members),Science Group – Admin Function,Unspecified,99320844,340.00,Fees (Including College Members)
BEIS,UKRI - BBSRC,25/02/2022,Fees (Including College Members),Science Group – Admin Function,Unspecified,99320845,170.00,Fees (Including College Members)
BEIS,UKRI - BBSRC,25/02/2022,T&S UK - Other Charges,CIMG - Information Management,Unspecified,99323194,154.98,T&S UK - Other Charges
BEIS,UKRI - BBSRC,28/02/2022,Recruitment Costs,PDG - Director,Saxton Bampfylde Hever Ltd,99320836,10999.20,Recruitment Costs
BEIS,UKRI - BBSRC,28/02/2022,Recruitment Costs,PDG - Director,Saxton Bampfylde Hever Ltd,99320836,0.80,Recruitment Costs
BEIS,UKRI - BBSRC,28/02/2022,Research Institutes - Capital Grants: Major Works,Pirbright,The Pirbright Institute,99323283,17237.74,Research Institutes - Capital Grants: Major Works
BEIS,UKRI - UKRI,01/02/2022,Computer Software,UKRI - Digital Data and Technology BAU Costs,Elsevier B.V.,99166421,16601.31,Computer Software
BEIS,UKRI - UKRI,01/02/2022,Unspecified,UKRI - UKRO,UKRI - Science & Technology Facilities Council,99177783,45830.74,Recharges From Councils - Salary
BEIS,UKRI - UKRI,01/02/2022,Computer Software,UKRI - Digital Data and Technology BAU Costs,Trycon Technologies Private Ltd (Scanova),99183362,658.10,Computer Software
BEIS,UKRI - EPSRC,01/02/2022,Unspecified,EDI and People,University of Edinburgh,99200428,3712.20,Secondments
BEIS,UKRI - EPSRC,01/02/2022,Unspecified,EDI and People,University of Edinburgh,99200428,778.80,Secondments
BEIS,UKRI - UKRI,01/02/2022,International Subscriptions,Open Access,CODATA,99202444,12437.73,International Subscriptions
BEIS,UKRI - UKRI,01/02/2022,Computing Consumables,UKRI Strategic HR Business Partners,Banner Group Ltd,99206463,46.15,Computing Consumables
BEIS,UKRI - UKRI,01/02/2022,Computing Consumables,UKRI Strategic HR Business Partners,Banner Group Ltd,99206463,72.28,Computing Consumables
BEIS,UKRI - UKRI,01/02/2022,Computing Consumables,UKRI Strategic HR Business Partners,Banner Group Ltd,99206463,77.50,Computing Consumables
BEIS,UKRI - UKRI,01/02/2022,Computing Consumables,UKRI Strategic HR Business Partners,Banner Group Ltd,99206463,72.28,Computing Consumables
BEIS,UKRI - UKRI,01/02/2022,Computing Consumables,UKRI Strategic HR Business Partners,Banner Group Ltd,99206463,77.50,Computing Consumables
BEIS,UKRI - UKRI,01/02/2022,Computing Consumables,UKRI Strategic HR Business Partners,Banner Group Ltd,99206463,71.10,Computing Consumables
BEIS,UKRI - UKRI,01/02/2022,Computing Consumables,UKRI Strategic HR Business Partners,Banner Group Ltd,99206463,77.50,Computing Consumables
BEIS,UKRI - Research England,01/02/2022,Unspecified,RE - Research Excellence Framework (REF),King's College London,99206519,16250.00,Council & Committee Honoraria
BEIS,UKRI - Research England,01/02/2022,Unspecified,RE - Research Excellence Framework (REF),University of York,99206986,12540.13,Council & Committee Honoraria
BEIS,UKRI - UKRI,01/02/2022,Advertising & Promotion,UKRI - Communications Content,Unspecified,99206998,509.60,Advertising & Promotion
BEIS,UKRI - UKRI,01/02/2022,Unspecified,UKRI - Estates,Hays Specialist Recruitment Ltd,99207386,3398.18,Agency Staff
BEIS,UKRI - UKRI,01/02/2022,Unspecified,UKRI - Strategic Finance Business Partners,Alexander Mann Solutions Ltd,99207388,1260.12,Agency Staff
BEIS,UKRI - UKRI,01/02/2022,Unspecified,UKRI - Estates,Hays Specialist Recruitment Ltd,99207389,1984.87,Agency Staff
BEIS,UKRI - UKRI,01/02/2022,Staff Training,UKRI - Communications External Affairs,DELIB Ltd,99207390,180.00,Staff Training
BEIS,UKRI - UKRI,01/02/2022,Unspecified,Horizon Europe Scoping Phase OPEX,Alexander Mann Solutions Ltd,99207413,4989.01,Agency Staff
BEIS,UKRI - EPSRC,01/02/2022,Fees (Including College Members),SPF - AI & Data Science OpEx,Unspecified,99207420,310.06,Fees (Including College Members)
BEIS,UKRI - EPSRC,01/02/2022,Capital Grants & Equipment to HEIs,NC Infrastructure,UKRI - Medical Research Council,99212519,7455.50,Capital Grants & Equipment to HEIs
BEIS,UKRI - EPSRC,01/02/2022,Capital Grants & Equipment to HEIs,NC Infrastructure,UKRI - Medical Research Council,99212519,12600.00,Capital Grants & Equipment to HEIs
BEIS,UKRI - EPSRC,01/02/2022,Other Programme Costs,NC Infrastructure,UKRI - Medical Research Council,99212519,112794.50,Other Programme Costs
BEIS,UKRI - UKRI,01/02/2022,Computer Software,UKRI - Communications Content,Frontify AG,99212666,2470.36,Computer Software
BEIS,UKRI - UKRI,01/02/2022,Staff Training,UKRI - Project Management Office,KNOWLEDGE TRAIN LTD,99222416,1980.00,Staff Training
BEIS,UKRI - EPSRC,01/02/2022,Fees (Including College Members),Business Improvement,Unspecified,99223430,319.83,Fees (Including College Members)
BEIS,UKRI - UKRI,01/02/2022,Unspecified,UKRI - Governance,Alexander Mann Solutions Ltd,99224427,6805.97,Contract Staff
BEIS,UKRI - UKRI,01/02/2022,Realised Gains,UKRI - UKRO,UK Research Office,99225416,30482.51,Realised Gains
BEIS,UKRI - EPSRC,01/02/2022,T&S UK - Other Charges,Programme Delivery Impact,Abbey Business Interiors Ltd,99226616,368.40,T&S UK - Other Charges
BEIS,UKRI - EPSRC,01/02/2022,Fees (Including College Members),Business Improvement,Unspecified,99226645,320.00,Fees (Including College Members)
BEIS,UKRI - EPSRC,01/02/2022,Fees (Including College Members),Business Improvement,Unspecified,99226646,320.00,Fees (Including College Members)
BEIS,UKRI - EPSRC,01/02/2022,Fees (Including College Members),Business Improvement,Unspecified,99226647,320.00,Fees (Including College Members)
BEIS,UKRI - EPSRC,01/02/2022,Fees (Including College Members),Business Improvement,Unspecified,99226648,320.00,Fees (Including College Members)
BEIS,UKRI - EPSRC,01/02/2022,Fees (Including College Members),Business Improvement,Unspecified,99226649,320.00,Fees (Including College Members)
BEIS,UKRI - EPSRC,01/02/2022,Fees (Including College Members),Business Improvement,Unspecified,99226650,320.00,Fees (Including College Members)
BEIS,UKRI - Research England,01/02/2022,Non-staff travel and subsistance,RE - Research Excellence Framework (REF),Muya Research Management Ltd,99226700,9.00,Non-staff travel and subsistance
BEIS,UKRI - UKRI,01/02/2022,Conferences & Seminars,UKRI - Communications External Affairs,Brenda Grant and Peter Walker T/A Vista Events,99226734,4530.50,Conferences & Seminars
BEIS,UKRI - UKRI,01/02/2022,T&S UK - Other Charges,UKRI - Strategic Finance Business Partners,Unspecified,99226762,100.00,T&S UK - Other Charges
BEIS,UKRI - UKRI,01/02/2022,T&S UK - Other Charges,UKRI - Digital Data and Technology BAU Costs,Unspecified,99226763,74.50,T&S UK - Other Charges
BEIS,UKRI - UKRI,01/02/2022,T&S UK - Mileage,UKRI - External Communications,Unspecified,99226765,25.09,T&S UK - Mileage
BEIS,UKRI - EPSRC,01/02/2022,Meetings & Catering,Programme Delivery Manufacturing,Calder Conference Ltd,99226860,200.00,Meetings & Catering
BEIS,UKRI - UKRI,01/02/2022,Unspecified,UKRI - Estates,AM Health & Safety Ltd,99231415,63.00,Legal & Professional Services
BEIS,UKRI - UKRI,01/02/2022,Corporate Events,UKRI - Communications Projects and Services,Scarecrow Events Ltd,99232419,792.00,Corporate Events
BEIS,UKRI - UKRI,01/02/2022,Corporate Events,UKRI - Communications Projects and Services,Scarecrow Events Ltd,99232421,9582.00,Corporate Events
BEIS,UKRI - UKRI,01/02/2022,Printing & Stationery,UKRI - JBOS,Premier Farnell UK Ltd T/A Farnell Onecall,99232531,1759.20,Printing & Stationery
BEIS,UKRI - UKRI,01/02/2022,Mechanical & Electrical Maintenance,UKRI - Estates,Premier Farnell UK Ltd T/A Farnell Onecall,99232532,2.57,Mechanical & Electrical Maintenance
BEIS,UKRI - UKRI,01/02/2022,Mechanical & Electrical Maintenance,UKRI - Estates,Premier Farnell UK Ltd T/A Farnell Onecall,99232533,5.23,Mechanical & Electrical Maintenance
BEIS,UKRI - UKRI,01/02/2022,Mechanical & Electrical Maintenance,UKRI - Estates,Premier Farnell UK Ltd T/A Farnell Onecall,99232533,6.19,Mechanical & Electrical Maintenance
BEIS,UKRI - UKRI,01/02/2022,Unspecified,UKRI - Executive Group,Department for Business Energy & Industrial Strategy,99233433,7719.95,Secondments
BEIS,UKRI - UKRI,01/02/2022,Advertising & Promotion,UKRI - Communications Themes and Partnerships,Echo Research Ltd,99236430,3000.00,Advertising & Promotion
BEIS,UKRI - Research England,01/02/2022,Unspecified,RE - Research Excellence Framework (REF),Muya Research Management Ltd,99237433,2850.00,Council & Committee Honoraria
BEIS,UKRI - UKRI,01/02/2022,Computer Software,UKRI - Digital Data and Technology BAU Costs,Solent Laptops Ltd,99239429,720.00,Computer Software
BEIS,UKRI - UKRI,01/02/2022,Consumables,UKRI - JRS,Antalis Ltd t/a Antalis Document Supplies,99239435,82.24,Consumables
BEIS,UKRI - UKRI,01/02/2022,Consumables,UKRI - JRS,Antalis Ltd t/a Antalis Document Supplies,99239435,263.64,Consumables
BEIS,UKRI - UKRI,01/02/2022,Consumables,UKRI - JRS,Antalis Ltd t/a Antalis Document Supplies,99239438,1440.00,Consumables
BEIS,UKRI - UKRI,01/02/2022,Consumables,UKRI - JRS,Antalis Ltd t/a Antalis Document Supplies,99239439,229.18,Consumables
BEIS,UKRI - Research England,02/02/2022,Meetings & Catering,RE - Research Excellence Framework (REF),Calder Conference Ltd,99064373,843.12,Meetings & Catering
BEIS,UKRI - UKRI,02/02/2022,Unspecified,UKRI - Digital Data and Technology Project Costs,Alexander Mann Solutions Ltd,99108126,1363.49,Contract Staff
BEIS,UKRI - UKRI,02/02/2022,Unspecified,UKRI - Digital Data and Technology Project Costs,Alexander Mann Solutions Ltd,99108126,2045.23,Contract Staff
BEIS,UKRI - UKRI,02/02/2022,Unspecified,UKRI - Funding Service,Alexander Mann Solutions Ltd,99190693,4619.52,Contract Staff
BEIS,UKRI - UKRI,02/02/2022,Unspecified,UKRI - Funding Service,Alexander Mann Solutions Ltd,99190706,3307.80,Contract Staff
BEIS,UKRI - UKRI,02/02/2022,Unspecified,UKRI - Digital Data and Technology Project Costs,Alexander Mann Solutions Ltd,99190709,2205.18,Contract Staff
BEIS,UKRI - UKRI,02/02/2022,Unspecified,UKRI - Digital Data and Technology BAU Costs,Alexander Mann Solutions Ltd,99190724,4431.36,Contract Staff
BEIS,UKRI - UKRI,02/02/2022,Unspecified,UKRI - Digital Data and Technology BAU Costs,Alexander Mann Solutions Ltd,99193431,2771.70,Contract Staff
BEIS,UKRI - UKRI,02/02/2022,Unspecified,UKRI - Digital Data and Technology BAU Costs,Alexander Mann Solutions Ltd,99193432,2771.70,Contract Staff
BEIS,UKRI - UKRI,02/02/2022,Health & Safety (inc. Medicals & Opticians),UKRI - Health and Safety,Posturite Ltd,99207072,153.55,Health & Safety (inc. Medicals & Opticians)
BEIS,UKRI - UKRI,02/02/2022,Unspecified,UKRI - Funding Service,Alexander Mann Solutions Ltd,99207309,4619.52,Contract Staff
BEIS,UKRI - UKRI,02/02/2022,Unspecified,UKRI - Funding Service,Alexander Mann Solutions Ltd,99207319,4896.66,Contract Staff
BEIS,UKRI - UKRI,02/02/2022,Unspecified,UKRI - Digital Data and Technology BAU Costs,Alexander Mann Solutions Ltd,99207393,4431.36,Contract Staff
BEIS,UKRI - UKRI,02/02/2022,Unspecified,UKRI - Digital Data and Technology BAU Costs,Alexander Mann Solutions Ltd,99207394,6153.95,Contract Staff
BEIS,UKRI - UKRI,02/02/2022,Unspecified,UKRI - Digital Data and Technology BAU Costs,Alexander Mann Solutions Ltd,99207398,2771.70,Contract Staff
BEIS,UKRI - UKRI,02/02/2022,Unspecified,UKRI - Digital Data and Technology Project Costs,LA International Computer Consultants Ltd,99208427,2320.08,Contract Staff
BEIS,UKRI - UKRI,02/02/2022,Unspecified,UKRI - Digital Data and Technology Project Costs,Alexander Mann Solutions Ltd,99222421,3780.36,Contract Staff
BEIS,UKRI - UKRI,02/02/2022,Unspecified,UKRI - Digital Data and Technology Project Costs,Alexander Mann Solutions Ltd,99223422,1868.76,Contract Staff
BEIS,UKRI - UKRI,02/02/2022,Unspecified,UKRI - Digital Data and Technology Project Costs,Alexander Mann Solutions Ltd,99223429,1497.60,Contract Staff
BEIS,UKRI - UKRI,02/02/2022,Unspecified,UKRI - Funding Service,Alexander Mann Solutions Ltd,99223445,4003.56,Contract Staff
BEIS,UKRI - UKRI,02/02/2022,Unspecified,UKRI - Funding Service,Alexander Mann Solutions Ltd,99224428,3307.80,Contract Staff
BEIS,UKRI - UKRI,02/02/2022,Unspecified,UKRI - Digital Data and Technology Project Costs,Alexander Mann Solutions Ltd,99224432,3387.66,Contract Staff
BEIS,UKRI - UKRI,02/02/2022,Unspecified,UKRI - Digital Data and Technology Project Costs,Alexander Mann Solutions Ltd,99224435,2205.18,Contract Staff
BEIS,UKRI - UKRI,02/02/2022,Unspecified,UKRI - Digital Data and Technology Project Costs,Alexander Mann Solutions Ltd,99225415,3272.35,Contract Staff
BEIS,UKRI - UKRI,02/02/2022,Computer Software,UKRI - Digital Data and Technology BAU Costs,Phoenix Software Ltd,99226669,-2321.14,Computer Software
BEIS,UKRI - UKRI,02/02/2022,Unspecified,"UKRI - Data Policy, Governance and MI",Department for Business Energy & Industrial Strategy,99227107,26418.60,Secondments
BEIS,UKRI - UKRI,02/02/2022,Unspecified,UKRI - BEIS ODA,Department for Business Energy & Industrial Strategy,99227109,14623.97,Secondments
BEIS,UKRI - UKRI,02/02/2022,Computer Software Licences,UKRI - Digital Data and Technology BAU Costs,Phoenix Software Ltd,99227136,37.14,Computer Software Licences
BEIS,UKRI - UKRI,02/02/2022,Computer Software Licences,UKRI - Digital Data and Technology BAU Costs,Phoenix Software Ltd,99227140,7.08,Computer Software Licences
BEIS,UKRI - UKRI,02/02/2022,Computer Software,UKRI - Digital Data and Technology BAU Costs,Phoenix Software Ltd,99227174,3354.60,Computer Software
BEIS,UKRI - UKRI,02/02/2022,Computer Software,UKRI - Digital Data and Technology BAU Costs,Phoenix Software Ltd,99227184,312.84,Computer Software
BEIS,UKRI - UKRI,02/02/2022,Computer Software,UKRI - Digital Data and Technology BAU Costs,Phoenix Software Ltd,99227189,7906.25,Computer Software
BEIS,UKRI - UKRI,02/02/2022,Purchase of non capital equipment,UKRI - JBOS,Abbey Business Interiors Ltd,99227224,1197.60,Purchase of non capital equipment
BEIS,UKRI - EPSRC,02/02/2022,Fees (Including College Members),Business Improvement,Unspecified,99227238,160.00,Fees (Including College Members)
BEIS,UKRI - EPSRC,02/02/2022,Fees (Including College Members),Business Improvement,Unspecified,99227239,160.00,Fees (Including College Members)
BEIS,UKRI - EPSRC,02/02/2022,Fees (Including College Members),Business Improvement,Unspecified,99227240,320.00,Fees (Including College Members)
BEIS,UKRI - EPSRC,02/02/2022,Fees (Including College Members),Business Improvement,Unspecified,99227241,320.00,Fees (Including College Members)
BEIS,UKRI - Research England,02/02/2022,Printing & Stationery,RE - Research Excellence Framework (REF),Banner Group Ltd,99227256,42.62,Printing & Stationery
BEIS,UKRI - Research England,02/02/2022,Printing & Stationery,RE - Research Excellence Framework (REF),Banner Group Ltd,99227256,27.76,Printing & Stationery
BEIS,UKRI - Research England,02/02/2022,Printing & Stationery,RE - Research Excellence Framework (REF),Banner Group Ltd,99227256,37.55,Printing & Stationery
BEIS,UKRI - Research England,02/02/2022,Printing & Stationery,RE - Research Excellence Framework (REF),Banner Group Ltd,99227256,4.15,Printing & Stationery
BEIS,UKRI - Research England,02/02/2022,Non-staff travel and subsistance,RE - Research Excellence Framework (REF),Muya Research Management Ltd,99227263,22.80,Non-staff travel and subsistance
BEIS,UKRI - UKRI,02/02/2022,Staff Training,UKRI - Internal Communications,The Chartered Institute of Public Relations (CIPR),99227281,360.00,Staff Training
BEIS,UKRI - UKRI,02/02/2022,UK - Professional Memberships & Subscriptions,UKRI - Procurement and Commercial,Unspecified,99227414,191.00,UK - Professional Memberships & Subscriptions
BEIS,UKRI - UKRI,02/02/2022,Staff Training,UKRI - Culture Leadership and Learning,Learning Solutions Matter Ltd,99230417,9360.00,Staff Training
BEIS,UKRI - UKRI,02/02/2022,Health & Safety (inc. Medicals & Opticians),UKRI - Health and Safety,AM Health & Safety Ltd,99231420,1230.00,Health & Safety (inc. Medicals & Opticians)
BEIS,UKRI - UKRI,02/02/2022,Health & Safety (inc. Medicals & Opticians),UKRI - Health and Safety,AM Health & Safety Ltd,99231424,552.00,Health & Safety (inc. Medicals & Opticians)
BEIS,UKRI - UKRI,02/02/2022,Unspecified,"UKRI - Data Policy, Governance and MI",Department for Business Energy & Industrial Strategy,99233421,111695.55,Secondments
BEIS,UKRI - UKRI,02/02/2022,Recruitment Costs,UKRI People and Organisation Development,Onefix Recruitment Ltd,99241418,342.00,Recruitment Costs
BEIS,UKRI - UKRI,02/02/2022,Recruitment Costs,UKRI People and Organisation Development,Onefix Recruitment Ltd,99241422,1284.00,Recruitment Costs
BEIS,UKRI - UKRI,02/02/2022,Recruitment Costs,UKRI People and Organisation Development,Onefix Recruitment Ltd,99241425,342.00,Recruitment Costs
BEIS,UKRI - UKRI,02/02/2022,Recruitment Costs,UKRI People and Organisation Development,Onefix Recruitment Ltd,99241427,714.00,Recruitment Costs
BEIS,UKRI - UKRI,02/02/2022,Recruitment Costs,UKRI People and Organisation Development,Onefix Recruitment Ltd,99241429,60.00,Recruitment Costs
BEIS,UKRI - UKRI,02/02/2022,Staff Training,UKRI - Risk and Counter Fraud,Gentium UK Ltd,99243424,6000.00,Staff Training
BEIS,UKRI - Research England,02/02/2022,Computing Consumables,RE - Research Excellence Framework (REF),Banner Group Ltd,99244422,16.15,Computing Consumables
BEIS,UKRI - Research England,02/02/2022,Printing & Stationery,RE - Research Excellence Framework (REF),Banner Group Ltd,99244422,23.15,Printing & Stationery
BEIS,UKRI - Research England,02/02/2022,Printing & Stationery,RE - Research Excellence Framework (REF),Banner Group Ltd,99244428,16.27,Printing & Stationery
BEIS,UKRI - UKRI,02/02/2022,Printing & Stationery,UKRI - Strategic Finance Business Partners,Banner Group Ltd,99246418,15.47,Printing & Stationery
BEIS,UKRI - UKRI,02/02/2022,Research Grant Expenditure,Public Engagement Programmes,RGH New Elements Ltd,99246425,36000.00,Research Grant Expenditure
BEIS,UKRI - Research England,02/02/2022,Unspecified,RE - Research Excellence Framework (REF),Muya Research Management Ltd,99246430,7220.00,Council & Committee Honoraria
BEIS,UKRI - UKRI,02/02/2022,Marketing & PR,UKRI - External Communications,Cision Group Ltd,99247447,1500.00,Marketing & PR
BEIS,UKRI - UKRI,02/02/2022,UK - Professional Memberships & Subscriptions,UKRI - Procurement and Commercial,Unspecified,99249416,141.00,UK - Professional Memberships & Subscriptions
BEIS,UKRI - UKRI,02/02/2022,T&S UK - Public Transport,UKRI - Funding Assurance,Unspecified,99249418,10.00,T&S UK - Public Transport
BEIS,UKRI - UKRI,02/02/2022,T&S UK - Subsistence,UKRI - Funding Assurance,Unspecified,99249418,16.34,T&S UK - Subsistence
BEIS,UKRI - UKRI,02/02/2022,T&S UK - Other Charges,UKRI - Research Funding Support,Unspecified,99249419,280.17,T&S UK - Other Charges
BEIS,UKRI - UKRI,03/02/2022,Telecoms - Non Capital Hardware Costs,UKRI - Digital Data and Technology BAU Costs,Telefonica UK Ltd (O2),99168819,385.20,Telecoms - Non Capital Hardware Costs
BEIS,UKRI - UKRI,03/02/2022,Computer Software Licences,UKRI - Digital Data and Technology BAU Costs,PatSnap (UK) Ltd,99183200,18960.00,Computer Software Licences
BEIS,UKRI - UKRI,03/02/2022,Computer Software Licences,UKRI - Digital Data and Technology Recharges,Phoenix Software Ltd,99183453,54.58,Computer Software Licences
BEIS,UKRI - UKRI,03/02/2022,Computer Software Licences,UKRI - Digital Data and Technology Recharges,Phoenix Software Ltd,99183454,61.78,Computer Software Licences
BEIS,UKRI - UKRI,03/02/2022,Staff Training,UKRI - Project Management Office,ILX GROUP PLC,99184423,2439.00,Staff Training
BEIS,UKRI - UKRI,03/02/2022,Unspecified,UKRI-SHARP,Alexander Mann Solutions Ltd,99190703,4311.48,Contract Staff
BEIS,UKRI - UKRI,03/02/2022,Unspecified,UKRI-SHARP,Alexander Mann Solutions Ltd,99190726,2340.53,Contract Staff
BEIS,UKRI - UKRI,03/02/2022,Unspecified,UKRI-SHARP,Alexander Mann Solutions Ltd,99193435,4311.47,Contract Staff
BEIS,UKRI - UKRI,03/02/2022,Unspecified,UKRI-SHARP,Robertson Bell Ltd,99206810,2759.86,Contract Staff
BEIS,UKRI - UKRI,03/02/2022,Advertising & Promotion,UKRI - Communications Business Partners,Unspecified,99222418,350.00,Advertising & Promotion
BEIS,UKRI - UKRI,03/02/2022,Unspecified,UKRI-SHARP,Alexander Mann Solutions Ltd,99224422,2925.66,Contract Staff
BEIS,UKRI - UKRI,03/02/2022,Unspecified,UKRI-SHARP,Alexander Mann Solutions Ltd,99224425,4311.48,Contract Staff
BEIS,UKRI - EPSRC,03/02/2022,Staff Training,Business Improvement,ASK Europe PLC,99227341,780.00,Staff Training
BEIS,UKRI - UKRI,03/02/2022,Unspecified,UKRI - Information Governance,OneTrust Technology Ltd,99248687,11520.00,Legal & Professional Services
BEIS,UKRI - UKRI,03/02/2022,Recruitment Costs,UKRI People and Organisation Development,Onefix Recruitment Ltd,99248713,342.00,Recruitment Costs
BEIS,UKRI - UKRI,03/02/2022,Consumables,UKRI - JRS,Kennedy Grinding Ltd,99249518,36.00,Consumables
BEIS,UKRI - EPSRC,03/02/2022,Voluntary Deductions,Balance Sheet,Civil Service Benevolent Fund,99249557,20.33,Voluntary Deductions
BEIS,UKRI - EPSRC,03/02/2022,Fees (Including College Members),Business Improvement,Unspecified,99249602,320.00,Fees (Including College Members)
BEIS,UKRI - EPSRC,03/02/2022,Fees (Including College Members),Business Improvement,Unspecified,99249604,320.00,Fees (Including College Members)
BEIS,UKRI - EPSRC,03/02/2022,Fees (Including College Members),Business Improvement,Unspecified,99249605,320.00,Fees (Including College Members)
BEIS,UKRI - EPSRC,03/02/2022,Fees (Including College Members),Business Improvement,Unspecified,99249606,320.00,Fees (Including College Members)
BEIS,UKRI - EPSRC,03/02/2022,T&S UK - Public Transport,Business Engagement,Veezu Ltd,99249631,365.52,T&S UK - Public Transport
BEIS,UKRI - EPSRC,03/02/2022,T&S UK - Public Transport,University Partnerships,Veezu Ltd,99249631,365.52,T&S UK - Public Transport
BEIS,UKRI - UKRI,03/02/2022,Rates,UKRI - Estates,Stamford Street Tenant Ltd T/A Weework,99249712,57754.80,Rates
BEIS,UKRI - UKRI,03/02/2022,Consumables,UKRI - JRS,DENMAUR INDEPENDENT PAPERS LTD,99250427,124.86,Consumables
BEIS,UKRI - UKRI,03/02/2022,T&S UK - Public Transport,UKRI - Procurement and Commercial,Unspecified,99250440,19.75,T&S UK - Public Transport
BEIS,UKRI - UKRI,03/02/2022,T&S UK - Subsistence,UKRI - Procurement and Commercial,Unspecified,99250440,8.50,T&S UK - Subsistence
BEIS,UKRI - UKRI,03/02/2022,T&S UK - Subsistence,UKRI - Procurement and Commercial,Unspecified,99250440,6.65,T&S UK - Subsistence
BEIS,UKRI - UKRI,03/02/2022,T&S UK - Mileage,"UKRI People, Policies and Management",Unspecified,99250442,20.70,T&S UK - Mileage
BEIS,UKRI - UKRI,03/02/2022,T&S UK - Public Transport,UKRI - Digital Data and Technology BAU Costs,Unspecified,99250443,9.60,T&S UK - Public Transport
BEIS,UKRI - UKRI,03/02/2022,Education Fees & Study Materials,UKRI - Procurement and Commercial,Unspecified,99250444,45.90,Education Fees & Study Materials
BEIS,UKRI - UKRI,03/02/2022,Education Fees & Study Materials,UKRI - Financial Accounting,Unspecified,99250445,18.00,Education Fees & Study Materials
BEIS,UKRI - UKRI,03/02/2022,UK - Professional Memberships & Subscriptions,"UKRI People, Policies and Management",Unspecified,99250447,245.00,UK - Professional Memberships & Subscriptions
BEIS,UKRI - UKRI,03/02/2022,Rates,UKRI - JBOS,Swindon Borough Council,99252422,64000.00,Rates
BEIS,UKRI - UKRI,03/02/2022,Rates,UKRI - Estates,City of London,99252428,18360.00,Rates
BEIS,UKRI - UKRI,03/02/2022,Rates,UKRI - Estates,City of London,99252464,18360.00,Rates
BEIS,UKRI - EPSRC,03/02/2022,VAT Input Tax Overseas,Balance Sheet,HM Revenue & Customs,99252474,122290.01,VAT Input Tax Overseas
BEIS,UKRI - EPSRC,03/02/2022,Telecoms - Calls Fax & internet Costs,PSU IS,Telecoms World Plc,99252485,16.78,Telecoms - Calls Fax & internet Costs
BEIS,UKRI - EPSRC,03/02/2022,Financial Services,PSU Finance,Royal Bank of Scotland plc/Natwest,99252496,200.00,Financial Services
BEIS,UKRI - UKRI,03/02/2022,Rates,UKRI - JBOS,Swindon Borough Council,99252518,64000.00,Rates
BEIS,UKRI - UKRI,04/02/2022,Unspecified,UKRI - Digital Data and Technology Recharges,AMAZON WEB SERVICES INC,99066937,4521.70,IT Cloud Services
BEIS,UKRI - UKRI,04/02/2022,Unspecified,UKRI - Digital Data and Technology Recharges,AMAZON WEB SERVICES INC,99066939,1937.94,IT Cloud Services
BEIS,UKRI - UKRI,04/02/2022,Consumables,UKRI - JRS,Signgeer Ltd,99107128,294.84,Consumables
BEIS,UKRI - UKRI,04/02/2022,Unspecified,UKRI - Funding Service,Alexander Mann Solutions Ltd,99190695,3150.30,Contract Staff
BEIS,UKRI - UKRI,04/02/2022,Unspecified,UKRI - Digital Data and Technology Project Costs,Precision Resource Group Ltd T/A iO,99191130,2467.50,Contract Staff
BEIS,UKRI - UKRI,04/02/2022,Unspecified,UKRI - Digital Data and Technology Project Costs,Alexander Mann Solutions Ltd,99193439,2999.66,Contract Staff
BEIS,UKRI - UKRI,04/02/2022,Unspecified,UKRI - Digital Data and Technology Project Costs,Alexander Mann Solutions Ltd,99193440,1732.68,Contract Staff
BEIS,UKRI - UKRI,04/02/2022,Unspecified,UKRI - Digital Data and Technology Project Costs,Alexander Mann Solutions Ltd,99193443,1385.81,Contract Staff
BEIS,UKRI - UKRI,04/02/2022,Unspecified,UKRI - Communications Web and Intranet Service,Alexander Mann Solutions Ltd,99193448,3476.88,Legal & Professional Services
BEIS,UKRI - Research England,04/02/2022,Unspecified,RE - Research Excellence Framework (REF),Alexander Mann Solutions Ltd,99193451,6237.54,Contract Staff
BEIS,UKRI - UKRI,04/02/2022,Computer Hardware,UKRI Strategic HR Business Partners,Dell Corporation Ltd,99206508,1134.00,Computer Hardware
BEIS,UKRI - UKRI,04/02/2022,Unspecified,UKRI - Digital Data and Technology Project Costs,LA International Computer Consultants Ltd,99206539,3593.40,Contract Staff
BEIS,UKRI - UKRI,04/02/2022,Other Bought In Services,UKRI - Estates Projects,Rachel Everington Marketing Ltd,99206627,1627.50,Other Bought In Services
BEIS,UKRI - UKRI,04/02/2022,Unspecified,UKRI - Digital Data and Technology Project Costs,Alexander Mann Solutions Ltd,99207379,1732.68,Contract Staff
BEIS,UKRI - UKRI,04/02/2022,Unspecified,UKRI - Funding Service,Alexander Mann Solutions Ltd,99223420,3937.86,Contract Staff
BEIS,UKRI - UKRI,04/02/2022,Unspecified,UKRI - Funding Service,Alexander Mann Solutions Ltd,99223423,4003.56,Contract Staff
BEIS,UKRI - Research England,04/02/2022,Unspecified,RE - Research Excellence Framework (REF),Alexander Mann Solutions Ltd,99223426,3465.30,Contract Staff
BEIS,UKRI - UKRI,04/02/2022,Unspecified,UKRI - Communications Web and Intranet Service,Alexander Mann Solutions Ltd,99223446,3817.73,Contract Staff
BEIS,UKRI - UKRI,04/02/2022,Unspecified,UKRI - Communications Web and Intranet Service,Alexander Mann Solutions Ltd,99224424,3476.88,Legal & Professional Services
BEIS,UKRI - UKRI,04/02/2022,Unspecified,UKRI - Digital Data and Technology Project Costs,Alexander Mann Solutions Ltd,99225417,2999.66,Contract Staff
BEIS,UKRI - UKRI,04/02/2022,Unspecified,UKRI - Funding Service,Alexander Mann Solutions Ltd,99225423,3150.30,Contract Staff
BEIS,UKRI - UKRI,04/02/2022,Computer Software Licences,UKRI - Digital Data and Technology Recharges,Phoenix Software Ltd,99226666,443.52,Computer Software Licences
BEIS,UKRI - UKRI,04/02/2022,Unspecified,UKRI - Digital Data and Technology BAU Costs,Precision Resource Group Ltd T/A iO,99226708,3540.00,Contract Staff
BEIS,UKRI - UKRI,04/02/2022,Consultancy Services,UKRI - Digital Data and Technology BAU Costs,JC Web Services Ltd,99244441,9600.00,Consultancy Services
BEIS,UKRI - UKRI,04/02/2022,Unspecified,UKRI - Digital Data and Technology Project Costs,Sanderson Government and Defence Ltd,99248647,21187.50,Contract Staff
BEIS,UKRI - UKRI,04/02/2022,Unspecified,UKRI - Digital Data and Technology Project Costs,LA International Computer Consultants Ltd,99248851,3593.40,Contract Staff
BEIS,UKRI - Research England,04/02/2022,Unspecified,RE - Operations and Private Office,LA International Computer Consultants Ltd,99248852,3293.40,Agency Staff
BEIS,UKRI - UKRI,04/02/2022,Consumables,UKRI - JRS,Premier Paper Group Ltd,99249808,92.48,Consumables
BEIS,UKRI - UKRI,04/02/2022,Staff Relocation,UKRI - Overseas Office USA,Pickfords Ltd,99249813,831.60,Staff Relocation
BEIS,UKRI - UKRI,04/02/2022,General Building Maintenance,UKRI - JBOS,Interior Design And Developments,99249817,2019.60,General Building Maintenance
BEIS,UKRI - UKRI,04/02/2022,General Building Maintenance,UKRI - Estates Projects,Interior Design And Developments,99249818,6888.00,General Building Maintenance
BEIS,UKRI - UKRI,04/02/2022,Staff Relocation,UKRI - Overseas Office USA,Pickfords Ltd,99249981,1033.80,Staff Relocation
BEIS,UKRI - UKRI,04/02/2022,Books Professional Journals & Guides,UKRI - Digital Data and Technology Library Services,OK Bargains Ltd T/A Shauns News,99249983,63.50,Books Professional Journals & Guides
BEIS,UKRI - UKRI,04/02/2022,Purchase of non capital equipment,UKRI Strategic HR Business Partners,Senator International Ltd,99250061,759.17,Purchase of non capital equipment
BEIS,UKRI - UKRI,04/02/2022,Unspecified,UKRI-SHARP,Hays Specialist Recruitment Ltd,99250093,12144.32,Contract Staff
BEIS,UKRI - UKRI,04/02/2022,Unspecified,UKRI-SHARP,Hays Specialist Recruitment Ltd,99250096,15001.81,Contract Staff
BEIS,UKRI - UKRI,04/02/2022,Unspecified,UKRI-SHARP,Hays Specialist Recruitment Ltd,99250099,15001.81,Contract Staff
BEIS,UKRI - UKRI,04/02/2022,Unspecified,UKRI-SHARP,Hays Specialist Recruitment Ltd,99250103,12858.70,Contract Staff
BEIS,UKRI - UKRI,04/02/2022,Unspecified,UKRI-SHARP,Hays Specialist Recruitment Ltd,99250104,15716.18,Contract Staff
BEIS,UKRI - UKRI,04/02/2022,Unspecified,UKRI - Communications Web and Intranet Service,Digital Type Ltd,99250106,6210.00,Legal & Professional Services
BEIS,UKRI - UKRI,04/02/2022,Unspecified,UKRI-SHARP,Hays Specialist Recruitment Ltd,99250107,9286.84,Contract Staff
BEIS,UKRI - UKRI,04/02/2022,Recruitment Costs,UKRI People and Organisation Development,Onefix Recruitment Ltd,99250133,120.00,Recruitment Costs
BEIS,UKRI - UKRI,04/02/2022,Recruitment Costs,UKRI People and Organisation Development,Onefix Recruitment Ltd,99250135,60.00,Recruitment Costs
BEIS,UKRI - Research England,04/02/2022,Meetings & Catering,RE - Research Excellence Framework (REF),Muya Research Management Ltd,99250147,1200.00,Meetings & Catering
BEIS,UKRI - Research England,04/02/2022,Non-staff travel and subsistance,RE - Research Excellence Framework (REF),Muya Research Management Ltd,99250147,810.00,Non-staff travel and subsistance
BEIS,UKRI - UKRI,04/02/2022,Consumables,UKRI - JRS,Premier Paper Group Ltd,99250471,336.17,Consumables
BEIS,UKRI - UKRI,04/02/2022,Unspecified,UKRI-SHARP,Robertson Bell Ltd,99251457,3449.82,Contract Staff
BEIS,UKRI - UKRI,04/02/2022,Unspecified,"UKRI - Data Policy, Governance and MI",Department for Business Energy & Industrial Strategy,99252512,30346.56,Secondments
BEIS,UKRI - UKRI,04/02/2022,Unspecified,"UKRI - Data Policy, Governance and MI",Department for Business Energy & Industrial Strategy,99252520,29159.25,Secondments
BEIS,UKRI - UKRI,04/02/2022,Other Staff Benefits,UKRI - UKRO,Unspecified,99252531,1076.60,Other Staff Benefits
BEIS,UKRI - UKRI,04/02/2022,Other Staff Benefits,UKRI - UKRO,Unspecified,99252538,957.54,Other Staff Benefits
BEIS,UKRI - EPSRC,04/02/2022,Fellowships,NC Physical Sciences,Daphne Jackson Trust,99252542,9107.32,Fellowships
BEIS,UKRI - UKRI,04/02/2022,Consumables,UKRI - JRS,DENMAUR INDEPENDENT PAPERS LTD,99253427,245.52,Consumables
BEIS,UKRI - UKRI,04/02/2022,Consumables,UKRI - JRS,DENMAUR INDEPENDENT PAPERS LTD,99253429,158.62,Consumables
BEIS,UKRI - UKRI,04/02/2022,Unspecified,UKRI-SHARP,Sanderson Government and Defence Ltd,99253432,11119.50,Contract Staff
BEIS,UKRI - UKRI,04/02/2022,Conferences & Seminars,Research Culture,Unspecified,99253434,83.00,Conferences & Seminars
BEIS,UKRI - UKRI,04/02/2022,Health & Safety (inc. Medicals & Opticians),UKRI - JBOS,Unspecified,99253435,100.00,Health & Safety (inc. Medicals & Opticians)
BEIS,UKRI - UKRI,04/02/2022,Other Staff Benefits,"UKRI People, Policies and Management",EDENRED (UK GROUP) LTD,99254420,1260.00,Other Staff Benefits
BEIS,UKRI - UKRI,07/02/2022,Computer Hardware,UKRI - Digital Data and Technology BAU Costs,Academia Ltd,99168939,12794.94,Computer Hardware
BEIS,UKRI - UKRI,07/02/2022,Unspecified,UKRI - Procurement and Commercial,Alexander Mann Solutions Ltd,99190696,1809.60,Agency Staff
BEIS,UKRI - UKRI,07/02/2022,Unspecified,UKRI - Strategic Finance Business Partners,Hays Specialist Recruitment Ltd,99207374,4654.26,Contract Staff
BEIS,UKRI - UKRI,07/02/2022,Unspecified,UKRI - Strategic Finance Business Partners,Hays Specialist Recruitment Ltd,99207375,5895.40,Contract Staff
BEIS,UKRI - UKRI,07/02/2022,Unspecified,UKRI - Strategic Finance Business Partners,Hays Specialist Recruitment Ltd,99207380,4499.12,Contract Staff
BEIS,UKRI - UKRI,07/02/2022,Recruitment Costs,UKRI People and Organisation Development,Onefix Recruitment Ltd,99241423,234.00,Recruitment Costs
BEIS,UKRI - UKRI,07/02/2022,Recruitment Costs,UKRI People and Organisation Development,Onefix Recruitment Ltd,99241424,60.00,Recruitment Costs
BEIS,UKRI - UKRI,07/02/2022,Recruitment Costs,UKRI People and Organisation Development,Onefix Recruitment Ltd,99241426,60.00,Recruitment Costs
BEIS,UKRI - UKRI,07/02/2022,Recruitment Costs,UKRI People and Organisation Development,Onefix Recruitment Ltd,99241428,300.00,Recruitment Costs
BEIS,UKRI - UKRI,07/02/2022,Recruitment Costs,UKRI People and Organisation Development,Onefix Recruitment Ltd,99241452,234.00,Recruitment Costs
BEIS,UKRI - UKRI,07/02/2022,Recruitment Costs,UKRI People and Organisation Development,Onefix Recruitment Ltd,99241453,60.00,Recruitment Costs
BEIS,UKRI - UKRI,07/02/2022,Printing & Stationery,UKRI - JBOS,Fisher Scientific UK Ltd,99243441,42.19,Printing & Stationery
BEIS,UKRI - UKRI,07/02/2022,Printing & Stationery,UKRI - JBOS,Fisher Scientific UK Ltd,99243441,296.01,Printing & Stationery
BEIS,UKRI - UKRI,07/02/2022,Printing & Stationery,UKRI - JBOS,Fisher Scientific UK Ltd,99243441,191.00,Printing & Stationery
BEIS,UKRI - UKRI,07/02/2022,Printing & Stationery,UKRI - JBOS,Fisher Scientific UK Ltd,99244415,-229.20,Printing & Stationery
BEIS,UKRI - UKRI,07/02/2022,Printing & Stationery,UKRI - JBOS,Fisher Scientific UK Ltd,99244415,-300.00,Printing & Stationery
BEIS,UKRI - UKRI,07/02/2022,Marketing & PR,UKRI - Digital Data and Technology Project Costs,Derek Holmes T/A Derek Holmes Media,99248466,2612.50,Marketing & PR
BEIS,UKRI - UKRI,07/02/2022,Health & Safety (inc. Medicals & Opticians),UKRI - Culture Leadership and Learning,Swindon Occupational Medical Services Ltd,99248690,380.00,Health & Safety (inc. Medicals & Opticians)
BEIS,UKRI - UKRI,07/02/2022,Unspecified,UKRI - Digital Data and Technology Project Costs,LA International Computer Consultants Ltd,99248850,1856.06,Contract Staff
BEIS,UKRI - UKRI,07/02/2022,Unspecified,UKRI - Digital Data and Technology Project Costs,LA International Computer Consultants Ltd,99248854,2993.40,Contract Staff
BEIS,UKRI - UKRI,07/02/2022,Unspecified,UKRI - Communications Content,Studio 108 Design Partnership,99250009,174.00,Legal & Professional Services
BEIS,UKRI - UKRI,07/02/2022,Recruitment Costs,UKRI People and Organisation Development,Onefix Recruitment Ltd,99250129,300.00,Recruitment Costs
BEIS,UKRI - UKRI,07/02/2022,Recruitment Costs,UKRI People and Organisation Development,Onefix Recruitment Ltd,99250130,714.00,Recruitment Costs
BEIS,UKRI - UKRI,07/02/2022,Recruitment Costs,UKRI People and Organisation Development,Onefix Recruitment Ltd,99250131,714.00,Recruitment Costs
BEIS,UKRI - UKRI,07/02/2022,Mobile Phone Costs,UKRI - Digital Data and Technology Recharges,Telefonica UK Ltd (O2),99250263,3028.20,Mobile Phone Costs
BEIS,UKRI - UKRI,07/02/2022,Mobile Phone Costs,UKRI - Digital Data and Technology Recharges,Telefonica UK Ltd (O2),99250263,531.24,Mobile Phone Costs
BEIS,UKRI - UKRI,07/02/2022,Mobile Phone Costs,UKRI - Digital Data and Technology BAU Costs,Telefonica UK Ltd (O2),99250264,149.64,Mobile Phone Costs
BEIS,UKRI - UKRI,07/02/2022,Mobile Phone Costs,UKRI - Digital Data and Technology BAU Costs,Telefonica UK Ltd (O2),99250264,29.93,Mobile Phone Costs
BEIS,UKRI - UKRI,07/02/2022,Mobile Phone Costs,UKRI - Digital Data and Technology BAU Costs,Telefonica UK Ltd (O2),99250265,1094.86,Mobile Phone Costs
BEIS,UKRI - UKRI,07/02/2022,Mobile Phone Costs,UKRI - Digital Data and Technology BAU Costs,Telefonica UK Ltd (O2),99250265,201.09,Mobile Phone Costs
BEIS,UKRI - UKRI,07/02/2022,Mobile Phone Costs,UKRI - Digital Data and Technology BAU Costs,Telefonica UK Ltd (O2),99250266,4224.95,Mobile Phone Costs
BEIS,UKRI - UKRI,07/02/2022,Mobile Phone Costs,UKRI - Digital Data and Technology BAU Costs,Telefonica UK Ltd (O2),99250266,844.99,Mobile Phone Costs
BEIS,UKRI - UKRI,07/02/2022,Mobile Phone Costs,UKRI - Digital Data and Technology BAU Costs,Telefonica UK Ltd (O2),99250267,25.35,Mobile Phone Costs
BEIS,UKRI - UKRI,07/02/2022,Mobile Phone Costs,UKRI - Digital Data and Technology BAU Costs,Telefonica UK Ltd (O2),99250267,5.07,Mobile Phone Costs
BEIS,UKRI - UKRI,07/02/2022,Mobile Phone Costs,UKRI - Digital Data and Technology BAU Costs,Telefonica UK Ltd (O2),99250268,323.56,Mobile Phone Costs
BEIS,UKRI - UKRI,07/02/2022,Mobile Phone Costs,UKRI - Digital Data and Technology BAU Costs,Telefonica UK Ltd (O2),99250268,64.71,Mobile Phone Costs
BEIS,UKRI - UKRI,07/02/2022,Mobile Phone Costs,UKRI - Digital Data and Technology BAU Costs,Telefonica UK Ltd (O2),99250269,29.13,Mobile Phone Costs
BEIS,UKRI - UKRI,07/02/2022,Mobile Phone Costs,UKRI - Digital Data and Technology BAU Costs,Telefonica UK Ltd (O2),99250269,5.83,Mobile Phone Costs
BEIS,UKRI - UKRI,07/02/2022,Mobile Phone Costs,UKRI - Digital Data and Technology BAU Costs,Telefonica UK Ltd (O2),99250270,97.14,Mobile Phone Costs
BEIS,UKRI - UKRI,07/02/2022,Mobile Phone Costs,UKRI - Digital Data and Technology BAU Costs,Telefonica UK Ltd (O2),99250270,18.23,Mobile Phone Costs
BEIS,UKRI - UKRI,07/02/2022,Mobile Phone Costs,UKRI - Digital Data and Technology BAU Costs,Telefonica UK Ltd (O2),99250271,1831.69,Mobile Phone Costs
BEIS,UKRI - UKRI,07/02/2022,Mobile Phone Costs,UKRI - Digital Data and Technology BAU Costs,Telefonica UK Ltd (O2),99250271,349.63,Mobile Phone Costs
BEIS,UKRI - UKRI,07/02/2022,Mobile Phone Costs,UKRI - Digital Data and Technology BAU Costs,Telefonica UK Ltd (O2),99250272,133.26,Mobile Phone Costs
BEIS,UKRI - UKRI,07/02/2022,Mobile Phone Costs,UKRI - Digital Data and Technology BAU Costs,Telefonica UK Ltd (O2),99250272,26.65,Mobile Phone Costs
BEIS,UKRI - UKRI,07/02/2022,Mobile Phone Costs,UKRI - Digital Data and Technology BAU Costs,Telefonica UK Ltd (O2),99250273,197.14,Mobile Phone Costs
BEIS,UKRI - UKRI,07/02/2022,Mobile Phone Costs,UKRI - Digital Data and Technology BAU Costs,Telefonica UK Ltd (O2),99250273,39.43,Mobile Phone Costs
BEIS,UKRI - UKRI,07/02/2022,Mobile Phone Costs,UKRI - Digital Data and Technology BAU Costs,Telefonica UK Ltd (O2),99250274,3170.12,Mobile Phone Costs
BEIS,UKRI - UKRI,07/02/2022,Mobile Phone Costs,UKRI - Digital Data and Technology BAU Costs,Telefonica UK Ltd (O2),99250274,623.22,Mobile Phone Costs
BEIS,UKRI - UKRI,07/02/2022,Mobile Phone Costs,UKRI - Digital Data and Technology BAU Costs,Telefonica UK Ltd (O2),99250275,1.90,Mobile Phone Costs
BEIS,UKRI - UKRI,07/02/2022,Mobile Phone Costs,UKRI - Digital Data and Technology BAU Costs,Telefonica UK Ltd (O2),99250275,0.38,Mobile Phone Costs
BEIS,UKRI - UKRI,07/02/2022,Mobile Phone Costs,UKRI - Digital Data and Technology BAU Costs,Telefonica UK Ltd (O2),99250276,2250.95,Mobile Phone Costs
BEIS,UKRI - UKRI,07/02/2022,Mobile Phone Costs,UKRI - Digital Data and Technology BAU Costs,Telefonica UK Ltd (O2),99250276,450.19,Mobile Phone Costs
BEIS,UKRI - UKRI,07/02/2022,Other Staff Benefits,"UKRI People, Policies and Management",EDENRED (UK GROUP) LTD,99250287,3290.00,Other Staff Benefits
BEIS,UKRI - UKRI,07/02/2022,Hardware/Software Maintenance,UKRI - JRS,Kodak Ltd,99250317,1644.12,Hardware/Software Maintenance
BEIS,UKRI - UKRI,07/02/2022,Consumables,UKRI - JRS,Antalis Ltd t/a Antalis Document Supplies,99257424,1604.92,Consumables
BEIS,UKRI - UKRI,07/02/2022,Consumables,UKRI - JRS,Antalis Ltd t/a Antalis Document Supplies,99257430,415.68,Consumables
BEIS,UKRI - UKRI,07/02/2022,Consumables,UKRI - JRS,Antalis Ltd t/a Antalis Document Supplies,99257430,123.02,Consumables
BEIS,UKRI - UKRI,07/02/2022,Consumables,UKRI - JRS,Antalis Ltd t/a Antalis Document Supplies,99257432,760.20,Consumables
BEIS,UKRI - UKRI,07/02/2022,Consumables,UKRI - JRS,Antalis Ltd t/a Antalis Document Supplies,99257435,122.42,Consumables
BEIS,UKRI - UKRI,07/02/2022,Corporate Events,UKRI - Communications Projects and Services,GLASGOWS LTD,99257445,5620.99,Corporate Events
BEIS,UKRI - UKRI,07/02/2022,Consumables,UKRI - JRS,Premier Paper Group Ltd,99257466,126.07,Consumables
BEIS,UKRI - UKRI,07/02/2022,Unspecified,UKRI - Digital Data and Technology BAU Costs,AMAZON WEB SERVICES INC,99257471,225.19,IT Cloud Services
BEIS,UKRI - UKRI,07/02/2022,Unspecified,UKRI - Digital Data and Technology BAU Costs,AMAZON WEB SERVICES INC,99257472,260.62,IT Cloud Services
BEIS,UKRI - UKRI,07/02/2022,Unspecified,UKRI - Digital Data and Technology BAU Costs,AMAZON WEB SERVICES INC,99257473,225.19,IT Cloud Services
BEIS,UKRI - UKRI,07/02/2022,Unspecified,UKRI - Digital Data and Technology BAU Costs,AMAZON WEB SERVICES INC,99257474,188.50,IT Cloud Services
BEIS,UKRI - UKRI,07/02/2022,Unspecified,UKRI - Digital Data and Technology BAU Costs,AMAZON WEB SERVICES INC,99257477,303.03,IT Cloud Services
BEIS,UKRI - EPSRC,07/02/2022,Fees (Including College Members),Governance and Planning,Unspecified,99257500,160.00,Fees (Including College Members)
BEIS,UKRI - EPSRC,07/02/2022,Fees (Including College Members),Governance and Planning,Unspecified,99257501,160.00,Fees (Including College Members)
BEIS,UKRI - EPSRC,07/02/2022,Fees (Including College Members),Governance and Planning,Unspecified,99257502,320.00,Fees (Including College Members)
BEIS,UKRI - UKRI,07/02/2022,Recruitment Costs,"UKRI People, Policies and Management",Alexander Mann Solutions Ltd,99257509,1575.12,Recruitment Costs
BEIS,UKRI - UKRI,07/02/2022,Recruitment Costs,UKRI People and Organisation Development,Alexander Mann Solutions Ltd,99257512,945.06,Recruitment Costs
BEIS,UKRI - UKRI,07/02/2022,Recruitment Costs,UKRI - Strategic Finance Business Partners,Michael Page International Recruitment Limited T/A Page Personnel,99258462,3831.72,Recruitment Costs
BEIS,UKRI - UKRI,07/02/2022,Staff Training,UKRI Strategic HR Business Partners,LTE Group T/A MOL Learn,99258476,3395.00,Staff Training
BEIS,UKRI - UKRI,07/02/2022,Unspecified,UKRI - Information Governance,Alexander Mann Solutions Ltd,99258511,7182.68,Agency Staff
BEIS,UKRI - UKRI,07/02/2022,Unspecified,UKRI - Digital Data and Technology Project Costs,Alexander Mann Solutions Ltd,99258513,1108.66,Contract Staff
BEIS,UKRI - UKRI,07/02/2022,Unspecified,"UKRI People, Policies and Management",Alexander Mann Solutions Ltd,99258520,2322.18,Agency Staff
BEIS,UKRI - UKRI,07/02/2022,Unspecified,UKRI - Digital Data and Technology Project Costs,Alexander Mann Solutions Ltd,99258526,4003.56,Contract Staff
BEIS,UKRI - UKRI,07/02/2022,Unspecified,UKRI - Digital Data and Technology Project Costs,Alexander Mann Solutions Ltd,99258529,2463.70,Contract Staff
BEIS,UKRI - UKRI,07/02/2022,Unspecified,UKRI People and Organisation Development,Alexander Mann Solutions Ltd,99258534,1260.12,Contract Staff
BEIS,UKRI - UKRI,07/02/2022,Recruitment Costs,UKRI - Digital Data and Technology BAU Costs,Cabinet Office,99258607,1200.00,Recruitment Costs
BEIS,UKRI - EPSRC,07/02/2022,Fees (Including College Members),Business Improvement,Unspecified,99258672,-160.00,Fees (Including College Members)
BEIS,UKRI - UKRI,07/02/2022,Catering Contracts,UKRI - JBOS,Aramark Ltd,99258676,-15337.02,Catering Contracts
BEIS,UKRI - EPSRC,07/02/2022,Unspecified,PSU Finance,University of Exeter,99258683,-3280.39,Other Income
BEIS,UKRI - UKRI,07/02/2022,Recruitment Costs,UKRI People and Organisation Development,Onefix Recruitment Ltd,99259416,594.00,Recruitment Costs
BEIS,UKRI - UKRI,07/02/2022,Recruitment Costs,UKRI People and Organisation Development,Onefix Recruitment Ltd,99259417,60.00,Recruitment Costs
BEIS,UKRI - UKRI,07/02/2022,T&S UK - Mileage,UKRI - Digital Data and Technology BAU Costs,Unspecified,99259437,47.70,T&S UK - Mileage
BEIS,UKRI - UKRI,07/02/2022,UK - Professional Memberships & Subscriptions,UKRI - Strategic Finance Business Partners,Unspecified,99259438,270.00,UK - Professional Memberships & Subscriptions
BEIS,UKRI - UKRI,07/02/2022,T&S UK - Mileage,UKRI - Digital Data and Technology BAU Costs,Unspecified,99259440,120.60,T&S UK - Mileage
BEIS,UKRI - UKRI,07/02/2022,T&S UK - Subsistence,UKRI - Digital Data and Technology BAU Costs,Unspecified,99259440,4.39,T&S UK - Subsistence
BEIS,UKRI - UKRI,07/02/2022,T&S UK - Subsistence,UKRI - Digital Data and Technology BAU Costs,Unspecified,99259440,3.70,T&S UK - Subsistence
BEIS,UKRI - UKRI,07/02/2022,T&S UK - Subsistence,UKRI - Digital Data and Technology BAU Costs,Unspecified,99259440,13.17,T&S UK - Subsistence
BEIS,UKRI - UKRI,07/02/2022,UK - Professional Memberships & Subscriptions,UKRI - Digital Data and Technology BAU Costs,Unspecified,99259441,190.00,UK - Professional Memberships & Subscriptions
BEIS,UKRI - UKRI,07/02/2022,UK - Professional Memberships & Subscriptions,UKRI - Strategic Finance Business Partners,Unspecified,99259443,270.00,UK - Professional Memberships & Subscriptions
BEIS,UKRI - UKRI,08/02/2022,Unspecified,UKRI - Digital Data and Technology Project Costs,UK Shared Business Services Ltd,99008519,80225.12,Legal & Professional Services
BEIS,UKRI - UKRI,08/02/2022,Computer Software,UKRI - Estates Projects,ParkPnp Ltd T/A Parkoffice,99112423,1300.00,Computer Software
BEIS,UKRI - UKRI,08/02/2022,Computer Software Licences,UKRI - Digital Data and Technology BAU Costs,INTERMEDIA TECHNOLOGIES COMPANY LTD,99135432,150.95,Computer Software Licences
BEIS,UKRI - UKRI,08/02/2022,Unspecified,UKRI - Risk and Counter Fraud,DNV AS,99176424,1360.00,Legal & Professional Services
BEIS,UKRI - UKRI,08/02/2022,Unspecified,UKRI - Risk and Counter Fraud,DNV AS,99176424,-0.01,Legal & Professional Services
BEIS,UKRI - UKRI,08/02/2022,Unspecified,UKRI - Risk and Counter Fraud,DNV AS,99183030,1360.00,Legal & Professional Services
BEIS,UKRI - UKRI,08/02/2022,Recruitment Costs,UKRI - Project Management Office,Hays Specialist Recruitment Ltd,99226715,8108.59,Recruitment Costs
BEIS,UKRI - UKRI,08/02/2022,Printing & Stationery,UKRI - Estates,Banner Group Ltd,99227051,11.35,Printing & Stationery
BEIS,UKRI - UKRI,08/02/2022,Safety Materials & Equipment,UKRI - Estates,Banner Group Ltd,99227051,35.38,Safety Materials & Equipment
BEIS,UKRI - UKRI,08/02/2022,Unspecified,UKRI - Communications Content,First Business Creative Ltd,99237416,310.50,Legal & Professional Services
BEIS,UKRI - UKRI,08/02/2022,Recruitment Costs,UKRI - Project Management Office,Hays Specialist Recruitment Ltd,99239432,8108.59,Recruitment Costs
BEIS,UKRI - UKRI,08/02/2022,Unspecified,"UKRI - Data Policy, Governance and MI",Cabinet Office,99244416,93095.09,Secondments
BEIS,UKRI - EPSRC,08/02/2022,International Subscriptions,International Facilities,UKRI - Natural Environment Research Council,99249475,146344.32,International Subscriptions
BEIS,UKRI - UKRI,08/02/2022,Health & Safety (inc. Medicals & Opticians),UKRI - Culture Leadership and Learning,UKRI - Natural Environment Research Council,99249478,305.00,Health & Safety (inc. Medicals & Opticians)
BEIS,UKRI - UKRI,08/02/2022,Recruitment Costs,UKRI People and Organisation Development,Onefix Recruitment Ltd,99250140,714.00,Recruitment Costs
BEIS,UKRI - UKRI,08/02/2022,Recruitment Costs,UKRI People and Organisation Development,Onefix Recruitment Ltd,99250143,1978.80,Recruitment Costs
BEIS,UKRI - UKRI,08/02/2022,Staff Training,UKRI - Project Management Office,KNOWLEDGE TRAIN LTD,99250311,2397.60,Staff Training
BEIS,UKRI - UKRI,08/02/2022,Computer Software,UKRI - Estates Projects,ParkPnp Ltd T/A Parkoffice,99251471,1300.00,Computer Software
BEIS,UKRI - UKRI,08/02/2022,Unspecified,UKRI - Governance,Alexander Mann Solutions Ltd,99257507,2617.68,Contract Staff
BEIS,UKRI - UKRI,08/02/2022,Unspecified,"UKRI People, Policies and Management",Alexander Mann Solutions Ltd,99258488,617.22,Agency Staff
BEIS,UKRI - UKRI,08/02/2022,Recruitment Costs,UKRI People and Organisation Development,Onefix Recruitment Ltd,99258555,450.00,Recruitment Costs
BEIS,UKRI - UKRI,08/02/2022,Recruitment Costs,UKRI People and Organisation Development,Onefix Recruitment Ltd,99258558,762.00,Recruitment Costs
BEIS,UKRI - UKRI,08/02/2022,Recruitment Costs,UKRI People and Organisation Development,Onefix Recruitment Ltd,99258562,342.00,Recruitment Costs
BEIS,UKRI - UKRI,08/02/2022,Recruitment Costs,UKRI People and Organisation Development,Onefix Recruitment Ltd,99258563,702.00,Recruitment Costs
BEIS,UKRI - UKRI,08/02/2022,Recruitment Costs,UKRI People and Organisation Development,Onefix Recruitment Ltd,99258567,342.00,Recruitment Costs
BEIS,UKRI - UKRI,08/02/2022,Recruitment Costs,UKRI People and Organisation Development,Onefix Recruitment Ltd,99258571,684.00,Recruitment Costs
BEIS,UKRI - Research England,08/02/2022,Staff Training,RE - Knowledge Exchange,Shine Management Development Ltd,99258665,360.00,Staff Training
BEIS,UKRI - UKRI,08/02/2022,Postage & Courier Services,UKRI - JBOS,Fedex Express UK Transportation Ltd,99258703,863.87,Postage & Courier Services
BEIS,UKRI - UKRI,08/02/2022,Unspecified,UKRI - Digital Data and Technology Project Costs,Scroll Ltd,99258816,30980.00,Legal & Professional Services
BEIS,UKRI - UKRI,08/02/2022,Unspecified,Research Integrity Committee,Rather Nice Design Ltd,99258825,3210.00,Legal & Professional Services
BEIS,UKRI - Research England,08/02/2022,Printing & Stationery,RE - Research Excellence Framework (REF),Banner Group Ltd,99258845,25.20,Printing & Stationery
BEIS,UKRI - Research England,08/02/2022,Safety Materials & Equipment,RE - Research Excellence Framework (REF),Banner Group Ltd,99258845,28.14,Safety Materials & Equipment
BEIS,UKRI - UKRI,08/02/2022,UK - Professional Memberships & Subscriptions,UKRI - Management Reporting,Unspecified,99258893,123.00,UK - Professional Memberships & Subscriptions
BEIS,UKRI - UKRI,08/02/2022,T&S UK - Other Charges,UKRI - Digital Data and Technology BAU Costs,Unspecified,99258894,154.99,T&S UK - Other Charges
BEIS,UKRI - UKRI,08/02/2022,T&S UK - Other Charges,UKRI - Private Office,Unspecified,99258896,170.98,T&S UK - Other Charges
BEIS,UKRI - UKRI,08/02/2022,Catering Contracts,UKRI - Management Reporting,Baxter Storey Ltd,99261419,351.00,Catering Contracts
BEIS,UKRI - UKRI,08/02/2022,Catering Contracts,UKRI - Management Reporting,Baxter Storey Ltd,99261420,1242.00,Catering Contracts
BEIS,UKRI - UKRI,08/02/2022,Unspecified,UKRI - Digital Data and Technology BAU Costs,Interfolio UK Ltd,99263432,600.00,IT Cloud Services
BEIS,UKRI - UKRI,08/02/2022,Conferences & Seminars,UKRI - Communications External Affairs,Sense About Science,99264478,3000.00,Conferences & Seminars
BEIS,UKRI - UKRI,09/02/2022,Computer Software Licences,UKRI - Digital Data and Technology BAU Costs,Bureau Van Dijk Electronic Publishing Ltd,99070212,162000.00,Computer Software Licences
BEIS,UKRI - UKRI,09/02/2022,Consumables,UKRI - JRS,Premier Paper Group Ltd,99072996,28.79,Consumables
BEIS,UKRI - UKRI,09/02/2022,Consumables,UKRI - JRS,Premier Paper Group Ltd,99072996,0.80,Consumables
BEIS,UKRI - UKRI,09/02/2022,Consumables,UKRI - JRS,Premier Paper Group Ltd,99072996,3.99,Consumables
BEIS,UKRI - UKRI,09/02/2022,Consultancy Services,UKRI - Digital Data and Technology BAU Costs,Unspecified,99107101,1200.00,Consultancy Services
BEIS,UKRI - UKRI,09/02/2022,Unspecified,UKRI - Digital Data and Technology Recharges,Softcat plc,99122317,200204.11,IT Cloud Services
BEIS,UKRI - UKRI,09/02/2022,Computer Software Licences,UKRI - Digital Data and Technology Recharges,Jisc Services Ltd,99190697,9760.25,Computer Software Licences
BEIS,UKRI - Research England,09/02/2022,Unspecified,RE - Research Excellence Framework (REF),Aberystwyth University,99207149,8079.59,Council & Committee Honoraria
BEIS,UKRI - Research England,09/02/2022,Unspecified,RE - Research Excellence Framework (REF),Hays Specialist Recruitment Ltd,99226508,558.64,Agency Staff
BEIS,UKRI - UKRI,09/02/2022,Marketing & PR,UKRI - Communications Themes and Partnerships,Adam Sewell Media Ltd,99249688,2175.00,Marketing & PR
BEIS,UKRI - UKRI,09/02/2022,Telecoms - Calls Fax & internet Costs,UKRI - Digital Data and Technology BAU Costs,Vodafone Ltd,99250245,2715.62,Telecoms - Calls Fax & internet Costs
BEIS,UKRI - UKRI,09/02/2022,Telecoms - Calls Fax & internet Costs,UKRI - Digital Data and Technology BAU Costs,Vodafone Ltd,99250248,88.28,Telecoms - Calls Fax & internet Costs
BEIS,UKRI - UKRI,09/02/2022,Telecoms - Maintenance & Repairs,UKRI - Digital Data and Technology BAU Costs,Vodafone Ltd,99250250,141.22,Telecoms - Maintenance & Repairs
BEIS,UKRI - UKRI,09/02/2022,Telecoms - Maintenance & Repairs,UKRI - Digital Data and Technology BAU Costs,Vodafone Ltd,99250254,114.28,Telecoms - Maintenance & Repairs
BEIS,UKRI - UKRI,09/02/2022,Telecoms - Maintenance & Repairs,UKRI - Digital Data and Technology BAU Costs,Vodafone Ltd,99250257,92.12,Telecoms - Maintenance & Repairs
BEIS,UKRI - UKRI,09/02/2022,Telecoms - Maintenance & Repairs,UKRI - Digital Data and Technology BAU Costs,Vodafone Ltd,99254435,191.04,Telecoms - Maintenance & Repairs
BEIS,UKRI - UKRI,09/02/2022,Telecoms - Maintenance & Repairs,UKRI - Digital Data and Technology BAU Costs,Vodafone Ltd,99254440,143.39,Telecoms - Maintenance & Repairs
BEIS,UKRI - UKRI,09/02/2022,Telecoms - Maintenance & Repairs,UKRI - Digital Data and Technology BAU Costs,Vodafone Ltd,99254441,118.84,Telecoms - Maintenance & Repairs
BEIS,UKRI - UKRI,09/02/2022,Recruitment Costs,"UKRI People, Policies and Management",LinkedIn Ireland Unlimited Company,99258678,42.13,Recruitment Costs
BEIS,UKRI - UKRI,09/02/2022,Recruitment Costs,"UKRI People, Policies and Management",LinkedIn Ireland Unlimited Company,99258686,657.14,Recruitment Costs
BEIS,UKRI - UKRI,09/02/2022,Telecoms - Non Capital Hardware Costs,UKRI - Digital Data and Technology Recharges,Telefonica UK Ltd (O2),99258784,123.60,Telecoms - Non Capital Hardware Costs
BEIS,UKRI - UKRI,09/02/2022,Staff Training,UKRI - BEIS ODA,Oxford Professional Education Group Ltd,99259025,1890.00,Staff Training
BEIS,UKRI - UKRI,09/02/2022,Unspecified,UKRI - Governance,Narrow Quay Consulting Ltd,99259047,1710.00,Legal & Professional Services
BEIS,UKRI - UKRI,09/02/2022,Unspecified,UKRI - Governance,Narrow Quay Consulting Ltd,99259048,3420.00,Legal & Professional Services
BEIS,UKRI - UKRI,09/02/2022,Unspecified,UKRI - Governance,Narrow Quay Consulting Ltd,99259049,570.00,Legal & Professional Services
BEIS,UKRI - UKRI,09/02/2022,Unspecified,UKRI - Governance,Narrow Quay Consulting Ltd,99259051,1140.00,Legal & Professional Services
BEIS,UKRI - UKRI,09/02/2022,Unspecified,UKRI - Governance,Narrow Quay Consulting Ltd,99259053,1140.00,Legal & Professional Services
BEIS,UKRI - UKRI,09/02/2022,Unspecified,UKRI - Governance,Narrow Quay Consulting Ltd,99259054,2280.00,Legal & Professional Services
BEIS,UKRI - UKRI,09/02/2022,Unspecified,UKRI - Governance,Narrow Quay Consulting Ltd,99259056,570.00,Legal & Professional Services
BEIS,UKRI - UKRI,09/02/2022,Unspecified,UKRI - Governance,Narrow Quay Consulting Ltd,99259057,570.00,Legal & Professional Services
BEIS,UKRI - Research England,09/02/2022,Non-staff travel and subsistance,RE - Research Excellence Framework (REF),Corporate Travel Management (North) Ltd,99259065,0.80,Non-staff travel and subsistance
BEIS,UKRI - Research England,09/02/2022,Non-staff travel and subsistance,RE - Research Excellence Framework (REF),Corporate Travel Management (North) Ltd,99259065,142.68,Non-staff travel and subsistance
BEIS,UKRI - Research England,09/02/2022,Non-staff travel and subsistance,RE - Research Excellence Framework (REF),Corporate Travel Management (North) Ltd,99259065,0.80,Non-staff travel and subsistance
BEIS,UKRI - Research England,09/02/2022,Non-staff travel and subsistance,RE - Research Excellence Framework (REF),Corporate Travel Management (North) Ltd,99259065,154.98,Non-staff travel and subsistance
BEIS,UKRI - Research England,09/02/2022,Non-staff travel and subsistance,RE - Research Excellence Framework (REF),Corporate Travel Management (North) Ltd,99259065,0.80,Non-staff travel and subsistance
BEIS,UKRI - Research England,09/02/2022,Non-staff travel and subsistance,RE - Research Excellence Framework (REF),Corporate Travel Management (North) Ltd,99259065,142.68,Non-staff travel and subsistance
BEIS,UKRI - Research England,09/02/2022,Non-staff travel and subsistance,RE - Research Excellence Framework (REF),Corporate Travel Management (North) Ltd,99259065,0.80,Non-staff travel and subsistance
BEIS,UKRI - Research England,09/02/2022,Non-staff travel and subsistance,RE - Research Excellence Framework (REF),Corporate Travel Management (North) Ltd,99259065,142.68,Non-staff travel and subsistance
BEIS,UKRI - Research England,09/02/2022,Non-staff travel and subsistance,RE - Research Excellence Framework (REF),Corporate Travel Management (North) Ltd,99259065,0.80,Non-staff travel and subsistance
BEIS,UKRI - Research England,09/02/2022,Non-staff travel and subsistance,RE - Research Excellence Framework (REF),Corporate Travel Management (North) Ltd,99259065,0.80,Non-staff travel and subsistance
BEIS,UKRI - Research England,09/02/2022,Non-staff travel and subsistance,RE - Research Excellence Framework (REF),Corporate Travel Management (North) Ltd,99259065,142.68,Non-staff travel and subsistance
BEIS,UKRI - Research England,09/02/2022,Non-staff travel and subsistance,RE - Research Excellence Framework (REF),Corporate Travel Management (North) Ltd,99259065,0.80,Non-staff travel and subsistance
BEIS,UKRI - Research England,09/02/2022,Non-staff travel and subsistance,RE - Research Excellence Framework (REF),Corporate Travel Management (North) Ltd,99259065,142.68,Non-staff travel and subsistance
BEIS,UKRI - Research England,09/02/2022,Non-staff travel and subsistance,RE - Research Excellence Framework (REF),Corporate Travel Management (North) Ltd,99259065,0.80,Non-staff travel and subsistance
BEIS,UKRI - Research England,09/02/2022,Non-staff travel and subsistance,RE - Research Excellence Framework (REF),Corporate Travel Management (North) Ltd,99259065,142.68,Non-staff travel and subsistance
BEIS,UKRI - Research England,09/02/2022,Non-staff travel and subsistance,RE - Research Excellence Framework (REF),Corporate Travel Management (North) Ltd,99259065,0.80,Non-staff travel and subsistance
BEIS,UKRI - Research England,09/02/2022,Non-staff travel and subsistance,RE - Research Excellence Framework (REF),Corporate Travel Management (North) Ltd,99259065,142.68,Non-staff travel and subsistance
BEIS,UKRI - Research England,09/02/2022,Non-staff travel and subsistance,RE - Research Excellence Framework (REF),Corporate Travel Management (North) Ltd,99259065,0.80,Non-staff travel and subsistance
BEIS,UKRI - Research England,09/02/2022,Non-staff travel and subsistance,RE - Research Excellence Framework (REF),Corporate Travel Management (North) Ltd,99259065,142.68,Non-staff travel and subsistance
BEIS,UKRI - Research England,09/02/2022,Non-staff travel and subsistance,RE - Research Excellence Framework (REF),Corporate Travel Management (North) Ltd,99259065,0.80,Non-staff travel and subsistance
BEIS,UKRI - Research England,09/02/2022,Non-staff travel and subsistance,RE - Research Excellence Framework (REF),Corporate Travel Management (North) Ltd,99259065,142.68,Non-staff travel and subsistance
BEIS,UKRI - Research England,09/02/2022,Non-staff travel and subsistance,RE - Research Excellence Framework (REF),Corporate Travel Management (North) Ltd,99259065,0.80,Non-staff travel and subsistance
BEIS,UKRI - Research England,09/02/2022,Non-staff travel and subsistance,RE - Research Excellence Framework (REF),Corporate Travel Management (North) Ltd,99259065,146.78,Non-staff travel and subsistance
BEIS,UKRI - Research England,09/02/2022,Non-staff travel and subsistance,RE - Research Excellence Framework (REF),Corporate Travel Management (North) Ltd,99259065,0.80,Non-staff travel and subsistance
BEIS,UKRI - Research England,09/02/2022,Non-staff travel and subsistance,RE - Research Excellence Framework (REF),Corporate Travel Management (North) Ltd,99259065,142.68,Non-staff travel and subsistance
BEIS,UKRI - Research England,09/02/2022,Non-staff travel and subsistance,RE - Research Excellence Framework (REF),Corporate Travel Management (North) Ltd,99259065,0.80,Non-staff travel and subsistance
BEIS,UKRI - Research England,09/02/2022,Non-staff travel and subsistance,RE - Research Excellence Framework (REF),Corporate Travel Management (North) Ltd,99259065,146.78,Non-staff travel and subsistance
BEIS,UKRI - Research England,09/02/2022,Non-staff travel and subsistance,RE - Research Excellence Framework (REF),Corporate Travel Management (North) Ltd,99259065,2.24,Non-staff travel and subsistance
BEIS,UKRI - Research England,09/02/2022,T&S Overseas - Flights,RE - Knowledge Exchange,Corporate Travel Management (North) Ltd,99259065,2.50,T&S Overseas - Flights
BEIS,UKRI - Research England,09/02/2022,T&S Overseas - Flights,RE - Knowledge Exchange,Corporate Travel Management (North) Ltd,99259065,830.48,T&S Overseas - Flights
BEIS,UKRI - UKRI,09/02/2022,T&S Overseas - Flights,UKRI - Overseas Office China,Corporate Travel Management (North) Ltd,99259065,17.00,T&S Overseas - Flights
BEIS,UKRI - UKRI,09/02/2022,T&S Overseas - Flights,UKRI - Overseas Office China,Corporate Travel Management (North) Ltd,99259065,16.85,T&S Overseas - Flights
BEIS,UKRI - UKRI,09/02/2022,T&S Overseas - Flights,UKRI - Overseas Office China,Corporate Travel Management (North) Ltd,99259065,17.00,T&S Overseas - Flights
BEIS,UKRI - UKRI,09/02/2022,T&S Overseas - Flights,UKRI - Overseas Office China,Corporate Travel Management (North) Ltd,99259065,17.00,T&S Overseas - Flights
BEIS,UKRI - UKRI,09/02/2022,T&S Overseas - Flights,UKRI - Overseas Office China,Corporate Travel Management (North) Ltd,99259065,4.75,T&S Overseas - Flights
BEIS,UKRI - UKRI,09/02/2022,T&S Overseas - Flights,UKRI - Overseas Office China,Corporate Travel Management (North) Ltd,99259065,600.26,T&S Overseas - Flights
BEIS,UKRI - UKRI,09/02/2022,T&S Overseas - Flights,UKRI - Overseas Office China,Corporate Travel Management (North) Ltd,99259065,4.75,T&S Overseas - Flights
BEIS,UKRI - UKRI,09/02/2022,T&S Overseas - Flights,UKRI - Overseas Office China,Corporate Travel Management (North) Ltd,99259065,600.26,T&S Overseas - Flights
BEIS,UKRI - UKRI,09/02/2022,T&S Overseas - Flights,UKRI - Overseas Office China,Corporate Travel Management (North) Ltd,99259065,4.75,T&S Overseas - Flights
BEIS,UKRI - UKRI,09/02/2022,T&S Overseas - Flights,UKRI - Overseas Office China,Corporate Travel Management (North) Ltd,99259065,308.70,T&S Overseas - Flights
BEIS,UKRI - UKRI,09/02/2022,T&S Overseas - Flights,UKRI - Overseas Office China,Corporate Travel Management (North) Ltd,99259065,4.75,T&S Overseas - Flights
BEIS,UKRI - UKRI,09/02/2022,T&S Overseas - Flights,UKRI - Overseas Office China,Corporate Travel Management (North) Ltd,99259065,308.70,T&S Overseas - Flights
BEIS,UKRI - Research England,09/02/2022,T&S UK - Accommodation,RE - Research Excellence Framework (REF),Corporate Travel Management (North) Ltd,99259065,2.00,T&S UK - Accommodation
BEIS,UKRI - Research England,09/02/2022,T&S UK - Accommodation,RE - Research Excellence Framework (REF),Corporate Travel Management (North) Ltd,99259065,142.68,T&S UK - Accommodation
BEIS,UKRI - Research England,09/02/2022,T&S UK - Accommodation,RE - Research Excellence Framework (REF),Corporate Travel Management (North) Ltd,99259065,0.40,T&S UK - Accommodation
BEIS,UKRI - UKRI,09/02/2022,T&S UK - Accommodation,UKRI - Risk and Counter Fraud,Corporate Travel Management (North) Ltd,99259065,0.80,T&S UK - Accommodation
BEIS,UKRI - UKRI,09/02/2022,T&S UK - Accommodation,UKRI - Risk and Counter Fraud,Corporate Travel Management (North) Ltd,99259065,80.00,T&S UK - Accommodation
BEIS,UKRI - UKRI,09/02/2022,T&S UK - Accommodation,UKRI - Risk and Counter Fraud,Corporate Travel Management (North) Ltd,99259065,0.16,T&S UK - Accommodation
BEIS,UKRI - UKRI,09/02/2022,T&S UK - Accommodation,UKRI - Funding Assurance,Corporate Travel Management (North) Ltd,99259065,0.80,T&S UK - Accommodation
BEIS,UKRI - UKRI,09/02/2022,T&S UK - Accommodation,UKRI - Funding Assurance,Corporate Travel Management (North) Ltd,99259065,80.00,T&S UK - Accommodation
BEIS,UKRI - UKRI,09/02/2022,T&S UK - Accommodation,UKRI - Funding Assurance,Corporate Travel Management (North) Ltd,99259065,0.16,T&S UK - Accommodation
BEIS,UKRI - UKRI,09/02/2022,T&S UK - Flights,UKRI - Communication and Engagement,Corporate Travel Management (North) Ltd,99259065,7.00,T&S UK - Flights
BEIS,UKRI - UKRI,09/02/2022,T&S UK - Flights,UKRI - Communication and Engagement,Corporate Travel Management (North) Ltd,99259065,79.98,T&S UK - Flights
BEIS,UKRI - Research England,09/02/2022,T&S UK - Other Charges,RE - Research Excellence Framework (REF),Corporate Travel Management (North) Ltd,99259065,2.00,T&S UK - Other Charges
BEIS,UKRI - Research England,09/02/2022,T&S UK - Other Charges,RE - Research Excellence Framework (REF),Corporate Travel Management (North) Ltd,99259065,2.00,T&S UK - Other Charges
BEIS,UKRI - Research England,09/02/2022,T&S UK - Other Charges,RE - Research Excellence Framework (REF),Corporate Travel Management (North) Ltd,99259065,2.00,T&S UK - Other Charges
BEIS,UKRI - Research England,09/02/2022,T&S UK - Other Charges,RE - Research Excellence Framework (REF),Corporate Travel Management (North) Ltd,99259065,2.00,T&S UK - Other Charges
BEIS,UKRI - Research England,09/02/2022,T&S UK - Other Charges,RE - Research Excellence Framework (REF),Corporate Travel Management (North) Ltd,99259065,2.00,T&S UK - Other Charges
BEIS,UKRI - Research England,09/02/2022,T&S UK - Other Charges,RE - Research Excellence Framework (REF),Corporate Travel Management (North) Ltd,99259065,2.00,T&S UK - Other Charges
BEIS,UKRI - Research England,09/02/2022,T&S UK - Other Charges,RE - Research Excellence Framework (REF),Corporate Travel Management (North) Ltd,99259065,2.00,T&S UK - Other Charges
BEIS,UKRI - Research England,09/02/2022,T&S UK - Other Charges,RE - Research Excellence Framework (REF),Corporate Travel Management (North) Ltd,99259065,2.00,T&S UK - Other Charges
BEIS,UKRI - Research England,09/02/2022,T&S UK - Other Charges,RE - Research Excellence Framework (REF),Corporate Travel Management (North) Ltd,99259065,2.00,T&S UK - Other Charges
BEIS,UKRI - Research England,09/02/2022,T&S UK - Other Charges,RE - Research Excellence Framework (REF),Corporate Travel Management (North) Ltd,99259065,2.00,T&S UK - Other Charges
BEIS,UKRI - Research England,09/02/2022,T&S UK - Other Charges,RE - Research Excellence Framework (REF),Corporate Travel Management (North) Ltd,99259065,2.00,T&S UK - Other Charges
BEIS,UKRI - Research England,09/02/2022,T&S UK - Other Charges,RE - Research Excellence Framework (REF),Corporate Travel Management (North) Ltd,99259065,0.80,T&S UK - Other Charges
BEIS,UKRI - Research England,09/02/2022,T&S UK - Other Charges,RE - Research Excellence Framework (REF),Corporate Travel Management (North) Ltd,99259065,4.56,T&S UK - Other Charges
BEIS,UKRI - UKRI,09/02/2022,T&S UK - Other Charges,UKRI - Funding Assurance,Corporate Travel Management (North) Ltd,99259065,0.80,T&S UK - Other Charges
BEIS,UKRI - UKRI,09/02/2022,T&S UK - Other Charges,UKRI - Funding Assurance,Corporate Travel Management (North) Ltd,99259065,90.00,T&S UK - Other Charges
BEIS,UKRI - UKRI,09/02/2022,T&S UK - Other Charges,UKRI - Funding Assurance,Corporate Travel Management (North) Ltd,99259065,0.25,T&S UK - Other Charges
BEIS,UKRI - UKRI,09/02/2022,T&S UK - Other Charges,UKRI - Funding Assurance,Corporate Travel Management (North) Ltd,99259065,97.90,T&S UK - Other Charges
BEIS,UKRI - UKRI,09/02/2022,T&S UK - Other Charges,UKRI - Funding Assurance,Corporate Travel Management (North) Ltd,99259065,0.16,T&S UK - Other Charges
BEIS,UKRI - EPSRC,09/02/2022,T&S UK - Public Transport,Exec Chair Support,Corporate Travel Management (North) Ltd,99259065,10.00,T&S UK - Public Transport
BEIS,UKRI - EPSRC,09/02/2022,T&S UK - Public Transport,Exec Chair Support,Corporate Travel Management (North) Ltd,99259065,-60.40,T&S UK - Public Transport
BEIS,UKRI - EPSRC,09/02/2022,T&S UK - Public Transport,Exec Chair Support,Corporate Travel Management (North) Ltd,99259065,0.25,T&S UK - Public Transport
BEIS,UKRI - EPSRC,09/02/2022,T&S UK - Public Transport,Exec Chair Support,Corporate Travel Management (North) Ltd,99259065,52.10,T&S UK - Public Transport
BEIS,UKRI - EPSRC,09/02/2022,T&S UK - Public Transport,Programme Delivery Healthcare,Corporate Travel Management (North) Ltd,99259065,5.00,T&S UK - Public Transport
BEIS,UKRI - EPSRC,09/02/2022,T&S UK - Public Transport,Programme Delivery Healthcare,Corporate Travel Management (North) Ltd,99259065,-147.60,T&S UK - Public Transport
BEIS,UKRI - EPSRC,09/02/2022,T&S UK - Public Transport,Programme Delivery Physical Sciences,Corporate Travel Management (North) Ltd,99259065,-12.00,T&S UK - Public Transport
BEIS,UKRI - Research England,09/02/2022,T&S UK - Public Transport,RE - Executive Group,Corporate Travel Management (North) Ltd,99259065,5.00,T&S UK - Public Transport
BEIS,UKRI - Research England,09/02/2022,T&S UK - Public Transport,RE - Executive Group,Corporate Travel Management (North) Ltd,99259065,-19.60,T&S UK - Public Transport
BEIS,UKRI - Research England,09/02/2022,T&S UK - Public Transport,RE - Research Excellence Framework (REF),Corporate Travel Management (North) Ltd,99259065,0.25,T&S UK - Public Transport
BEIS,UKRI - Research England,09/02/2022,T&S UK - Public Transport,RE - Research Excellence Framework (REF),Corporate Travel Management (North) Ltd,99259065,230.00,T&S UK - Public Transport
BEIS,UKRI - Research England,09/02/2022,T&S UK - Public Transport,RE - Research Excellence Framework (REF),Corporate Travel Management (North) Ltd,99259065,0.25,T&S UK - Public Transport
BEIS,UKRI - Research England,09/02/2022,T&S UK - Public Transport,RE - Research Excellence Framework (REF),Corporate Travel Management (North) Ltd,99259065,129.60,T&S UK - Public Transport
BEIS,UKRI - UKRI,09/02/2022,T&S UK - Public Transport,UKRI - Risk and Counter Fraud,Corporate Travel Management (North) Ltd,99259065,0.25,T&S UK - Public Transport
BEIS,UKRI - UKRI,09/02/2022,T&S UK - Public Transport,UKRI - Risk and Counter Fraud,Corporate Travel Management (North) Ltd,99259065,97.90,T&S UK - Public Transport
BEIS,UKRI - UKRI,09/02/2022,T&S UK - Public Transport,UKRI - Communications Themes and Partnerships,Corporate Travel Management (North) Ltd,99259065,0.25,T&S UK - Public Transport
BEIS,UKRI - UKRI,09/02/2022,T&S UK - Public Transport,UKRI - Communications Themes and Partnerships,Corporate Travel Management (North) Ltd,99259065,69.50,T&S UK - Public Transport
BEIS,UKRI - UKRI,09/02/2022,T&S UK - Public Transport,UKRI - Communications Themes and Partnerships,Corporate Travel Management (North) Ltd,99259065,0.25,T&S UK - Public Transport
BEIS,UKRI - UKRI,09/02/2022,T&S UK - Public Transport,UKRI - Communications Themes and Partnerships,Corporate Travel Management (North) Ltd,99259065,64.70,T&S UK - Public Transport
BEIS,UKRI - UKRI,09/02/2022,T&S UK - Public Transport,UKRI - Estates,Corporate Travel Management (North) Ltd,99259065,0.25,T&S UK - Public Transport
BEIS,UKRI - UKRI,09/02/2022,T&S UK - Public Transport,UKRI - Estates,Corporate Travel Management (North) Ltd,99259065,100.70,T&S UK - Public Transport
BEIS,UKRI - UKRI,09/02/2022,T&S UK - Public Transport,UKRI - Estates,Corporate Travel Management (North) Ltd,99259065,0.25,T&S UK - Public Transport
BEIS,UKRI - UKRI,09/02/2022,T&S UK - Public Transport,UKRI - Estates,Corporate Travel Management (North) Ltd,99259065,100.70,T&S UK - Public Transport
BEIS,UKRI - UKRI,09/02/2022,T&S UK - Public Transport,UKRI - Executive Group,Corporate Travel Management (North) Ltd,99259065,5.00,T&S UK - Public Transport
BEIS,UKRI - UKRI,09/02/2022,T&S UK - Public Transport,UKRI - Executive Group,Corporate Travel Management (North) Ltd,99259065,-300.10,T&S UK - Public Transport
BEIS,UKRI - UKRI,09/02/2022,T&S UK - Public Transport,UKRI - Governance,Corporate Travel Management (North) Ltd,99259065,5.00,T&S UK - Public Transport
BEIS,UKRI - UKRI,09/02/2022,T&S UK - Public Transport,UKRI - Governance,Corporate Travel Management (North) Ltd,99259065,-20.20,T&S UK - Public Transport
BEIS,UKRI - UKRI,09/02/2022,T&S UK - Public Transport,UKRI - Private Office,Corporate Travel Management (North) Ltd,99259065,0.13,T&S UK - Public Transport
BEIS,UKRI - UKRI,09/02/2022,T&S UK - Public Transport,UKRI - Private Office,Corporate Travel Management (North) Ltd,99259065,77.20,T&S UK - Public Transport
BEIS,UKRI - UKRI,09/02/2022,T&S UK - Public Transport,UKRI - Private Office,Corporate Travel Management (North) Ltd,99259065,0.12,T&S UK - Public Transport
BEIS,UKRI - UKRI,09/02/2022,T&S UK - Public Transport,UKRI - Private Office,Corporate Travel Management (North) Ltd,99259065,77.20,T&S UK - Public Transport
BEIS,UKRI - UKRI,09/02/2022,T&S UK - Public Transport,UKRI - Procurement and Commercial,Corporate Travel Management (North) Ltd,99259065,0.25,T&S UK - Public Transport
BEIS,UKRI - UKRI,09/02/2022,T&S UK - Public Transport,UKRI - Procurement and Commercial,Corporate Travel Management (North) Ltd,99259065,27.90,T&S UK - Public Transport
BEIS,UKRI - UKRI,09/02/2022,T&S UK - Public Transport,UKRI - Public Engagement,Corporate Travel Management (North) Ltd,99259065,5.00,T&S UK - Public Transport
BEIS,UKRI - UKRI,09/02/2022,T&S UK - Public Transport,UKRI - Public Engagement,Corporate Travel Management (North) Ltd,99259065,-38.80,T&S UK - Public Transport
BEIS,UKRI - UKRI,09/02/2022,T&S UK - Public Transport,UKRI - Secretariat,Corporate Travel Management (North) Ltd,99259065,5.00,T&S UK - Public Transport
BEIS,UKRI - UKRI,09/02/2022,T&S UK - Public Transport,UKRI - Secretariat,Corporate Travel Management (North) Ltd,99259065,-69.70,T&S UK - Public Transport
BEIS,UKRI - UKRI,09/02/2022,T&S UK - Public Transport,UKRI - Strategy,Corporate Travel Management (North) Ltd,99259065,0.50,T&S UK - Public Transport
BEIS,UKRI - UKRI,09/02/2022,T&S UK - Public Transport,UKRI - Strategy,Corporate Travel Management (North) Ltd,99259065,9.40,T&S UK - Public Transport
BEIS,UKRI - UKRI,09/02/2022,T&S UK - Public Transport,UKRI - Strategy,Corporate Travel Management (North) Ltd,99259065,19.05,T&S UK - Public Transport
BEIS,UKRI - UKRI,09/02/2022,T&S UK - Public Transport,UKRI - Strategy,Corporate Travel Management (North) Ltd,99259065,0.25,T&S UK - Public Transport
BEIS,UKRI - UKRI,09/02/2022,T&S UK - Public Transport,UKRI - Strategy,Corporate Travel Management (North) Ltd,99259065,151.60,T&S UK - Public Transport
BEIS,UKRI - UKRI,09/02/2022,T&S UK - Public Transport,UKRI - Strategy,Corporate Travel Management (North) Ltd,99259065,0.25,T&S UK - Public Transport
BEIS,UKRI - UKRI,09/02/2022,T&S UK - Public Transport,UKRI - Strategy,Corporate Travel Management (North) Ltd,99259065,68.70,T&S UK - Public Transport
BEIS,UKRI - UKRI,09/02/2022,T&S UK - Public Transport,UKRI - Strategy,Corporate Travel Management (North) Ltd,99259065,5.00,T&S UK - Public Transport
BEIS,UKRI - UKRI,09/02/2022,T&S UK - Public Transport,UKRI - Strategy,Corporate Travel Management (North) Ltd,99259065,-47.80,T&S UK - Public Transport
BEIS,UKRI - UKRI,09/02/2022,T&S UK - Public Transport,UKRI - Strategy,Corporate Travel Management (North) Ltd,99259065,0.25,T&S UK - Public Transport
BEIS,UKRI - UKRI,09/02/2022,T&S UK - Public Transport,UKRI - Strategy,Corporate Travel Management (North) Ltd,99259065,84.50,T&S UK - Public Transport
BEIS,UKRI - UKRI,09/02/2022,T&S UK - Public Transport,UKRI Strategic HR Business Partners,Corporate Travel Management (North) Ltd,99259065,0.25,T&S UK - Public Transport
BEIS,UKRI - UKRI,09/02/2022,T&S UK - Public Transport,UKRI Strategic HR Business Partners,Corporate Travel Management (North) Ltd,99259065,190.00,T&S UK - Public Transport
BEIS,UKRI - EPSRC,09/02/2022,T&S UK - Public Transport,University Partnerships,Corporate Travel Management (North) Ltd,99259065,0.25,T&S UK - Public Transport
BEIS,UKRI - EPSRC,09/02/2022,T&S UK - Public Transport,University Partnerships,Corporate Travel Management (North) Ltd,99259065,20.60,T&S UK - Public Transport
BEIS,UKRI - UKRI,09/02/2022,Advertising & Promotion,UKRI - Communications Content,To the Point ltd,99259092,4020.00,Advertising & Promotion
BEIS,UKRI - UKRI,09/02/2022,Consumables,UKRI - JRS,Premier Paper Group Ltd,99259154,808.32,Consumables
BEIS,UKRI - UKRI,09/02/2022,Consumables,UKRI - JRS,Premier Paper Group Ltd,99259154,630.36,Consumables
BEIS,UKRI - EPSRC,09/02/2022,Fees (Including College Members),Governance and Planning,Unspecified,99259169,160.00,Fees (Including College Members)
BEIS,UKRI - UKRI,09/02/2022,T&S UK - Other Charges,UKRI - Assurance,Unspecified,99259231,71.99,T&S UK - Other Charges
BEIS,UKRI - UKRI,09/02/2022,UK - Professional Memberships & Subscriptions,UKRI - Procurement and Commercial,Unspecified,99259232,160.00,UK - Professional Memberships & Subscriptions
BEIS,UKRI - UKRI,09/02/2022,Health & Safety (inc. Medicals & Opticians),"UKRI People, Policies and Management",Unspecified,99259233,25.00,Health & Safety (inc. Medicals & Opticians)
BEIS,UKRI - UKRI,09/02/2022,T&S UK - Mileage,"UKRI People, Policies and Management",Unspecified,99259234,9.45,T&S UK - Mileage
BEIS,UKRI - UKRI,09/02/2022,Education Fees & Study Materials,UKRI - JSS,Unspecified,99259236,21.28,Education Fees & Study Materials
BEIS,UKRI - UKRI,09/02/2022,T&S UK - Other Charges,UKRI - Risk and Counter Fraud,Unspecified,99259237,4.10,T&S UK - Other Charges
BEIS,UKRI - UKRI,09/02/2022,T&S UK - Subsistence,UKRI - Risk and Counter Fraud,Unspecified,99259237,8.44,T&S UK - Subsistence
BEIS,UKRI - UKRI,09/02/2022,T&S UK - Subsistence,UKRI - Strategic Finance Business Partners,Unspecified,99259238,13.09,T&S UK - Subsistence
BEIS,UKRI - UKRI,09/02/2022,T&S UK - Subsistence,UKRI - Strategic Finance Business Partners,Unspecified,99259238,4.55,T&S UK - Subsistence
BEIS,UKRI - UKRI,09/02/2022,T&S UK - Subsistence,UKRI - Strategic Finance Business Partners,Unspecified,99259238,8.95,T&S UK - Subsistence
BEIS,UKRI - UKRI,09/02/2022,T&S UK - Vehicle Hire,UKRI - Strategic Finance Business Partners,Unspecified,99259238,38.08,T&S UK - Vehicle Hire
BEIS,UKRI - UKRI,09/02/2022,Purchase of non capital equipment,UKRI - Digital Data and Technology BAU Costs,Premier Farnell UK Ltd T/A Farnell Onecall,99260544,85.32,Purchase of non capital equipment
BEIS,UKRI - UKRI,09/02/2022,Maintenance of Research & Scientific Equipment,UKRI - Estates,Harrow Green Ltd T/A Restore Harrow Green,99265446,10.08,Maintenance of Research & Scientific Equipment
BEIS,UKRI - UKRI,09/02/2022,Telecoms - Non Capital Hardware Costs,UKRI - Digital Data and Technology Recharges,Telefonica UK Ltd (O2),99266415,577.20,Telecoms - Non Capital Hardware Costs
BEIS,UKRI - UKRI,09/02/2022,Unspecified,UKRI - Communications Projects and Services,University of Edinburgh,99269420,6322.00,Legal & Professional Services
BEIS,UKRI - UKRI,09/02/2022,Printing & Stationery,UKRI - Culture Leadership and Learning,Banner Group Ltd,99269427,13.44,Printing & Stationery
BEIS,UKRI - UKRI,09/02/2022,Purchase of non capital equipment,UKRI - Digital Data and Technology BAU Costs,Premier Farnell UK Ltd T/A Farnell Onecall,99269487,50.54,Purchase of non capital equipment
BEIS,UKRI - Research England,09/02/2022,Safety Materials & Equipment,RE - Research Excellence Framework (REF),Banner Group Ltd,99269517,29.58,Safety Materials & Equipment
BEIS,UKRI - Research England,09/02/2022,Safety Materials & Equipment,RE - Research Excellence Framework (REF),Banner Group Ltd,99269517,51.50,Safety Materials & Equipment
BEIS,UKRI - UKRI,09/02/2022,Staff Training,UKRI - BEIS ODA,Oxford Professional Education Group Ltd,99270422,1890.00,Staff Training
BEIS,UKRI - UKRI,09/02/2022,Health & Safety (inc. Medicals & Opticians),UKRI - Culture Leadership and Learning,Swindon Occupational Medical Services Ltd,99270444,1330.00,Health & Safety (inc. Medicals & Opticians)
BEIS,UKRI - UKRI,09/02/2022,Unspecified,Public Engagement Programmes,Unspecified,99272450,8100.00,Legal & Professional Services
BEIS,UKRI - UKRI,09/02/2022,Postage & Courier Services,UKRI - JBOS,Fedex Express UK Transportation Ltd,99272464,55.68,Postage & Courier Services
BEIS,UKRI - UKRI,10/02/2022,Advertising & Promotion,UKRI - Communications Themes and Partnerships,McDaid Public Relations Ltd,99067883,840.00,Advertising & Promotion
BEIS,UKRI - UKRI,10/02/2022,Staff Training,UKRI - BEIS ODA,QA Ltd,99103407,2277.00,Staff Training
BEIS,UKRI - UKRI,10/02/2022,Computer Software Licences,UKRI - Digital Data and Technology BAU Costs,JISC,99133446,2312.40,Computer Software Licences
BEIS,UKRI - UKRI,10/02/2022,Computer Software Licences,UKRI - Digital Data and Technology BAU Costs,JISC,99133446,651.60,Computer Software Licences
BEIS,UKRI - UKRI,10/02/2022,Catering Contracts,UKRI - JBOS,Aramark Ltd,99137888,28460.60,Catering Contracts
BEIS,UKRI - UKRI,10/02/2022,Unspecified,UKRI - Governance,Unspecified,99206783,749.64,Legal & Professional Services
BEIS,UKRI - UKRI,10/02/2022,Research Consumables,UKRI - Communications Strategy and Planning,Echo Research Ltd,99237439,5970.00,Research Consumables
BEIS,UKRI - UKRI,10/02/2022,Catering Contracts,UKRI - JBOS,Aramark Ltd,99250285,24537.06,Catering Contracts
BEIS,UKRI - UKRI,10/02/2022,Printing & Stationery,UKRI - Procurement and Commercial,Banner Group Ltd,99255501,28.24,Printing & Stationery
BEIS,UKRI - UKRI,10/02/2022,Staff Training,UKRI - Culture Leadership and Learning,ASK Europe PLC,99257519,115.20,Staff Training
BEIS,UKRI - UKRI,10/02/2022,Recruitment Costs,UKRI People and Organisation Development,Agenda Resource Management Ltd,99259064,6816.20,Recruitment Costs
BEIS,UKRI - UKRI,10/02/2022,T&S UK - Other Charges,UKRI - Digital Data and Technology BAU Costs,Unspecified,99259235,288.93,T&S UK - Other Charges
BEIS,UKRI - UKRI,10/02/2022,Staff Training,UKRI - Executive Group,Dods Group Ltd,99259334,2514.00,Staff Training
BEIS,UKRI - Research England,10/02/2022,Staff Training,RE - Research,Hazel Bees Consulting Ltd,99259374,1454.40,Staff Training
BEIS,UKRI - UKRI,10/02/2022,Unspecified,UKRI - Digital Data and Technology Project Costs,Unspecified,99260581,3520.00,Legal & Professional Services
BEIS,UKRI - UKRI,10/02/2022,Recruitment Costs,UKRI People and Organisation Development,Agenda Resource Management Ltd,99271594,307.82,Recruitment Costs
BEIS,UKRI - UKRI,10/02/2022,Other Staff Benefits,UKRI - Culture Leadership and Learning,Health Assured Ltd,99273593,338.40,Other Staff Benefits
BEIS,UKRI - UKRI,10/02/2022,Unspecified,Research Integrity Committee,Research Consulting Ltd,99273703,17982.00,Legal & Professional Services
BEIS,UKRI - UKRI,10/02/2022,Non-staff travel and subsistance,UKRI - Corporate Services,Corporate Travel Management (North) Ltd,99273720,0.25,Non-staff travel and subsistance
BEIS,UKRI - UKRI,10/02/2022,Non-staff travel and subsistance,UKRI - Corporate Services,Corporate Travel Management (North) Ltd,99273720,152.60,Non-staff travel and subsistance
BEIS,UKRI - UKRI,10/02/2022,Non-staff travel and subsistance,UKRI - Funding Assurance,Corporate Travel Management (North) Ltd,99273720,0.25,Non-staff travel and subsistance
BEIS,UKRI - UKRI,10/02/2022,Non-staff travel and subsistance,UKRI - Funding Assurance,Corporate Travel Management (North) Ltd,99273720,97.90,Non-staff travel and subsistance
BEIS,UKRI - UKRI,10/02/2022,T&S UK - Accommodation,UKRI - Risk and Counter Fraud,Corporate Travel Management (North) Ltd,99273720,0.80,T&S UK - Accommodation
BEIS,UKRI - UKRI,10/02/2022,T&S UK - Accommodation,UKRI - Risk and Counter Fraud,Corporate Travel Management (North) Ltd,99273720,75.00,T&S UK - Accommodation
BEIS,UKRI - UKRI,10/02/2022,T&S UK - Accommodation,UKRI - Risk and Counter Fraud,Corporate Travel Management (North) Ltd,99273720,0.16,T&S UK - Accommodation
BEIS,UKRI - UKRI,10/02/2022,T&S UK - Accommodation,UKRI - Digital Data and Technology BAU Costs,Corporate Travel Management (North) Ltd,99273720,90.00,T&S UK - Accommodation
BEIS,UKRI - UKRI,10/02/2022,T&S UK - Accommodation,UKRI - Digital Data and Technology BAU Costs,Corporate Travel Management (North) Ltd,99273720,0.80,T&S UK - Accommodation
BEIS,UKRI - UKRI,10/02/2022,T&S UK - Accommodation,UKRI - Digital Data and Technology BAU Costs,Corporate Travel Management (North) Ltd,99273720,90.00,T&S UK - Accommodation
BEIS,UKRI - UKRI,10/02/2022,T&S UK - Accommodation,UKRI - Digital Data and Technology BAU Costs,Corporate Travel Management (North) Ltd,99273720,0.80,T&S UK - Accommodation
BEIS,UKRI - UKRI,10/02/2022,T&S UK - Accommodation,UKRI - Digital Data and Technology BAU Costs,Corporate Travel Management (North) Ltd,99273720,0.32,T&S UK - Accommodation
BEIS,UKRI - UKRI,10/02/2022,T&S UK - Accommodation,UKRI - Funding Assurance,Corporate Travel Management (North) Ltd,99273720,0.80,T&S UK - Accommodation
BEIS,UKRI - UKRI,10/02/2022,T&S UK - Accommodation,UKRI - Funding Assurance,Corporate Travel Management (North) Ltd,99273720,70.00,T&S UK - Accommodation
BEIS,UKRI - UKRI,10/02/2022,T&S UK - Accommodation,UKRI - Funding Assurance,Corporate Travel Management (North) Ltd,99273720,0.80,T&S UK - Accommodation
BEIS,UKRI - UKRI,10/02/2022,T&S UK - Accommodation,UKRI - Funding Assurance,Corporate Travel Management (North) Ltd,99273720,1.60,T&S UK - Accommodation
BEIS,UKRI - UKRI,10/02/2022,T&S UK - Accommodation,UKRI - Funding Assurance,Corporate Travel Management (North) Ltd,99273720,80.00,T&S UK - Accommodation
BEIS,UKRI - UKRI,10/02/2022,T&S UK - Accommodation,UKRI - Funding Assurance,Corporate Travel Management (North) Ltd,99273720,0.80,T&S UK - Accommodation
BEIS,UKRI - UKRI,10/02/2022,T&S UK - Accommodation,UKRI - Funding Assurance,Corporate Travel Management (North) Ltd,99273720,55.00,T&S UK - Accommodation
BEIS,UKRI - UKRI,10/02/2022,T&S UK - Accommodation,UKRI - Funding Assurance,Corporate Travel Management (North) Ltd,99273720,0.80,T&S UK - Accommodation
BEIS,UKRI - UKRI,10/02/2022,T&S UK - Accommodation,UKRI - Procurement and Commercial,Corporate Travel Management (North) Ltd,99273720,0.80,T&S UK - Accommodation
BEIS,UKRI - UKRI,10/02/2022,T&S UK - Accommodation,UKRI - Procurement and Commercial,Corporate Travel Management (North) Ltd,99273720,76.50,T&S UK - Accommodation
BEIS,UKRI - UKRI,10/02/2022,T&S UK - Accommodation,UKRI - Procurement and Commercial,Corporate Travel Management (North) Ltd,99273720,0.16,T&S UK - Accommodation
BEIS,UKRI - UKRI,10/02/2022,T&S UK - Accommodation,UKRI Strategic HR Business Partners,Corporate Travel Management (North) Ltd,99273720,0.80,T&S UK - Accommodation
BEIS,UKRI - UKRI,10/02/2022,T&S UK - Accommodation,UKRI Strategic HR Business Partners,Corporate Travel Management (North) Ltd,99273720,0.16,T&S UK - Accommodation
BEIS,UKRI - UKRI,10/02/2022,T&S UK - Public Transport,Inspiring Science Fund,Corporate Travel Management (North) Ltd,99273720,0.25,T&S UK - Public Transport
BEIS,UKRI - UKRI,10/02/2022,T&S UK - Public Transport,Inspiring Science Fund,Corporate Travel Management (North) Ltd,99273720,41.40,T&S UK - Public Transport
BEIS,UKRI - UKRI,10/02/2022,T&S UK - Public Transport,Inspiring Science Fund,Corporate Travel Management (North) Ltd,99273720,86.80,T&S UK - Public Transport
BEIS,UKRI - UKRI,10/02/2022,T&S UK - Public Transport,Inspiring Science Fund,Corporate Travel Management (North) Ltd,99273720,0.25,T&S UK - Public Transport
BEIS,UKRI - UKRI,10/02/2022,T&S UK - Public Transport,UKRI - Corporate Services,Corporate Travel Management (North) Ltd,99273720,0.25,T&S UK - Public Transport
BEIS,UKRI - UKRI,10/02/2022,T&S UK - Public Transport,UKRI - Corporate Services,Corporate Travel Management (North) Ltd,99273720,81.20,T&S UK - Public Transport
BEIS,UKRI - UKRI,10/02/2022,T&S UK - Public Transport,UKRI - Corporate Services,Corporate Travel Management (North) Ltd,99273720,2.60,T&S UK - Public Transport
BEIS,UKRI - UKRI,10/02/2022,T&S UK - Public Transport,UKRI - Corporate Services,Corporate Travel Management (North) Ltd,99273720,81.20,T&S UK - Public Transport
BEIS,UKRI - UKRI,10/02/2022,T&S UK - Public Transport,UKRI - Corporate Services,Corporate Travel Management (North) Ltd,99273720,5.00,T&S UK - Public Transport
BEIS,UKRI - UKRI,10/02/2022,T&S UK - Public Transport,UKRI - Corporate Services,Corporate Travel Management (North) Ltd,99273720,-76.20,T&S UK - Public Transport
BEIS,UKRI - UKRI,10/02/2022,T&S UK - Public Transport,UKRI - Council Partnership and Performance,Corporate Travel Management (North) Ltd,99273720,145.60,T&S UK - Public Transport
BEIS,UKRI - UKRI,10/02/2022,T&S UK - Public Transport,UKRI - Council Partnership and Performance,Corporate Travel Management (North) Ltd,99273720,0.25,T&S UK - Public Transport
BEIS,UKRI - UKRI,10/02/2022,T&S UK - Public Transport,UKRI - Council Partnership and Performance,Corporate Travel Management (North) Ltd,99273720,68.70,T&S UK - Public Transport
BEIS,UKRI - UKRI,10/02/2022,T&S UK - Public Transport,UKRI - Council Partnership and Performance,Corporate Travel Management (North) Ltd,99273720,0.25,T&S UK - Public Transport
BEIS,UKRI - UKRI,10/02/2022,T&S UK - Public Transport,UKRI - Council Partnership and Performance,Corporate Travel Management (North) Ltd,99273720,29.55,T&S UK - Public Transport
BEIS,UKRI - UKRI,10/02/2022,T&S UK - Public Transport,UKRI - Council Partnership and Performance,Corporate Travel Management (North) Ltd,99273720,0.50,T&S UK - Public Transport
BEIS,UKRI - UKRI,10/02/2022,T&S UK - Public Transport,UKRI - Council Partnership and Performance,Corporate Travel Management (North) Ltd,99273720,20.30,T&S UK - Public Transport
BEIS,UKRI - UKRI,10/02/2022,T&S UK - Public Transport,"UKRI - Data Policy, Governance and MI",Corporate Travel Management (North) Ltd,99273720,75.70,T&S UK - Public Transport
BEIS,UKRI - UKRI,10/02/2022,T&S UK - Public Transport,"UKRI - Data Policy, Governance and MI",Corporate Travel Management (North) Ltd,99273720,0.25,T&S UK - Public Transport
BEIS,UKRI - UKRI,10/02/2022,T&S UK - Public Transport,UKRI - Digital Data and Technology BAU Costs,Corporate Travel Management (North) Ltd,99273720,144.80,T&S UK - Public Transport
BEIS,UKRI - UKRI,10/02/2022,T&S UK - Public Transport,UKRI - Digital Data and Technology BAU Costs,Corporate Travel Management (North) Ltd,99273720,0.25,T&S UK - Public Transport
BEIS,UKRI - UKRI,10/02/2022,T&S UK - Public Transport,UKRI - Digital Data and Technology BAU Costs,Corporate Travel Management (North) Ltd,99273720,10.00,T&S UK - Public Transport
BEIS,UKRI - UKRI,10/02/2022,T&S UK - Public Transport,UKRI - Digital Data and Technology BAU Costs,Corporate Travel Management (North) Ltd,99273720,-155.80,T&S UK - Public Transport
BEIS,UKRI - UKRI,10/02/2022,T&S UK - Public Transport,UKRI - Digital Data and Technology BAU Costs,Corporate Travel Management (North) Ltd,99273720,10.00,T&S UK - Public Transport
BEIS,UKRI - UKRI,10/02/2022,T&S UK - Public Transport,UKRI - Digital Data and Technology BAU Costs,Corporate Travel Management (North) Ltd,99273720,-304.40,T&S UK - Public Transport
BEIS,UKRI - UKRI,10/02/2022,T&S UK - Public Transport,UKRI - Digital Data and Technology BAU Costs,Corporate Travel Management (North) Ltd,99273720,190.00,T&S UK - Public Transport
BEIS,UKRI - UKRI,10/02/2022,T&S UK - Public Transport,UKRI - Digital Data and Technology BAU Costs,Corporate Travel Management (North) Ltd,99273720,0.25,T&S UK - Public Transport
BEIS,UKRI - UKRI,10/02/2022,T&S UK - Public Transport,UKRI - Estates,Corporate Travel Management (North) Ltd,99273720,41.20,T&S UK - Public Transport
BEIS,UKRI - UKRI,10/02/2022,T&S UK - Public Transport,UKRI - Estates,Corporate Travel Management (North) Ltd,99273720,0.25,T&S UK - Public Transport
BEIS,UKRI - UKRI,10/02/2022,T&S UK - Public Transport,UKRI - Estates,Corporate Travel Management (North) Ltd,99273720,12.30,T&S UK - Public Transport
BEIS,UKRI - UKRI,10/02/2022,T&S UK - Public Transport,UKRI - Estates,Corporate Travel Management (North) Ltd,99273720,0.25,T&S UK - Public Transport
BEIS,UKRI - UKRI,10/02/2022,T&S UK - Public Transport,UKRI - Estates,Corporate Travel Management (North) Ltd,99273720,35.20,T&S UK - Public Transport
BEIS,UKRI - UKRI,10/02/2022,T&S UK - Public Transport,UKRI - Estates,Corporate Travel Management (North) Ltd,99273720,0.25,T&S UK - Public Transport
BEIS,UKRI - UKRI,10/02/2022,T&S UK - Public Transport,UKRI - Executive Group,Corporate Travel Management (North) Ltd,99273720,0.25,T&S UK - Public Transport
BEIS,UKRI - UKRI,10/02/2022,T&S UK - Public Transport,UKRI - Executive Group,Corporate Travel Management (North) Ltd,99273720,93.90,T&S UK - Public Transport
BEIS,UKRI - UKRI,10/02/2022,T&S UK - Public Transport,UKRI - Executive Group,Corporate Travel Management (North) Ltd,99273720,198.00,T&S UK - Public Transport
BEIS,UKRI - UKRI,10/02/2022,T&S UK - Public Transport,UKRI - Executive Group,Corporate Travel Management (North) Ltd,99273720,0.50,T&S UK - Public Transport
BEIS,UKRI - UKRI,10/02/2022,T&S UK - Public Transport,UKRI - H2020 Extended Underwrite OPEX,Corporate Travel Management (North) Ltd,99273720,48.20,T&S UK - Public Transport
BEIS,UKRI - UKRI,10/02/2022,T&S UK - Public Transport,UKRI - H2020 Extended Underwrite OPEX,Corporate Travel Management (North) Ltd,99273720,0.25,T&S UK - Public Transport
BEIS,UKRI - UKRI,10/02/2022,T&S UK - Public Transport,UKRI - H2020 Extended Underwrite OPEX,Corporate Travel Management (North) Ltd,99273720,0.25,T&S UK - Public Transport
BEIS,UKRI - UKRI,10/02/2022,T&S UK - Public Transport,UKRI - H2020 Extended Underwrite OPEX,Corporate Travel Management (North) Ltd,99273720,48.20,T&S UK - Public Transport
BEIS,UKRI - UKRI,10/02/2022,T&S UK - Public Transport,UKRI - H2020 Underwrite OPEX,Corporate Travel Management (North) Ltd,99273720,22.00,T&S UK - Public Transport
BEIS,UKRI - UKRI,10/02/2022,T&S UK - Public Transport,UKRI - H2020 Underwrite OPEX,Corporate Travel Management (North) Ltd,99273720,2.60,T&S UK - Public Transport
BEIS,UKRI - UKRI,10/02/2022,T&S UK - Public Transport,UKRI - H2020 Underwrite OPEX,Corporate Travel Management (North) Ltd,99273720,0.25,T&S UK - Public Transport
BEIS,UKRI - UKRI,10/02/2022,T&S UK - Public Transport,UKRI - H2020 Underwrite OPEX,Corporate Travel Management (North) Ltd,99273720,81.70,T&S UK - Public Transport
BEIS,UKRI - UKRI,10/02/2022,T&S UK - Public Transport,UKRI - Human Resources Support,Corporate Travel Management (North) Ltd,99273720,0.25,T&S UK - Public Transport
BEIS,UKRI - UKRI,10/02/2022,T&S UK - Public Transport,UKRI - Human Resources Support,Corporate Travel Management (North) Ltd,99273720,152.60,T&S UK - Public Transport
BEIS,UKRI - UKRI,10/02/2022,T&S UK - Public Transport,UKRI - International Communications,Corporate Travel Management (North) Ltd,99273720,-8.50,T&S UK - Public Transport
BEIS,UKRI - UKRI,10/02/2022,T&S UK - Public Transport,UKRI - International Communications,Corporate Travel Management (North) Ltd,99273720,5.00,T&S UK - Public Transport
BEIS,UKRI - UKRI,10/02/2022,T&S UK - Public Transport,UKRI - Legal,Corporate Travel Management (North) Ltd,99273720,-47.40,T&S UK - Public Transport
BEIS,UKRI - UKRI,10/02/2022,T&S UK - Public Transport,UKRI - Legal,Corporate Travel Management (North) Ltd,99273720,5.00,T&S UK - Public Transport
BEIS,UKRI - UKRI,10/02/2022,T&S UK - Public Transport,UKRI - Management Reporting,Corporate Travel Management (North) Ltd,99273720,39.00,T&S UK - Public Transport
BEIS,UKRI - UKRI,10/02/2022,T&S UK - Public Transport,UKRI - Management Reporting,Corporate Travel Management (North) Ltd,99273720,0.25,T&S UK - Public Transport
BEIS,UKRI - UKRI,10/02/2022,T&S UK - Public Transport,UKRI - Management Reporting,Corporate Travel Management (North) Ltd,99273720,64.05,T&S UK - Public Transport
BEIS,UKRI - UKRI,10/02/2022,T&S UK - Public Transport,UKRI - Management Reporting,Corporate Travel Management (North) Ltd,99273720,0.25,T&S UK - Public Transport
BEIS,UKRI - UKRI,10/02/2022,T&S UK - Public Transport,UKRI - Procurement and Commercial,Corporate Travel Management (North) Ltd,99273720,184.10,T&S UK - Public Transport
BEIS,UKRI - UKRI,10/02/2022,T&S UK - Public Transport,UKRI - Procurement and Commercial,Corporate Travel Management (North) Ltd,99273720,0.25,T&S UK - Public Transport
BEIS,UKRI - UKRI,10/02/2022,T&S UK - Public Transport,UKRI - Secretariat,Corporate Travel Management (North) Ltd,99273720,-11.80,T&S UK - Public Transport
BEIS,UKRI - UKRI,10/02/2022,T&S UK - Public Transport,UKRI - Strategic Finance Business Partners,Corporate Travel Management (North) Ltd,99273720,5.00,T&S UK - Public Transport
BEIS,UKRI - UKRI,10/02/2022,T&S UK - Public Transport,UKRI - Strategic Finance Business Partners,Corporate Travel Management (North) Ltd,99273720,-146.60,T&S UK - Public Transport
BEIS,UKRI - UKRI,10/02/2022,T&S UK - Public Transport,UKRI - Strategy,Corporate Travel Management (North) Ltd,99273720,0.25,T&S UK - Public Transport
BEIS,UKRI - UKRI,10/02/2022,T&S UK - Public Transport,UKRI - Strategy,Corporate Travel Management (North) Ltd,99273720,119.50,T&S UK - Public Transport
BEIS,UKRI - UKRI,10/02/2022,T&S UK - Public Transport,UKRI - Strategy,Corporate Travel Management (North) Ltd,99273720,5.00,T&S UK - Public Transport
BEIS,UKRI - UKRI,10/02/2022,T&S UK - Public Transport,UKRI - Strategy,Corporate Travel Management (North) Ltd,99273720,-95.70,T&S UK - Public Transport
BEIS,UKRI - UKRI,10/02/2022,T&S UK - Public Transport,UKRI - Strategy,Corporate Travel Management (North) Ltd,99273720,-74.80,T&S UK - Public Transport
BEIS,UKRI - UKRI,10/02/2022,Computer Software,UKRI - Risk and Counter Fraud,Experian Ltd,99273748,8400.00,Computer Software
BEIS,UKRI - UKRI,10/02/2022,Unspecified,UKRI - Digital Data and Technology BAU Costs,Chakray UK Ltd,99273770,3000.00,Legal & Professional Services
BEIS,UKRI - UKRI,10/02/2022,Unspecified,UKRI - Digital Data and Technology BAU Costs,Chakray UK Ltd,99273772,3000.00,Legal & Professional Services
BEIS,UKRI - UKRI,10/02/2022,Unspecified,UKRI - Digital Data and Technology BAU Costs,Chakray UK Ltd,99273773,3000.00,Legal & Professional Services
BEIS,UKRI - UKRI,10/02/2022,Unspecified,UKRI - Digital Data and Technology BAU Costs,Chakray UK Ltd,99273774,3000.00,Legal & Professional Services
BEIS,UKRI - Research England,10/02/2022,Consultancy Services,RE - Research,Jisc Services Ltd,99273775,45930.00,Consultancy Services
BEIS,UKRI - UKRI,10/02/2022,Unspecified,UKRI-SHARP,Sanderson Government and Defence Ltd,99274424,6300.00,Contract Staff
BEIS,UKRI - UKRI,10/02/2022,Unspecified,UKRI-SHARP,Sanderson Government and Defence Ltd,99274429,14084.70,Contract Staff
BEIS,UKRI - UKRI,10/02/2022,Unspecified,UKRI - Culture Leadership and Learning,The Colour Works International Limited,99274532,442.80,Legal & Professional Services
BEIS,UKRI - UKRI,10/02/2022,T&S UK - Other Charges,UKRI - Risk and Counter Fraud,Unspecified,99274583,3.60,T&S UK - Other Charges
BEIS,UKRI - UKRI,10/02/2022,T&S UK - Subsistence,UKRI - Risk and Counter Fraud,Unspecified,99274583,7.49,T&S UK - Subsistence
BEIS,UKRI - UKRI,10/02/2022,T&S UK - Other Charges,UKRI - JSS,Unspecified,99274585,11.00,T&S UK - Other Charges
BEIS,UKRI - Research England,10/02/2022,T&S UK - Public Transport,RE - Knowledge Exchange,Unspecified,99274587,57.26,T&S UK - Public Transport
BEIS,UKRI - UKRI,10/02/2022,T&S UK - Other Charges,UKRI-SHARP,Unspecified,99274588,48.99,T&S UK - Other Charges
BEIS,UKRI - EPSRC,10/02/2022,T&S UK - Mileage,Programme Delivery Engineering,Unspecified,99274589,44.00,T&S UK - Mileage
BEIS,UKRI - UKRI,10/02/2022,T&S UK - Other Charges,UKRI - Corporate Services,Unspecified,99274590,7.65,T&S UK - Other Charges
BEIS,UKRI - UKRI,11/02/2022,General Building Maintenance,UKRI - JBOS,Roman Glass Ltd,99226513,144.00,General Building Maintenance
BEIS,UKRI - UKRI,11/02/2022,Computing Consumables,UKRI - Digital Data and Technology BAU Costs,UK Shared Business Services Ltd,99233418,50592.99,Computing Consumables
BEIS,UKRI - UKRI,11/02/2022,Marketing & PR,UKRI - Communications Content,McDaid Public Relations Ltd,99245417,1440.00,Marketing & PR
BEIS,UKRI - UKRI,11/02/2022,Unspecified,UKRI - Funding Service,Hays Specialist Recruitment Ltd,99250141,15282.65,Agency Staff
BEIS,UKRI - UKRI,11/02/2022,Unspecified,UKRI - Funding Service,Hays Specialist Recruitment Ltd,99250141,3396.14,Agency Staff
BEIS,UKRI - UKRI,11/02/2022,Unspecified,UKRI - Funding Service,Hays Specialist Recruitment Ltd,99250145,16980.72,Agency Staff
BEIS,UKRI - UKRI,11/02/2022,T&S UK - Other Charges,Reforming Our Business,Unspecified,99250446,313.33,T&S UK - Other Charges
BEIS,UKRI - UKRI,11/02/2022,Staff Training,EDI,Wonkhe Ltd,99259090,354.00,Staff Training
BEIS,UKRI - UKRI,11/02/2022,Consumables,UKRI - JRS,Premier Paper Group Ltd,99259153,371.95,Consumables
BEIS,UKRI - Research England,11/02/2022,Other Staff Benefits,RE - Operations and Private Office,Ofs and RE Sports and Social Club,99259362,214.00,Other Staff Benefits
BEIS,UKRI - Research England,11/02/2022,Other Staff Benefits,RE - Operations and Private Office,Ofs and RE Sports and Social Club,99259391,206.00,Other Staff Benefits
BEIS,UKRI - Research England,11/02/2022,Unspecified,RE - Research Excellence Framework (REF),Sheffield Hallam University,99273454,20710.00,Council & Committee Honoraria
BEIS,UKRI - Research England,11/02/2022,Unspecified,RE - Research Excellence Framework (REF),Sheffield Hallam University,99273455,15200.16,Council & Committee Honoraria
BEIS,UKRI - UKRI,11/02/2022,Staff Training,UKRI - Culture Leadership and Learning,ASK Europe PLC,99273742,1267.20,Staff Training
BEIS,UKRI - UKRI,11/02/2022,Recruitment Costs,UKRI People and Organisation Development,Onefix Recruitment Ltd,99274636,60.00,Recruitment Costs
BEIS,UKRI - UKRI,11/02/2022,Recruitment Costs,UKRI People and Organisation Development,Onefix Recruitment Ltd,99274639,60.00,Recruitment Costs
BEIS,UKRI - UKRI,11/02/2022,Recruitment Costs,UKRI People and Organisation Development,Onefix Recruitment Ltd,99274640,60.00,Recruitment Costs
BEIS,UKRI - UKRI,11/02/2022,Recruitment Costs,UKRI People and Organisation Development,Onefix Recruitment Ltd,99274642,1254.00,Recruitment Costs
BEIS,UKRI - UKRI,11/02/2022,Recruitment Costs,UKRI People and Organisation Development,Onefix Recruitment Ltd,99274644,1254.00,Recruitment Costs
BEIS,UKRI - UKRI,11/02/2022,Recruitment Costs,UKRI People and Organisation Development,Onefix Recruitment Ltd,99274645,1734.00,Recruitment Costs
BEIS,UKRI - UKRI,11/02/2022,Recruitment Costs,UKRI People and Organisation Development,Onefix Recruitment Ltd,99274646,1554.00,Recruitment Costs
BEIS,UKRI - UKRI,11/02/2022,Recruitment Costs,UKRI People and Organisation Development,Onefix Recruitment Ltd,99274648,420.00,Recruitment Costs
BEIS,UKRI - UKRI,11/02/2022,Recruitment Costs,UKRI People and Organisation Development,Onefix Recruitment Ltd,99274649,420.00,Recruitment Costs
BEIS,UKRI - UKRI,11/02/2022,Unspecified,UKRI - Strategic Finance Business Partners,Alexander Mann Solutions Ltd,99274783,1260.12,Agency Staff
BEIS,UKRI - UKRI,11/02/2022,Unspecified,UKRI - Communications Web and Intranet Service,Alexander Mann Solutions Ltd,99274784,1908.86,Contract Staff
BEIS,UKRI - UKRI,11/02/2022,Unspecified,UKRI People and Organisation Development,Alexander Mann Solutions Ltd,99274797,1575.12,Contract Staff
BEIS,UKRI - UKRI,11/02/2022,Recruitment Costs,UKRI People and Organisation Development,Onefix Recruitment Ltd,99274901,234.00,Recruitment Costs
BEIS,UKRI - EPSRC,11/02/2022,Fees (Including College Members),Business Improvement,Unspecified,99274902,160.00,Fees (Including College Members)
BEIS,UKRI - EPSRC,11/02/2022,Fees (Including College Members),Business Improvement,Unspecified,99274903,160.00,Fees (Including College Members)
BEIS,UKRI - EPSRC,11/02/2022,Fees (Including College Members),Business Improvement,Unspecified,99274904,320.00,Fees (Including College Members)
BEIS,UKRI - EPSRC,11/02/2022,Fees (Including College Members),Business Improvement,Unspecified,99274905,320.00,Fees (Including College Members)
BEIS,UKRI - EPSRC,11/02/2022,Fees (Including College Members),Business Improvement,Unspecified,99274906,320.00,Fees (Including College Members)
BEIS,UKRI - EPSRC,11/02/2022,Fees (Including College Members),Business Improvement,Unspecified,99274907,160.00,Fees (Including College Members)
BEIS,UKRI - UKRI,11/02/2022,Advertising & Promotion,UKRI - Communications Strategy and Planning,Unspecified,99274950,140.00,Advertising & Promotion
BEIS,UKRI - Research England,11/02/2022,Unspecified,RE - Research Excellence Framework (REF),Sheffield Hallam University,99275482,-24852.00,Council & Committee Honoraria
BEIS,UKRI - UKRI,11/02/2022,Unspecified,UKRI - Digital Data and Technology Project Costs,Alexander Mann Solutions Ltd,99275494,76.99,Contract Staff
BEIS,UKRI - UKRI,11/02/2022,Printing & Stationery,UKRI - JBOS,Rapid Electronics Ltd,99280435,7.16,Printing & Stationery
BEIS,UKRI - UKRI,11/02/2022,T&S UK - Other Charges,UKRI Strategic HR Business Partners,Unspecified,99282453,2.74,T&S UK - Other Charges
BEIS,UKRI - UKRI,11/02/2022,T&S UK - Parking Tolls Congestion Charges,UKRI Strategic HR Business Partners,Unspecified,99282453,6.70,T&S UK - Parking Tolls Congestion Charges
BEIS,UKRI - UKRI,11/02/2022,T&S UK - Public Transport,UKRI Strategic HR Business Partners,Unspecified,99282453,12.80,T&S UK - Public Transport
BEIS,UKRI - UKRI,11/02/2022,T&S UK - Public Transport,UKRI Strategic HR Business Partners,Unspecified,99282453,69.30,T&S UK - Public Transport
BEIS,UKRI - UKRI,11/02/2022,UK - Professional Memberships & Subscriptions,UKRI - BEIS ODA,Unspecified,99282454,99.99,UK - Professional Memberships & Subscriptions
BEIS,UKRI - UKRI,11/02/2022,Health & Safety (inc. Medicals & Opticians),UKRI-SHARP,Unspecified,99282455,25.00,Health & Safety (inc. Medicals & Opticians)
BEIS,UKRI - UKRI,14/02/2022,Unspecified,UKRI - Digital Data and Technology BAU Costs,Objective Corporation Ltd,99086217,9120.00,Legal & Professional Services
BEIS,UKRI - UKRI,14/02/2022,Unspecified,UKRI - Digital Data and Technology BAU Costs,Objective Corporation Ltd,99168805,783.75,Legal & Professional Services
BEIS,UKRI - UKRI,14/02/2022,Unspecified,UKRI - Digital Data and Technology BAU Costs,Objective Corporation Ltd,99244418,285.00,Legal & Professional Services
BEIS,UKRI - UKRI,14/02/2022,Consultancy Services,UKRI - Project Management Office,TMI Systems Ltd,99246445,4800.00,Consultancy Services
BEIS,UKRI - UKRI,14/02/2022,Unspecified,Horizon Europe Scoping Phase OPEX,Reed Specialist Recruitment Ltd,99249492,619.50,Agency Staff
BEIS,UKRI - UKRI,14/02/2022,Unspecified,Horizon Europe Scoping Phase OPEX,Reed Specialist Recruitment Ltd,99249496,619.50,Agency Staff
BEIS,UKRI - UKRI,14/02/2022,Unspecified,Horizon Europe Scoping Phase OPEX,Reed Specialist Recruitment Ltd,99249499,619.50,Agency Staff
BEIS,UKRI - UKRI,14/02/2022,Unspecified,Horizon Europe Scoping Phase OPEX,Reed Specialist Recruitment Ltd,99249502,787.50,Agency Staff
BEIS,UKRI - UKRI,14/02/2022,Unspecified,Horizon Europe Scoping Phase OPEX,Reed Specialist Recruitment Ltd,99249506,777.00,Agency Staff
BEIS,UKRI - EPSRC,14/02/2022,Unspecified,Balance Sheet,HM Revenue & Customs,99249547,580370.40,PAYE Payable Salaries
BEIS,UKRI - EPSRC,14/02/2022,Unspecified,Balance Sheet,HM Revenue & Customs,99249548,764150.37,NI Payable Salaries
BEIS,UKRI - EPSRC,14/02/2022,Unspecified,Balance Sheet,HM Revenue & Customs,99249549,28092.00,Student Loans
BEIS,UKRI - EPSRC,14/02/2022,Unspecified,EPSRC Corporate Services,HM Revenue & Customs,99249550,20457.00,Apprenticeship Levy
BEIS,UKRI - EPSRC,14/02/2022,Unspecified,Balance Sheet,HM Revenue & Customs,99250013,3443.00,PAYE Payable Salaries
BEIS,UKRI - EPSRC,14/02/2022,Unspecified,Balance Sheet,HM Revenue & Customs,99250014,314.94,NI Payable Salaries
BEIS,UKRI - EPSRC,14/02/2022,Unspecified,EPSRC Corporate Services,HM Revenue & Customs,99250015,55.00,Apprenticeship Levy
BEIS,UKRI - EPSRC,14/02/2022,Unspecified,Balance Sheet,HM Revenue & Customs,99250167,1941.20,PAYE Payable Salaries
BEIS,UKRI - EPSRC,14/02/2022,Unspecified,EPSRC Corporate Services,HM Revenue & Customs,99250168,31.00,Apprenticeship Levy
BEIS,UKRI - UKRI,14/02/2022,Unspecified,UKRI - Digital Data and Technology BAU Costs,AMAZON WEB SERVICES INC,99257469,36150.47,IT Cloud Services
BEIS,UKRI - UKRI,14/02/2022,Unspecified,UKRI - Digital Data and Technology Recharges,AMAZON WEB SERVICES INC,99257469,13921.63,IT Cloud Services
BEIS,UKRI - UKRI,14/02/2022,Unspecified,UKRI - Digital Data and Technology BAU Costs,AMAZON WEB SERVICES INC,99257476,37385.15,IT Cloud Services
BEIS,UKRI - UKRI,14/02/2022,Unspecified,UKRI - Digital Data and Technology Recharges,AMAZON WEB SERVICES INC,99257476,15403.07,IT Cloud Services
BEIS,UKRI - UKRI,14/02/2022,Unspecified,UKRI - Digital Data and Technology BAU Costs,AMAZON WEB SERVICES INC,99257478,40281.76,IT Cloud Services
BEIS,UKRI - UKRI,14/02/2022,Unspecified,UKRI - Digital Data and Technology Recharges,AMAZON WEB SERVICES INC,99257478,15624.07,IT Cloud Services
BEIS,UKRI - UKRI,14/02/2022,Unspecified,UKRI - Digital Data and Technology BAU Costs,AMAZON WEB SERVICES INC,99257481,35846.69,IT Cloud Services
BEIS,UKRI - UKRI,14/02/2022,Unspecified,UKRI - Digital Data and Technology Recharges,AMAZON WEB SERVICES INC,99257481,14655.84,IT Cloud Services
BEIS,UKRI - UKRI,14/02/2022,Unspecified,UKRI - Funding Service,Alexander Mann Solutions Ltd,99258512,4619.52,Contract Staff
BEIS,UKRI - EPSRC,14/02/2022,Unspecified,Balance Sheet,HM Revenue & Customs,99258630,91449.85,PAYE Payable Salaries
BEIS,UKRI - EPSRC,14/02/2022,Unspecified,Balance Sheet,HM Revenue & Customs,99258631,127983.08,NI Payable Salaries
BEIS,UKRI - EPSRC,14/02/2022,Unspecified,Balance Sheet,HM Revenue & Customs,99258632,9880.00,Student Loans
BEIS,UKRI - EPSRC,14/02/2022,Unspecified,EPSRC Corporate Services,HM Revenue & Customs,99258633,3563.00,Apprenticeship Levy
BEIS,UKRI - EPSRC,14/02/2022,Unspecified,Balance Sheet,HM Revenue & Customs,99258644,43547.50,PAYE Payable Salaries
BEIS,UKRI - EPSRC,14/02/2022,Unspecified,Balance Sheet,HM Revenue & Customs,99258645,53939.40,NI Payable Salaries
BEIS,UKRI - EPSRC,14/02/2022,Unspecified,Balance Sheet,HM Revenue & Customs,99258646,3649.00,Student Loans
BEIS,UKRI - EPSRC,14/02/2022,Unspecified,EPSRC Corporate Services,HM Revenue & Customs,99258647,1318.00,Apprenticeship Levy
BEIS,UKRI - UKRI,14/02/2022,Unspecified,UKRI - Digital Data and Technology Project Costs,Sanderson Government and Defence Ltd,99259408,13446.30,Contract Staff
BEIS,UKRI - UKRI,14/02/2022,Unspecified,UKRI - Digital Data and Technology Project Costs,Unspecified,99260582,1800.00,Contract Staff
BEIS,UKRI - UKRI,14/02/2022,Unspecified,UKRI - Funding Service,Networthnet Ltd T/A Worth Internet Systems,99266426,126055.52,Legal & Professional Services
BEIS,UKRI - UKRI,14/02/2022,Recruitment Costs,UKRI People and Organisation Development,Onefix Recruitment Ltd,99272481,1074.00,Recruitment Costs
BEIS,UKRI - UKRI,14/02/2022,Recruitment Costs,UKRI People and Organisation Development,Onefix Recruitment Ltd,99272484,60.00,Recruitment Costs
BEIS,UKRI - UKRI,14/02/2022,Unspecified,UKRI - Digital Data and Technology Project Costs,LA International Computer Consultants Ltd,99273416,6586.80,Contract Staff
BEIS,UKRI - UKRI,14/02/2022,Consumables,UKRI - JRS,Premier Paper Group Ltd,99273428,-800.16,Consumables
BEIS,UKRI - UKRI,14/02/2022,Consumables,UKRI - JRS,Premier Paper Group Ltd,99273429,800.16,Consumables
BEIS,UKRI - UKRI,14/02/2022,Unspecified,Horizon Europe Scoping Phase OPEX,Reed Specialist Recruitment Ltd,99273692,777.00,Agency Staff
BEIS,UKRI - UKRI,14/02/2022,Unspecified,Horizon Europe Scoping Phase OPEX,Reed Specialist Recruitment Ltd,99273694,777.00,Agency Staff
BEIS,UKRI - UKRI,14/02/2022,Unspecified,Horizon Europe Scoping Phase OPEX,Reed Specialist Recruitment Ltd,99273695,777.00,Agency Staff
BEIS,UKRI - UKRI,14/02/2022,Unspecified,Horizon Europe Scoping Phase OPEX,Reed Specialist Recruitment Ltd,99273696,777.00,Agency Staff
BEIS,UKRI - UKRI,14/02/2022,Unspecified,Horizon Europe Scoping Phase OPEX,Reed Specialist Recruitment Ltd,99273697,777.00,Agency Staff
BEIS,UKRI - UKRI,14/02/2022,Unspecified,UKRI - Digital Data and Technology Project Costs,Sanderson Government and Defence Ltd,99274418,8815.50,Contract Staff
BEIS,UKRI - UKRI,14/02/2022,Unspecified,UKRI - Digital Data and Technology Project Costs,Sanderson Government and Defence Ltd,99274426,13446.30,Contract Staff
BEIS,UKRI - UKRI,14/02/2022,Recruitment Costs,UKRI People and Organisation Development,Onefix Recruitment Ltd,99274633,654.00,Recruitment Costs
BEIS,UKRI - UKRI,14/02/2022,Recruitment Costs,UKRI People and Organisation Development,Onefix Recruitment Ltd,99274641,60.00,Recruitment Costs
BEIS,UKRI - UKRI,14/02/2022,Unspecified,UKRI - Digital Data and Technology BAU Costs,Alexander Mann Solutions Ltd,99274782,4431.36,Contract Staff
BEIS,UKRI - UKRI,14/02/2022,Staff Training,UKRI - Culture Leadership and Learning,Management Pocketbooks Ltd,99274885,4365.00,Staff Training
BEIS,UKRI - UKRI,14/02/2022,Recruitment Costs,UKRI People and Organisation Development,Onefix Recruitment Ltd,99274898,886.80,Recruitment Costs
BEIS,UKRI - UKRI,14/02/2022,Computer Software Licences,UKRI - Digital Data and Technology BAU Costs,BOTTOMLINE TECHNOLOGIES LTD,99274971,0.03,Computer Software Licences
BEIS,UKRI - UKRI,14/02/2022,Computer Software Licences,UKRI - Digital Data and Technology BAU Costs,BOTTOMLINE TECHNOLOGIES LTD,99274971,11344.79,Computer Software Licences
BEIS,UKRI - UKRI,14/02/2022,Computer Software Licences,UKRI - Digital Data and Technology BAU Costs,BOTTOMLINE TECHNOLOGIES LTD,99274971,0.01,Computer Software Licences
BEIS,UKRI - UKRI,14/02/2022,Unspecified,UKRI - Communications Web and Intranet Service,Alexander Mann Solutions Ltd,99275222,1908.86,Contract Staff
BEIS,UKRI - UKRI,14/02/2022,Recruitment Costs,UKRI People and Organisation Development,Alexander Mann Solutions Ltd,99275273,945.06,Recruitment Costs
BEIS,UKRI - UKRI,14/02/2022,Unspecified,UKRI - Legal,Alexander Mann Solutions Ltd,99275282,4312.62,Contract Staff
BEIS,UKRI - UKRI,14/02/2022,Recruitment Costs,"UKRI People, Policies and Management",Alexander Mann Solutions Ltd,99275289,1575.12,Recruitment Costs
BEIS,UKRI - UKRI,14/02/2022,Printing & Stationery,UKRI - Estates,Banner Group Ltd,99275374,11.16,Printing & Stationery
BEIS,UKRI - UKRI,14/02/2022,Corporate Events,UKRI - Communications Projects and Services,Magictouch Promotions LTD,99275375,1012.80,Corporate Events
BEIS,UKRI - UKRI,14/02/2022,Catering Contracts,UKRI - JBOS,Aramark Ltd,99275385,1142.88,Catering Contracts
BEIS,UKRI - Research England,14/02/2022,Non-staff travel and subsistance,RE - Research Excellence Framework (REF),Unspecified,99275408,52.65,Non-staff travel and subsistance
BEIS,UKRI - Research England,14/02/2022,Non-staff travel and subsistance,RE - Research Excellence Framework (REF),Unspecified,99275409,196.60,Non-staff travel and subsistance
BEIS,UKRI - Research England,14/02/2022,Non-staff travel and subsistance,RE - Research Excellence Framework (REF),Unspecified,99275410,73.66,Non-staff travel and subsistance
BEIS,UKRI - Research England,14/02/2022,Non-staff travel and subsistance,RE - Research Excellence Framework (REF),Unspecified,99275411,88.29,Non-staff travel and subsistance
BEIS,UKRI - Research England,14/02/2022,Non-staff travel and subsistance,RE - Research Excellence Framework (REF),Unspecified,99275412,31.47,Non-staff travel and subsistance
BEIS,UKRI - Research England,14/02/2022,Non-staff travel and subsistance,RE - Research Excellence Framework (REF),Unspecified,99275413,73.30,Non-staff travel and subsistance
BEIS,UKRI - Research England,14/02/2022,Non-staff travel and subsistance,RE - Research Excellence Framework (REF),Unspecified,99275414,235.60,Non-staff travel and subsistance
BEIS,UKRI - UKRI,14/02/2022,Unspecified,UKRI - Digital Data and Technology Project Costs,Alexander Mann Solutions Ltd,99275501,1868.76,Contract Staff
BEIS,UKRI - UKRI,14/02/2022,Unspecified,UKRI - Digital Data and Technology Project Costs,Alexander Mann Solutions Ltd,99282503,2045.23,Contract Staff
BEIS,UKRI - UKRI,14/02/2022,Unspecified,UKRI People and Organisation Development,Alexander Mann Solutions Ltd,99282507,1260.12,Contract Staff
BEIS,UKRI - UKRI,14/02/2022,Unspecified,UKRI - Digital Data and Technology Project Costs,Alexander Mann Solutions Ltd,99282518,1868.76,Contract Staff
BEIS,UKRI - UKRI,14/02/2022,Unspecified,UKRI - Funding Service,Alexander Mann Solutions Ltd,99282534,11548.62,Contract Staff
BEIS,UKRI - UKRI,14/02/2022,Unspecified,UKRI - Funding Service,Alexander Mann Solutions Ltd,99282545,4619.52,Contract Staff
BEIS,UKRI - UKRI,14/02/2022,Unspecified,UKRI People and Organisation Development,Alexander Mann Solutions Ltd,99282548,1260.12,Contract Staff
BEIS,UKRI - UKRI,14/02/2022,Unspecified,UKRI - Human Resources Support,Alexander Mann Solutions Ltd,99283441,369.56,Contract Staff
BEIS,UKRI - UKRI,14/02/2022,Unspecified,"UKRI People, Policies and Management",Alexander Mann Solutions Ltd,99283449,2322.18,Agency Staff
BEIS,UKRI - UKRI,14/02/2022,Unspecified,UKRI People and Organisation Development,Alexander Mann Solutions Ltd,99283457,1575.12,Contract Staff
BEIS,UKRI - UKRI,14/02/2022,Staff Training,UKRI - Culture Leadership and Learning,Swindon and Gloucestershire Mind,99285415,1062.00,Staff Training
BEIS,UKRI - UKRI,14/02/2022,Staff Training,UKRI - Culture Leadership and Learning,Swindon and Gloucestershire Mind,99285415,1062.00,Staff Training
BEIS,UKRI - UKRI,14/02/2022,Recruitment Costs,UKRI People and Organisation Development,Onefix Recruitment Ltd,99285420,750.00,Recruitment Costs
BEIS,UKRI - Research England,14/02/2022,Non-staff travel and subsistance,RE - Research Excellence Framework (REF),Unspecified,99287415,1.99,Non-staff travel and subsistance
BEIS,UKRI - Research England,14/02/2022,Non-staff travel and subsistance,RE - Research Excellence Framework (REF),Unspecified,99287416,12.50,Non-staff travel and subsistance
BEIS,UKRI - Research England,14/02/2022,Non-staff travel and subsistance,RE - Research Excellence Framework (REF),Unspecified,99287417,10.40,Non-staff travel and subsistance
BEIS,UKRI - Research England,14/02/2022,Non-staff travel and subsistance,RE - Research Excellence Framework (REF),Unspecified,99287418,7.70,Non-staff travel and subsistance
BEIS,UKRI - Research England,14/02/2022,Non-staff travel and subsistance,RE - Research Excellence Framework (REF),Unspecified,99287419,7.10,Non-staff travel and subsistance
BEIS,UKRI - Research England,14/02/2022,Non-staff travel and subsistance,RE - Research Excellence Framework (REF),Unspecified,99287420,11.10,Non-staff travel and subsistance
BEIS,UKRI - Research England,14/02/2022,Non-staff travel and subsistance,RE - Research Excellence Framework (REF),Unspecified,99287421,3.85,Non-staff travel and subsistance
BEIS,UKRI - Research England,14/02/2022,Non-staff travel and subsistance,RE - Research Excellence Framework (REF),Unspecified,99287422,4.70,Non-staff travel and subsistance
BEIS,UKRI - Research England,14/02/2022,Non-staff travel and subsistance,RE - Research Excellence Framework (REF),Unspecified,99287423,7.42,Non-staff travel and subsistance
BEIS,UKRI - Research England,14/02/2022,Non-staff travel and subsistance,RE - Research Excellence Framework (REF),Unspecified,99287424,14.55,Non-staff travel and subsistance
BEIS,UKRI - Research England,14/02/2022,Non-staff travel and subsistance,RE - Research Excellence Framework (REF),Unspecified,99287425,5.34,Non-staff travel and subsistance
BEIS,UKRI - Research England,14/02/2022,Non-staff travel and subsistance,RE - Research Excellence Framework (REF),Unspecified,99287426,16.99,Non-staff travel and subsistance
BEIS,UKRI - Research England,14/02/2022,Non-staff travel and subsistance,RE - Research Excellence Framework (REF),Unspecified,99287427,3.20,Non-staff travel and subsistance
BEIS,UKRI - Research England,14/02/2022,Non-staff travel and subsistance,RE - Research Excellence Framework (REF),Unspecified,99287428,70.00,Non-staff travel and subsistance
BEIS,UKRI - Research England,14/02/2022,Non-staff travel and subsistance,RE - Research Excellence Framework (REF),Unspecified,99287429,167.82,Non-staff travel and subsistance
BEIS,UKRI - Research England,14/02/2022,Non-staff travel and subsistance,RE - Research Excellence Framework (REF),Unspecified,99287430,3.20,Non-staff travel and subsistance
BEIS,UKRI - Research England,14/02/2022,Non-staff travel and subsistance,RE - Research Excellence Framework (REF),Unspecified,99287431,122.10,Non-staff travel and subsistance
BEIS,UKRI - Research England,14/02/2022,Non-staff travel and subsistance,RE - Research Excellence Framework (REF),Unspecified,99287432,49.60,Non-staff travel and subsistance
BEIS,UKRI - Research England,14/02/2022,Non-staff travel and subsistance,RE - Research Excellence Framework (REF),Unspecified,99287433,69.10,Non-staff travel and subsistance
BEIS,UKRI - Research England,14/02/2022,Non-staff travel and subsistance,RE - Research Excellence Framework (REF),Unspecified,99287434,229.55,Non-staff travel and subsistance
BEIS,UKRI - Research England,14/02/2022,Non-staff travel and subsistance,RE - Research Excellence Framework (REF),Unspecified,99287435,3.85,Non-staff travel and subsistance
BEIS,UKRI - Research England,14/02/2022,Non-staff travel and subsistance,RE - Research Excellence Framework (REF),Unspecified,99287436,19.19,Non-staff travel and subsistance
BEIS,UKRI - Research England,14/02/2022,Non-staff travel and subsistance,RE - Research Excellence Framework (REF),Unspecified,99287437,3.20,Non-staff travel and subsistance
BEIS,UKRI - Research England,14/02/2022,Non-staff travel and subsistance,RE - Research Excellence Framework (REF),Unspecified,99287438,15.20,Non-staff travel and subsistance
BEIS,UKRI - Research England,14/02/2022,Non-staff travel and subsistance,RE - Research Excellence Framework (REF),Unspecified,99287439,21.34,Non-staff travel and subsistance
BEIS,UKRI - Research England,14/02/2022,Non-staff travel and subsistance,RE - Research Excellence Framework (REF),Unspecified,99287440,7.99,Non-staff travel and subsistance
BEIS,UKRI - Research England,14/02/2022,Non-staff travel and subsistance,RE - Research Excellence Framework (REF),Unspecified,99287441,27.58,Non-staff travel and subsistance
BEIS,UKRI - Research England,14/02/2022,Non-staff travel and subsistance,RE - Research Excellence Framework (REF),Unspecified,99287442,109.90,Non-staff travel and subsistance
BEIS,UKRI - Research England,14/02/2022,Non-staff travel and subsistance,RE - Research Excellence Framework (REF),Unspecified,99287443,143.35,Non-staff travel and subsistance
BEIS,UKRI - Research England,14/02/2022,Non-staff travel and subsistance,RE - Research Excellence Framework (REF),Unspecified,99287444,95.90,Non-staff travel and subsistance
BEIS,UKRI - Research England,14/02/2022,Non-staff travel and subsistance,RE - Research Excellence Framework (REF),Unspecified,99287445,42.40,Non-staff travel and subsistance
BEIS,UKRI - Research England,14/02/2022,Non-staff travel and subsistance,RE - Research Excellence Framework (REF),Unspecified,99287446,83.50,Non-staff travel and subsistance
BEIS,UKRI - Research England,14/02/2022,Non-staff travel and subsistance,RE - Research Excellence Framework (REF),Unspecified,99287447,145.90,Non-staff travel and subsistance
BEIS,UKRI - Research England,14/02/2022,Non-staff travel and subsistance,RE - Research Excellence Framework (REF),Unspecified,99287448,127.35,Non-staff travel and subsistance
BEIS,UKRI - Research England,14/02/2022,Non-staff travel and subsistance,RE - Research Excellence Framework (REF),Unspecified,99287449,8.99,Non-staff travel and subsistance
BEIS,UKRI - Research England,14/02/2022,Non-staff travel and subsistance,RE - Research Excellence Framework (REF),Unspecified,99287450,34.40,Non-staff travel and subsistance
BEIS,UKRI - Research England,14/02/2022,Non-staff travel and subsistance,RE - Research Excellence Framework (REF),Unspecified,99287451,5.29,Non-staff travel and subsistance
BEIS,UKRI - Research England,14/02/2022,Non-staff travel and subsistance,RE - Research Excellence Framework (REF),Unspecified,99287452,136.95,Non-staff travel and subsistance
BEIS,UKRI - Research England,14/02/2022,Non-staff travel and subsistance,RE - Research Excellence Framework (REF),Unspecified,99287453,43.95,Non-staff travel and subsistance
BEIS,UKRI - Research England,14/02/2022,Non-staff travel and subsistance,RE - Research Excellence Framework (REF),Unspecified,99287454,71.80,Non-staff travel and subsistance
BEIS,UKRI - Research England,14/02/2022,Non-staff travel and subsistance,RE - Research Excellence Framework (REF),Unspecified,99287455,6.24,Non-staff travel and subsistance
BEIS,UKRI - UKRI,14/02/2022,T&S UK - Public Transport,UKRI - Funding Assurance,Unspecified,99287483,97.90,T&S UK - Public Transport
BEIS,UKRI - UKRI,14/02/2022,T&S UK - Subsistence,UKRI - Funding Assurance,Unspecified,99287483,14.95,T&S UK - Subsistence
BEIS,UKRI - UKRI,14/02/2022,T&S UK - Subsistence,UKRI - Funding Assurance,Unspecified,99287483,5.00,T&S UK - Subsistence
BEIS,UKRI - UKRI,15/02/2022,Computer Software,UKRI - Digital Data and Technology Library Services,Elsevier B.V.,99038063,25999.74,Computer Software
BEIS,UKRI - UKRI,15/02/2022,Vehicle Leasing Costs,UKRI - Digital Data and Technology BAU Costs,Enterprise Rent-A-Car UK Ltd,99080361,226.80,Vehicle Leasing Costs
BEIS,UKRI - UKRI,15/02/2022,Health & Safety (inc. Medicals & Opticians),UKRI Strategic HR Business Partners,Swindon Occupational Medical Services Ltd,99160419,700.00,Health & Safety (inc. Medicals & Opticians)
BEIS,UKRI - UKRI,15/02/2022,Health & Safety (inc. Medicals & Opticians),UKRI Strategic HR Business Partners,Swindon Occupational Medical Services Ltd,99160419,350.00,Health & Safety (inc. Medicals & Opticians)
BEIS,UKRI - UKRI,15/02/2022,Postage & Courier Services,UKRI - Estates,Francotyp-Postalia Ltd,99183223,390.00,Postage & Courier Services
BEIS,UKRI - UKRI,15/02/2022,Books Professional Journals & Guides,UKRI - Digital Data and Technology Library Services,Peak District Mines Historical Society Ltd,99190658,35.00,Books Professional Journals & Guides
BEIS,UKRI - UKRI,15/02/2022,Unspecified,UKRI - Digital Data and Technology Project Costs,Alexander Mann Solutions Ltd,99207315,2205.18,Contract Staff
BEIS,UKRI - UKRI,15/02/2022,Unspecified,UKRI - Digital Data and Technology Project Costs,Alexander Mann Solutions Ltd,99207385,2771.70,Contract Staff
BEIS,UKRI - UKRI,15/02/2022,Unspecified,UKRI - Digital Data and Technology Project Costs,Alexander Mann Solutions Ltd,99223425,3510.84,Contract Staff
BEIS,UKRI - Research England,15/02/2022,Unspecified,RE - Research Excellence Framework (REF),Queen's University Belfast,99249423,750.00,Council & Committee Honoraria
BEIS,UKRI - EPSRC,15/02/2022,Union Deductions,Balance Sheet,PCS Union,99249551,625.25,Union Deductions
BEIS,UKRI - EPSRC,15/02/2022,Voluntary Deductions,Balance Sheet,Swindon Office Sports and Social Club,99249552,288.00,Voluntary Deductions
BEIS,UKRI - EPSRC,15/02/2022,Unspecified,Balance Sheet,Unspecified,99249553,394896.85,Ers Pension Deductions - JSS
BEIS,UKRI - EPSRC,15/02/2022,Unspecified,Balance Sheet,Unspecified,99249554,94747.92,Ees Pension Deductions - JSS
BEIS,UKRI - EPSRC,15/02/2022,Unspecified,Balance Sheet,Standard Life Assurance Ltd,99249555,1985.41,Partnership Pension Deductions
BEIS,UKRI - EPSRC,15/02/2022,Unspecified,Balance Sheet,Standard Life Assurance Ltd,99249556,850.00,Other Pension Deductions
BEIS,UKRI - EPSRC,15/02/2022,Unspecified,Balance Sheet,Cabinet Office RM Shared Services,99249558,130810.68,Ees Pension Deductions - MyCSP
BEIS,UKRI - EPSRC,15/02/2022,Unspecified,Balance Sheet,Cabinet Office RM Shared Services,99249559,605966.06,Ers Pension Deductions - MyCSP
BEIS,UKRI - EPSRC,15/02/2022,Unspecified,Balance Sheet,Cabinet Office RM Shared Services,99249560,388.13,Ees Pension Deductions - JSS
BEIS,UKRI - EPSRC,15/02/2022,Unspecified,Balance Sheet,Cabinet Office RM Shared Services,99249561,1473.31,Ers Pension Deductions - JSS
BEIS,UKRI - EPSRC,15/02/2022,Unspecified,Balance Sheet,Cabinet Office RM Shared Services,99249562,295.68,Ers Pension Deductions - JSS
BEIS,UKRI - EPSRC,15/02/2022,Unspecified,Balance Sheet,Scottish Widows,99249563,215.39,Other Pension Deductions
BEIS,UKRI - EPSRC,15/02/2022,Unspecified,Balance Sheet,Scottish Widows,99249564,5682.44,Partnership Pension Deductions
BEIS,UKRI - EPSRC,15/02/2022,Unspecified,Balance Sheet,Equitable Life Assurance Society,99249565,1.74,Other Pension Deductions
BEIS,UKRI - EPSRC,15/02/2022,Unspecified,Balance Sheet,Unspecified,99249566,15426.82,Ees Pension Deductions - MRC
BEIS,UKRI - EPSRC,15/02/2022,Unspecified,Balance Sheet,Unspecified,99249567,38003.65,Ers Pension Deductions - MRC
BEIS,UKRI - EPSRC,15/02/2022,Union Deductions,Balance Sheet,Prospect Union,99249568,18.26,Union Deductions
BEIS,UKRI - EPSRC,15/02/2022,Voluntary Deductions,Balance Sheet,Harwell Rec Soc,99249569,12.00,Voluntary Deductions
BEIS,UKRI - EPSRC,15/02/2022,Voluntary Deductions,Balance Sheet,Civil Service Sports Council,99249570,90.00,Voluntary Deductions
BEIS,UKRI - EPSRC,15/02/2022,Unspecified,Balance Sheet,Equiniti Ltd,99249571,768.40,Other Pension Deductions
BEIS,UKRI - EPSRC,15/02/2022,Voluntary Deductions,Balance Sheet,Simplyhealth,99249572,13.13,Voluntary Deductions
BEIS,UKRI - EPSRC,15/02/2022,Voluntary Deductions,Balance Sheet,The Office for Students,99249573,2.00,Voluntary Deductions
BEIS,UKRI - UKRI,15/02/2022,Unspecified,UKRI - Funding Service,Alexander Mann Solutions Ltd,99257508,3937.86,Contract Staff
BEIS,UKRI - UKRI,15/02/2022,Unspecified,UKRI - Funding Service,Alexander Mann Solutions Ltd,99257511,3150.30,Contract Staff
BEIS,UKRI - UKRI,15/02/2022,Unspecified,UKRI - Digital Data and Technology BAU Costs,Alexander Mann Solutions Ltd,99258485,2771.70,Contract Staff
BEIS,UKRI - UKRI,15/02/2022,Unspecified,UKRI - Funding Service,Alexander Mann Solutions Ltd,99258492,4003.56,Contract Staff
BEIS,UKRI - UKRI,15/02/2022,Unspecified,UKRI - Digital Data and Technology Project Costs,Alexander Mann Solutions Ltd,99258494,2771.70,Contract Staff
BEIS,UKRI - UKRI,15/02/2022,Unspecified,UKRI - Digital Data and Technology Project Costs,Alexander Mann Solutions Ltd,99258525,2205.18,Contract Staff
BEIS,UKRI - UKRI,15/02/2022,Unspecified,UKRI - Digital Data and Technology Project Costs,Alexander Mann Solutions Ltd,99258532,3510.84,Contract Staff
BEIS,UKRI - EPSRC,15/02/2022,Unspecified,Balance Sheet,Scottish Widows,99258634,34.90,Partnership Pension Deductions
BEIS,UKRI - EPSRC,15/02/2022,Union Deductions,Balance Sheet,PCS Union,99258635,40.03,Union Deductions
BEIS,UKRI - EPSRC,15/02/2022,Voluntary Deductions,Balance Sheet,Swindon Office Sports and Social Club,99258636,98.00,Voluntary Deductions
BEIS,UKRI - EPSRC,15/02/2022,Unspecified,Balance Sheet,Unspecified,99258637,110059.84,Ers Pension Deductions - JSS
BEIS,UKRI - EPSRC,15/02/2022,Unspecified,Balance Sheet,Unspecified,99258638,25475.27,Ees Pension Deductions - JSS
BEIS,UKRI - EPSRC,15/02/2022,Unspecified,Balance Sheet,Cabinet Office RM Shared Services,99258639,39.99,Ers Pension Deductions - JSS
BEIS,UKRI - EPSRC,15/02/2022,Unspecified,Balance Sheet,Unspecified,99258640,274.64,Ees Pension Deductions - MRC
BEIS,UKRI - EPSRC,15/02/2022,Unspecified,Balance Sheet,Unspecified,99258641,676.03,Ers Pension Deductions - MRC
BEIS,UKRI - EPSRC,15/02/2022,Unspecified,Balance Sheet,Cabinet Office RM Shared Services,99258642,16947.02,Ees Pension Deductions - MyCSP
BEIS,UKRI - EPSRC,15/02/2022,Unspecified,Balance Sheet,Cabinet Office RM Shared Services,99258643,80290.02,Ers Pension Deductions - MyCSP
BEIS,UKRI - EPSRC,15/02/2022,Union Deductions,Balance Sheet,PCS Union,99258648,56.60,Union Deductions
BEIS,UKRI - EPSRC,15/02/2022,Voluntary Deductions,Balance Sheet,The Office for Students,99258649,34.00,Voluntary Deductions
BEIS,UKRI - EPSRC,15/02/2022,Unspecified,Balance Sheet,Cabinet Office RM Shared Services,99258650,524.19,Ees Pension Deductions - JSS
BEIS,UKRI - EPSRC,15/02/2022,Unspecified,Balance Sheet,Cabinet Office RM Shared Services,99258651,2160.94,Ers Pension Deductions - JSS
BEIS,UKRI - EPSRC,15/02/2022,Unspecified,Balance Sheet,Cabinet Office RM Shared Services,99258652,30.04,Ers Pension Deductions - JSS
BEIS,UKRI - EPSRC,15/02/2022,Voluntary Deductions,Balance Sheet,Civil Service Benevolent Fund,99258653,2.50,Voluntary Deductions
BEIS,UKRI - EPSRC,15/02/2022,Unspecified,Balance Sheet,Cabinet Office RM Shared Services,99258654,14085.92,Ees Pension Deductions - MyCSP
BEIS,UKRI - EPSRC,15/02/2022,Unspecified,Balance Sheet,Cabinet Office RM Shared Services,99258655,65859.03,Ers Pension Deductions - MyCSP
BEIS,UKRI - EPSRC,15/02/2022,Unspecified,Balance Sheet,Unspecified,99258656,5163.20,Ers Pension Deductions - JSS
BEIS,UKRI - EPSRC,15/02/2022,Unspecified,Balance Sheet,Unspecified,99258657,1220.45,Ees Pension Deductions - JSS
BEIS,UKRI - UKRI,15/02/2022,Consultancy Services,UKRI - Digital Data and Technology Project Costs,Unspecified,99266441,378505.56,Consultancy Services
BEIS,UKRI - UKRI,15/02/2022,Unspecified,UKRI - Digital Data and Technology Project Costs,Unspecified,99266441,273916.44,Legal & Professional Services
BEIS,UKRI - Research England,15/02/2022,Unspecified,RE - Operations and Private Office,LA International Computer Consultants Ltd,99273420,2993.40,Agency Staff
BEIS,UKRI - EPSRC,15/02/2022,Printing & Stationery,EPSRC Corporate Services,Banner Group Ltd,99275177,17.54,Printing & Stationery
BEIS,UKRI - UKRI,15/02/2022,Unspecified,UKRI - Digital Data and Technology Project Costs,Alexander Mann Solutions Ltd,99275256,2205.18,Contract Staff
BEIS,UKRI - UKRI,15/02/2022,Unspecified,UKRI - Funding Service,Alexander Mann Solutions Ltd,99275272,3150.30,Contract Staff
BEIS,UKRI - UKRI,15/02/2022,Unspecified,UKRI - Digital Data and Technology Project Costs,Alexander Mann Solutions Ltd,99275275,3510.84,Contract Staff
BEIS,UKRI - UKRI,15/02/2022,Unspecified,UKRI - Funding Service,Alexander Mann Solutions Ltd,99275278,4003.56,Contract Staff
BEIS,UKRI - UKRI,15/02/2022,Unspecified,UKRI - Digital Data and Technology BAU Costs,Alexander Mann Solutions Ltd,99275294,2771.70,Contract Staff
BEIS,UKRI - UKRI,15/02/2022,Consumables,UKRI - JRS,DENMAUR INDEPENDENT PAPERS LTD,99275388,343.18,Consumables
BEIS,UKRI - Research England,15/02/2022,Unspecified,RE - Operations and Private Office,LA International Computer Consultants Ltd,99275391,2993.40,Agency Staff
BEIS,UKRI - UKRI,15/02/2022,Staff Training,UKRI - Project Management Office,KNOWLEDGE TRAIN LTD,99275469,768.80,Staff Training
BEIS,UKRI - UKRI,15/02/2022,Unspecified,UKRI - Strategic Finance Business Partners,Alexander Mann Solutions Ltd,99282510,1260.12,Agency Staff
BEIS,UKRI - UKRI,15/02/2022,Unspecified,UKRI - Funding Service,Alexander Mann Solutions Ltd,99282537,3937.86,Contract Staff
BEIS,UKRI - Research England,15/02/2022,Unspecified,RE - Operations and Private Office,LA International Computer Consultants Ltd,99283473,3293.40,Agency Staff
BEIS,UKRI - EPSRC,15/02/2022,Fees (Including College Members),Business Improvement,Unspecified,99287574,80.00,Fees (Including College Members)
BEIS,UKRI - EPSRC,15/02/2022,Fees (Including College Members),Business Improvement,Unspecified,99287575,320.00,Fees (Including College Members)
BEIS,UKRI - EPSRC,15/02/2022,Fees (Including College Members),Business Improvement,Unspecified,99287576,320.00,Fees (Including College Members)
BEIS,UKRI - EPSRC,15/02/2022,Fees (Including College Members),Business Improvement,Unspecified,99287577,320.00,Fees (Including College Members)
BEIS,UKRI - EPSRC,15/02/2022,Fees (Including College Members),Business Improvement,Unspecified,99287578,320.00,Fees (Including College Members)
BEIS,UKRI - EPSRC,15/02/2022,Fees (Including College Members),Business Improvement,Unspecified,99287579,320.00,Fees (Including College Members)
BEIS,UKRI - EPSRC,15/02/2022,Fees (Including College Members),Business Improvement,Unspecified,99287580,320.00,Fees (Including College Members)
BEIS,UKRI - EPSRC,15/02/2022,Fees (Including College Members),Business Improvement,Unspecified,99287581,320.00,Fees (Including College Members)
BEIS,UKRI - EPSRC,15/02/2022,Fees (Including College Members),Business Improvement,Unspecified,99287582,320.00,Fees (Including College Members)
BEIS,UKRI - UKRI,15/02/2022,Computer Software Licences,UKRI - Digital Data and Technology BAU Costs,DATABARRACKS LTD,99287598,1200.00,Computer Software Licences
BEIS,UKRI - UKRI,15/02/2022,Research Grant Expenditure,Open Access,Stichting OA Switchboard,99287634,30000.00,Research Grant Expenditure
BEIS,UKRI - UKRI,15/02/2022,Books Professional Journals & Guides,UKRI - Digital Data and Technology Library Services,Oxford University Press,99287657,7844.62,Books Professional Journals & Guides
BEIS,UKRI - UKRI,15/02/2022,Unspecified,UKRI - Digital Data and Technology Project Costs,Unspecified,99287659,450.00,Contract Staff
BEIS,UKRI - UKRI,15/02/2022,Health & Safety (inc. Medicals & Opticians),"UKRI People, Policies and Management",Benenden Healthcare Society,99287674,1416.10,Health & Safety (inc. Medicals & Opticians)
BEIS,UKRI - UKRI,15/02/2022,Health & Safety (inc. Medicals & Opticians),"UKRI People, Policies and Management",Benenden Healthcare Society,99287691,2510.90,Health & Safety (inc. Medicals & Opticians)
BEIS,UKRI - UKRI,15/02/2022,Health & Safety (inc. Medicals & Opticians),"UKRI People, Policies and Management",Benenden Healthcare Society,99287697,2618.00,Health & Safety (inc. Medicals & Opticians)
BEIS,UKRI - UKRI,15/02/2022,Health & Safety (inc. Medicals & Opticians),"UKRI People, Policies and Management",Benenden Healthcare Society,99287699,1344.70,Health & Safety (inc. Medicals & Opticians)
BEIS,UKRI - UKRI,15/02/2022,Health & Safety (inc. Medicals & Opticians),"UKRI People, Policies and Management",Benenden Healthcare Society,99287704,12185.60,Health & Safety (inc. Medicals & Opticians)
BEIS,UKRI - UKRI,15/02/2022,Health & Safety (inc. Medicals & Opticians),"UKRI People, Policies and Management",Benenden Healthcare Society,99287712,2034.90,Health & Safety (inc. Medicals & Opticians)
BEIS,UKRI - UKRI,15/02/2022,Health & Safety (inc. Medicals & Opticians),"UKRI People, Policies and Management",Benenden Healthcare Society,99287717,904.40,Health & Safety (inc. Medicals & Opticians)
BEIS,UKRI - EPSRC,15/02/2022,Advertising & Promotion,University Partnerships,Unspecified,99287841,1140.00,Advertising & Promotion
BEIS,UKRI - UKRI,15/02/2022,Unspecified,UKRI - Overseas Office China,"Foreign, Commonwealth and Development Office",99287843,21395.85,Secondments
BEIS,UKRI - UKRI,15/02/2022,T&S Overseas - Public Transport,UKRI - Overseas Office China,"Foreign, Commonwealth and Development Office",99287843,42.51,T&S Overseas - Public Transport
BEIS,UKRI - UKRI,15/02/2022,Unspecified,UKRI - Overseas Office USA,"Foreign, Commonwealth and Development Office",99287848,974.38,Secondments
BEIS,UKRI - UKRI,15/02/2022,General Building Maintenance,UKRI - JBOS,Roman Glass Ltd,99287867,174.55,General Building Maintenance
BEIS,UKRI - UKRI,15/02/2022,T&S UK - Other Charges,UKRI-SHARP,Unspecified,99287896,28.46,T&S UK - Other Charges
BEIS,UKRI - UKRI,15/02/2022,T&S UK - Other Charges,UKRI - JRS,Unspecified,99287898,29.99,T&S UK - Other Charges
BEIS,UKRI - EPSRC,15/02/2022,Fees (Including College Members),EDI and People,Unspecified,99288437,80.00,Fees (Including College Members)
BEIS,UKRI - EPSRC,15/02/2022,Fees (Including College Members),EDI and People,Unspecified,99288438,80.00,Fees (Including College Members)
BEIS,UKRI - EPSRC,15/02/2022,Fees (Including College Members),EDI and People,Unspecified,99288439,80.00,Fees (Including College Members)
BEIS,UKRI - EPSRC,15/02/2022,Fees (Including College Members),Business Improvement,Unspecified,99288440,320.00,Fees (Including College Members)
BEIS,UKRI - EPSRC,15/02/2022,Fees (Including College Members),EDI and People,Unspecified,99288441,80.00,Fees (Including College Members)
BEIS,UKRI - EPSRC,15/02/2022,Fees (Including College Members),EDI and People,Unspecified,99288442,80.00,Fees (Including College Members)
BEIS,UKRI - EPSRC,15/02/2022,Nursery Deductions,Balance Sheet,EDENRED (UK GROUP) LTD,99289448,50258.27,Nursery Deductions
BEIS,UKRI - UKRI,15/02/2022,Computer Software,UKRI - Digital Data and Technology BAU Costs,Phoenix Software Ltd,99294427,4972.01,Computer Software
BEIS,UKRI - UKRI,16/02/2022,Staff Training,UKRI - Digital Data and Technology BAU Costs,Jisc Services Ltd,99121975,495.00,Staff Training
BEIS,UKRI - UKRI,16/02/2022,Unspecified,UKRI - Digital Data and Technology Project Costs,LA International Computer Consultants Ltd,99169077,2993.40,Contract Staff
BEIS,UKRI - UKRI,16/02/2022,Unspecified,UKRI - Digital Data and Technology Project Costs,LA International Computer Consultants Ltd,99169082,2993.40,Contract Staff
BEIS,UKRI - UKRI,16/02/2022,Unspecified,UKRI - Digital Data and Technology Project Costs,LA International Computer Consultants Ltd,99177786,2993.40,Contract Staff
BEIS,UKRI - UKRI,16/02/2022,Health & Safety (inc. Medicals & Opticians),UKRI - Culture Leadership and Learning,Cordell Health Ltd,99183079,-750.00,Health & Safety (inc. Medicals & Opticians)
BEIS,UKRI - UKRI,16/02/2022,Health & Safety (inc. Medicals & Opticians),"UKRI People, Policies and Management",Cordell Health Ltd,99183080,-1250.00,Health & Safety (inc. Medicals & Opticians)
BEIS,UKRI - UKRI,16/02/2022,Health & Safety (inc. Medicals & Opticians),"UKRI People, Policies and Management",Cordell Health Ltd,99183082,-100.00,Health & Safety (inc. Medicals & Opticians)
BEIS,UKRI - UKRI,16/02/2022,Health & Safety (inc. Medicals & Opticians),UKRI - Culture Leadership and Learning,Cordell Health Ltd,99183084,-1266.00,Health & Safety (inc. Medicals & Opticians)
BEIS,UKRI - UKRI,16/02/2022,Health & Safety (inc. Medicals & Opticians),UKRI - Culture Leadership and Learning,Cordell Health Ltd,99183086,-834.00,Health & Safety (inc. Medicals & Opticians)
BEIS,UKRI - UKRI,16/02/2022,Unspecified,UKRI - Digital Data and Technology Project Costs,LA International Computer Consultants Ltd,99183504,2394.72,Contract Staff
BEIS,UKRI - UKRI,16/02/2022,Unspecified,UKRI - Digital Data and Technology Project Costs,LA International Computer Consultants Ltd,99207053,1436.40,Contract Staff
BEIS,UKRI - UKRI,16/02/2022,Unspecified,UKRI - Digital Data and Technology Project Costs,LA International Computer Consultants Ltd,99207054,2872.80,Contract Staff
BEIS,UKRI - UKRI,16/02/2022,Unspecified,UKRI - Digital Data and Technology Project Costs,LA International Computer Consultants Ltd,99207057,3591.00,Contract Staff
BEIS,UKRI - UKRI,16/02/2022,Unspecified,UKRI - Digital Data and Technology Project Costs,LA International Computer Consultants Ltd,99207061,3591.00,Contract Staff
BEIS,UKRI - UKRI,16/02/2022,Unspecified,UKRI - Digital Data and Technology Project Costs,LA International Computer Consultants Ltd,99207062,3591.00,Contract Staff
BEIS,UKRI - UKRI,16/02/2022,Unspecified,UKRI - Digital Data and Technology Project Costs,LA International Computer Consultants Ltd,99207064,1436.40,Contract Staff
BEIS,UKRI - UKRI,16/02/2022,Unspecified,UKRI - Digital Data and Technology Project Costs,LA International Computer Consultants Ltd,99208426,2993.40,Contract Staff
BEIS,UKRI - UKRI,16/02/2022,Unspecified,UKRI - Digital Data and Technology Project Costs,LA International Computer Consultants Ltd,99218443,1436.40,Contract Staff
BEIS,UKRI - UKRI,16/02/2022,Unspecified,UKRI - Digital Data and Technology Project Costs,Alexander Mann Solutions Ltd,99223415,2835.24,Contract Staff
BEIS,UKRI - UKRI,16/02/2022,Unspecified,UKRI - Digital Data and Technology Project Costs,Alexander Mann Solutions Ltd,99223428,3937.86,Contract Staff
BEIS,UKRI - UKRI,16/02/2022,Unspecified,UKRI - Digital Data and Technology BAU Costs,Alexander Mann Solutions Ltd,99224452,4725.42,Contract Staff
BEIS,UKRI - UKRI,16/02/2022,Unspecified,UKRI - Digital Data and Technology Project Costs,LA International Computer Consultants Ltd,99248860,2993.40,Contract Staff
BEIS,UKRI - UKRI,16/02/2022,Unspecified,UKRI - Digital Data and Technology Project Costs,Reed Specialist Recruitment Ltd,99249488,1499.03,Contract Staff
